Workbook

Sheet Worksheet
E1: For each tolerance statement, write down the minimum and maximum and then circle or tick the values which ARE acceptable
A2: Variables | E2: 1 | F2: 301 | G2: 61 | H2: litres | I2: ± | J2: 0·7 | K2: litres | L2: ml | M2: 0·7 | N2: 700 | P2: 60·3 | Q2: litres | R2: 61·7 | S2: litres
M3: -1 | N3: 2 | O3: 1000
A4: SHOW ANSWERS | D4: FALSE | H4: 61·6 | I4: litres | J4: 60·3 | K4: litres | L4: 61 | M4: litres | N4: 61·9 | O4: litres | P4: 61·2 | Q4: litres | R4: 59·7 | S4: litres
H5: 7 | I5: 1 | J5: 7 | K5: 1 | L5: 7 | M5: 1 | N5: 8 | O5: 1 | P5: 7 | Q5: 1 | R5: 8 | S5: 1
A6: Level of difficulty | E6: 2 | F6: 464 | G6: 52 | H6: m | I6: ± | J6: 40 | K6: cm | L6: cm | M6: 0·4 | N6: 40 | P6: 51·6 | Q6: m | R6: 52·4 | S6: m
M7: -1 | N7: 1 | O7: 100
A8: Maximum whole number in question | D8: 200 | H8: 51·5 | I8: m | J8: 51·4 | K8: m | L8: 52·2 | M8: m | N8: 51·2 | O8: m | P8: 51·6 | Q8: m | R8: 52·6 | S8: m
H9: 8 | I9: 1 | J9: 8 | K9: 1 | L9: 7 | M9: 1 | N9: 8 | O9: 1 | P9: 7 | Q9: 1 | R9: 8 | S9: 1
A10: Approximate percentage of questions where both units match | D10: 75 | E10: 3 | F10: 359 | G10: 10 | H10: m | I10: ± | J10: 0·4 | K10: m | L10: cm | M10: 0·4 | N10: 40 | P10: 9·6 | Q10: m | R10: 10·4 | S10: m
M11: -1 | N11: 1 | O11: 100
A12: Include some questions where the tolerance is expressed as a percentage | D12: TRUE | H12: 9·8 | I12: m | J12: 10·4 | K12: m | L12: 10 | M12: m | N12: 10·8 | O12: m | P12: 9·7 | Q12: m | R12: 10·7 | S12: m
H13: 7 | I13: 1 | J13: 7 | K13: 1 | L13: 7 | M13: 1 | N13: 8 | O13: 1 | P13: 7 | Q13: 1 | R13: 8 | S13: 1
A14: Allow decimal value after ± sign | D14: TRUE | E14: 4 | F14: 197 | G14: 82 | H14: cm | I14: ± | J14: 10 | K14: % | L14: mm | M14: 8·2 | N14: 82 | P14: 73·8 | Q14: cm | R14: 90·2 | S14: cm
M15: -1 | N15: 0 | O15: 10
A16: Mix units in options | D16: FALSE | H16: 92·7 | I16: cm | J16: 66·7 | K16: cm | L16: 87 | M16: cm | N16: 93·4 | O16: cm | P16: 80·7 | Q16: cm | R16: 68·8 | S16: cm
H17: 8 | I17: 1 | J17: 8 | K17: 1 | L17: 7 | M17: 1 | N17: 8 | O17: 1 | P17: 7 | Q17: 1 | R17: 8 | S17: 1
A18: Which units to include: (once you have selected the units you want, click on "generate new sheet" above) | E18: 5 | F18: 993 | G18: 116 | H18: litres | I18: ± | J18: 10 | K18: % | L18: ml | M18: 11·6 | N18: 11600 | P18: 104·4 | Q18: litres | R18: 127·6 | S18: litres
M19: -1 | N19: 2 | O19: 1000
A20: Length: mm/cm | B20: TRUE | C20: Weight: g/kg | D20: TRUE | H20: 111·5 | I20: litres | J20: 95·5 | K20: litres | L20: 115·7 | M20: litres | N20: 115·7 | O20: litres | P20: 118·6 | Q20: litres | R20: 126·1 | S20: litres
H21: 7 | I21: 1 | J21: 8 | K21: 1 | L21: 7 | M21: 1 | N21: 7 | O21: 1 | P21: 7 | Q21: 1 | R21: 7 | S21: 1
A22: Length: cm/m | B22: TRUE | C22: Weight: kg/tonnes | D22: TRUE | E22: 6 | F22: 629 | G22: 113 | H22: litres | I22: ± | J22: 9 | K22: litres | L22: ml | M22: 9 | N22: 9000 | P22: 104 | Q22: litres | R22: 122 | S22: litres
M23: 0 | N23: 3 | O23: 1000
A24: Length: m/km | B24: TRUE | C24: Volume: ml/l | D24: TRUE | H24: 97 | I24: litres | J24: 121 | K24: litres | L24: 106 | M24: litres | N24: 117 | O24: litres | P24: 114 | Q24: litres | R24: 119 | S24: litres
H25: 8 | I25: 1 | J25: 7 | K25: 1 | L25: 7 | M25: 1 | N25: 7 | O25: 1 | P25: 7 | Q25: 1 | R25: 7 | S25: 1
A26: Length: mm/m | B26: FALSE | C26: Volume: cm³/l | D26: FALSE | E26: 7 | F26: 97 | G26: 23 | H26: litres | I26: ± | J26: 7 | K26: litres | L26: ml | M26: 7 | N26: 7000 | P26: 16 | Q26: litres | R26: 30 | S26: litres
M27: 0 | N27: 3 | O27: 1000
A28: Temperature: °C | B28: TRUE | H28: 19 | I28: litres | J28: 14 | K28: litres | L28: 31 | M28: litres | N28: 14 | O28: litres | P28: 35 | Q28: litres | R28: 27 | S28: litres
H29: 7 | I29: 1 | J29: 8 | K29: 1 | L29: 8 | M29: 1 | N29: 8 | O29: 1 | P29: 8 | Q29: 1 | R29: 7 | S29: 1
E30: 8 | F30: 301 | G30: 61 | H30: litres | I30: ± | J30: 0·7 | K30: litres | L30: ml | M30: 0·7 | N30: 700 | P30: 60·3 | Q30: litres | R30: 61·7 | S30: litres
M31: -1 | N31: 2 | O31: 1000
H32: 62·2 | I32: litres | J32: 62·4 | K32: litres | L32: 61·4 | M32: litres | N32: 60·6 | O32: litres | P32: 59·9 | Q32: litres | R32: 60·6 | S32: litres
H33: 8 | I33: 1 | J33: 8 | K33: 1 | L33: 7 | M33: 1 | N33: 7 | O33: 1 | P33: 8 | Q33: 1 | R33: 7 | S33: 1
E34: 9 | F34: 766 | G34: 77 | H34: km | I34: ± | J34: 60 | K34: m | L34: m | M34: 0·06 | N34: 60 | P34: 76·94 | Q34: km | R34: 77·06 | S34: km
M35: -2 | N35: 1 | O35: 1000
H36: 77·08 | I36: km | J36: 76·89 | K36: km | L36: 76·91 | M36: km | N36: 77·08 | O36: km | P36: 76·94 | Q36: km | R36: 76·96 | S36: km
H37: 8 | I37: 1 | J37: 8 | K37: 1 | L37: 8 | M37: 1 | N37: 8 | O37: 1 | P37: 7 | Q37: 1 | R37: 7 | S37: 1
E38: 10 | F38: 1314 | G38: 165 | H38: tonnes | I38: ± | J38: 900 | K38: kg | L38: kg | M38: 0·9 | N38: 900 | P38: 164·1 | Q38: tonnes | R38: 165·9 | S38: tonnes
M39: -1 | N39: 2 | O39: 1000
H40: 163·4 | I40: tonnes | J40: 163·2 | K40: tonnes | L40: 165 | M40: tonnes | N40: 165·8 | O40: tonnes | P40: 165·2 | Q40: tonnes | R40: 165·5 | S40: tonnes
H41: 8 | I41: 1 | J41: 8 | K41: 1 | L41: 7 | M41: 1 | N41: 7 | O41: 1 | P41: 7 | Q41: 1 | R41: 7 | S41: 1

Sheet SYSTEM FORMULAE
A1: =COUNTIF($B$1:B1,TRUE) -> 1 | B1: =Worksheet!$B$20 -> TRUE | C1: =RANDBETWEEN(5,RANDBETWEEN(5,Worksheet!$D$8)) -> 117 | D1: cm | E1: ± | F1: =IF(I1=1,H1*10^RANDBETWEEN(IF(Worksheet!$D$14,-1,0),0),IF(I1=2,H1,CHOOSE(RANDBETWEEN(1,3),5,10,20))) -> 20 | G1: =IF(I1=1,D1,IF(I1=3,"%","mm")) -> % | H1: =RANDBETWEEN(1,MIN(9,C1)) -> 7 | I1: =IF(AND(Worksheet!$D$12,RAND()<0.2),3,IF(RAND()<Worksheet!$D$10/100,1,2)) -> 3 | J1: =IF(I1=1,F1,IF(I1=2,F1/10,IF(I1=3,F1/100*C1,""))) -> 23.4 | K1: =CONCATENATE(" ",D1) -> cm | L1: =IF(I1=1,F1*10,IF(I1=2,F1,IF(I1=3,F1/100*C1*10,""))) -> 234 | M1: mm | S1: 1 | T1: =RANDBETWEEN(1,MAX('SYSTEM FORMULAE'!$A$1:$A$1737)) -> 44 | U1: =IF(RIGHT(TEXT(VLOOKUP(T1,'SYSTEM FORMULAE'!$A$1:$Q$1737,3),"# ##0.###"),1)=".",LEFT(TEXT(VLOOKUP(T1,'SYSTEM FORMULAE'!$A$1:$Q$1737,3),"# ##0.###"),LEN(TEXT(VLOOKUP(T1,'SYSTEM FORMULAE'!$A$1:$Q$1737,3),"# ##0.###"))-1),TEXT(VLOOKUP(T1,'SYSTEM FORMULAE'!$A$1:$Q$1737,3),"# ##0.###")) -> 7 | V1: =VLOOKUP(T1,'SYSTEM FORMULAE'!$A$1:$Q$1737,4) -> m | W1: ± | X1: =IF(RIGHT(TEXT(VLOOKUP(T1,'SYSTEM FORMULAE'!$A$1:$Q$1737,6),"# ##0.###"),1)=".",LEFT(TEXT(VLOOKUP(T1,'SYSTEM FORMULAE'!$A$1:$Q$1737,6),"# ##0.###"),LEN(TEXT(VLOOKUP(T1,'SYSTEM FORMULAE'!$A$1:$Q$1737,6),"# ##0.###"))-1),TEXT(VLOOKUP(T1,'SYSTEM FORMULAE'!$A$1:$Q$1737,6),"# ##0.###")) -> 0.6 | Y1: =VLOOKUP(T1,'SYSTEM FORMULAE'!$A$1:$Q$1737,7) -> m | Z1: =VLOOKUP(T1,'SYSTEM FORMULAE'!$A$1:$Q$1737,13) -> cm | AA1: =VLOOKUP(T1,'SYSTEM FORMULAE'!$A$1:$Q$1737,10) -> 0.6 | AB1: =VLOOKUP(T1,'SYSTEM FORMULAE'!$A$1:$Q$1737,12) -> 60 | AD1: =U1-AA1 -> 6.4 | AE1: =V1 -> m | AF1: =U1+AA1 -> 7.6 | AG1: =V1 -> m
A2: =IF(COUNTIF($B$1:B2,TRUE)=COUNTIF($B$1:B1,TRUE),"",COUNTIF($B$1:B2,TRUE)) -> 2 | B2: =Worksheet!$B$22 -> TRUE | C2: =RANDBETWEEN(5,RANDBETWEEN(5,Worksheet!$D$8)) -> 14 | D2: m | E2: ± | F2: =IF(I2=1,H2*10^RANDBETWEEN(IF(Worksheet!$D$14,-1,0),0),IF(I2=2,H2*10^RANDBETWEEN(RANDBETWEEN(0,1),1),CHOOSE(RANDBETWEEN(1,3),5,10,20))) -> 0.7 | G2: =IF(I2=1,D2,IF(I2=3,"%","cm")) -> m | H2: =RANDBETWEEN(1,MIN(9,C2)) -> 7 | I2: =IF(AND(Worksheet!$D$12,RAND()<0.2),3,IF(RAND()<Worksheet!$D$10/100,1,2)) -> 1 | J2: =IF(I2=1,F2,IF(I2=2,F2/100,IF(I2=3,F2/100*C2,""))) -> 0.7 | K2: =CONCATENATE(" ",D2) -> m | L2: =IF(I2=1,F2*100,IF(I2=2,F2,IF(I2=3,F2/100*C2*100,""))) -> 70 | M2: cm | AA2: =IF(AA1=INT(AA1),IF(AA1/1000=INT(AA1/1000),3,IF(AA1/100=INT(AA1/100),2,IF(AA1/10=INT(AA1/10),1,0))),INT(LOG($AA1-INT($AA1)))) -> -1 | AB2: =IF(AB1=INT(AB1),IF(AB1/1000=INT(AB1/1000),3,IF(AB1/100=INT(AB1/100),2,IF(AB1/10=INT(AB1/10),1,0))),INT(LOG($AA1-INT($AA1)))) -> 1 | AC2: =IF(Z1="cm",100,IF(Z1="°C",1,IF(AND(V1="cm",Z1="mm"),10,1000))) -> 100
A3: =IF(COUNTIF($B$1:B3,TRUE)=COUNTIF($B$1:B2,TRUE),"",COUNTIF($B$1:B3,TRUE)) -> 3 | B3: =Worksheet!$B$24 -> TRUE | C3: =RANDBETWEEN(5,RANDBETWEEN(5,Worksheet!$D$8)) -> 25 | D3: km | E3: ± | F3: =IF(I3=1,H3*10^RANDBETWEEN(IF(Worksheet!$D$14,-1,0),0),IF(I3=2,H3*10^RANDBETWEEN(RANDBETWEEN(0,2),2),CHOOSE(RANDBETWEEN(1,3),5,10,20))) -> 6 | G3: =IF(I3=1,D3,IF(I3=3,"%","m")) -> km | H3: 6 | I3: =IF(AND(Worksheet!$D$12,RAND()<0.2),3,IF(RAND()<Worksheet!$D$10/100,1,2)) -> 1 | J3: =IF(I3=1,F3,IF(I3=2,F3/1000,IF(I3=3,F3/100*C3,""))) -> 6 | K3: km | L3: =IF(I3=1,F3*1000,IF(I3=2,F3,IF(I3=3,F3/100*C3*1000,""))) -> 6000 | M3: m | V3: =IF(W4=1,MAX(0,$U1+RANDBETWEEN(IF(V4=7,0,1.00001)*$AA1/10^$AA2,IF(V4=7,1,2)*$AA1/10^$AA2)*10^$AA2*(-1)^RANDBETWEEN(1,2)),MAX(0,$U1*$AC2+IF(V4=7,RANDBETWEEN(0,IF($AB2=3,$AB1/1000,IF($AB2=2,$AB1/100,IF($AB2=1,$AB1/10,$AB1))))*IF($AB2=3,1000,IF($AB2=2,100,IF($AB2=1,10,1))),RANDBETWEEN(1.00001*IF($AB2=3,$AB1/1000,IF($AB2=2,$AB1/100,IF($AB2=1,$AB1/10,$AB1))),2*IF($AB2=3,$AB1/1000,IF($AB2=2,$AB1/100,IF($AB2=1,$AB1/10,$AB1))))*IF($AB2=3,1000,IF($AB2=2,100,IF($AB2=1,10,1))))*(-1)^RANDBETWEEN(1,2))) -> 8.2 | W3: =IF(W4=1,$V1,$Z1) -> m | X3: =IF(Y4=1,MAX(0,$U1+RANDBETWEEN(IF(X4=7,0,1.00001)*$AA1/10^$AA2,IF(X4=7,1,2)*$AA1/10^$AA2)*10^$AA2*(-1)^RANDBETWEEN(1,2)),MAX(0,$U1*$AC2+IF(X4=7,RANDBETWEEN(0,IF($AB2=3,$AB1/1000,IF($AB2=2,$AB1/100,IF($AB2=1,$AB1/10,$AB1))))*IF($AB2=3,1000,IF($AB2=2,100,IF($AB2=1,10,1))),RANDBETWEEN(1.00001*IF($AB2=3,$AB1/1000,IF($AB2=2,$AB1/100,IF($AB2=1,$AB1/10,$AB1))),2*IF($AB2=3,$AB1/1000,IF($AB2=2,$AB1/100,IF($AB2=1,$AB1/10,$AB1))))*IF($AB2=3,1000,IF($AB2=2,100,IF($AB2=1,10,1))))*(-1)^RANDBETWEEN(1,2))) -> 6.6 | Y3: =IF(Y4=1,$V1,$Z1) -> m | Z3: =IF(AA4=1,MAX(0,$U1+RANDBETWEEN(IF(Z4=7,0,1.00001)*$AA1/10^$AA2,IF(Z4=7,1,2)*$AA1/10^$AA2)*10^$AA2*(-1)^RANDBETWEEN(1,2)),MAX(0,$U1*$AC2+IF(Z4=7,RANDBETWEEN(0,IF($AB2=3,$AB1/1000,IF($AB2=2,$AB1/100,IF($AB2=1,$AB1/10,$AB1))))*IF($AB2=3,1000,IF($AB2=2,100,IF($AB2=1,10,1))),RANDBETWEEN(1.00001*IF($AB2=3,$AB1/1000,IF($AB2=2,$AB1/100,IF($AB2=1,$AB1/10,$AB1))),2*IF($AB2=3,$AB1/1000,IF($AB2=2,$AB1/100,IF($AB2=1,$AB1/10,$AB1))))*IF($AB2=3,1000,IF($AB2=2,100,IF($AB2=1,10,1))))*(-1)^RANDBETWEEN(1,2))) -> 5.8 | AA3: =IF(AA4=1,$V1,$Z1) -> m | AB3: =IF(AC4=1,MAX(0,$U1+RANDBETWEEN(IF(AB4=7,0,1.00001)*$AA1/10^$AA2,IF(AB4=7,1,2)*$AA1/10^$AA2)*10^$AA2*(-1)^RANDBETWEEN(1,2)),MAX(0,$U1*$AC2+IF(AB4=7,RANDBETWEEN(0,IF($AB2=3,$AB1/1000,IF($AB2=2,$AB1/100,IF($AB2=1,$AB1/10,$AB1))))*IF($AB2=3,1000,IF($AB2=2,100,IF($AB2=1,10,1))),RANDBETWEEN(1.00001*IF($AB2=3,$AB1/1000,IF($AB2=2,$AB1/100,IF($AB2=1,$AB1/10,$AB1))),2*IF($AB2=3,$AB1/1000,IF($AB2=2,$AB1/100,IF($AB2=1,$AB1/10,$AB1))))*IF($AB2=3,1000,IF($AB2=2,100,IF($AB2=1,10,1))))*(-1)^RANDBETWEEN(1,2))) -> 7.5 | AC3: =IF(AC4=1,$V1,$Z1) -> m | AD3: =IF(AE4=1,MAX(0,$U1+RANDBETWEEN(IF(AD4=7,0,1.00001)*$AA1/10^$AA2,IF(AD4=7,1,2)*$AA1/10^$AA2)*10^$AA2*(-1)^RANDBETWEEN(1,2)),MAX(0,$U1*$AC2+IF(AD4=7,RANDBETWEEN(0,IF($AB2=3,$AB1/1000,IF($AB2=2,$AB1/100,IF($AB2=1,$AB1/10,$AB1))))*IF($AB2=3,1000,IF($AB2=2,100,IF($AB2=1,10,1))),RANDBETWEEN(1.00001*IF($AB2=3,$AB1/1000,IF($AB2=2,$AB1/100,IF($AB2=1,$AB1/10,$AB1))),2*IF($AB2=3,$AB1/1000,IF($AB2=2,$AB1/100,IF($AB2=1,$AB1/10,$AB1))))*IF($AB2=3,1000,IF($AB2=2,100,IF($AB2=1,10,1))))*(-1)^RANDBETWEEN(1,2))) -> 6.2 | AE3: =IF(AE4=1,$V1,$Z1) -> m | AF3: =IF(AG4=1,MAX(0,$U1+RANDBETWEEN(IF(AF4=7,0,1.00001)*$AA1/10^$AA2,IF(AF4=7,1,2)*$AA1/10^$AA2)*10^$AA2*(-1)^RANDBETWEEN(1,2)),MAX(0,$U1*$AC2+IF(AF4=7,RANDBETWEEN(0,IF($AB2=3,$AB1/1000,IF($AB2=2,$AB1/100,IF($AB2=1,$AB1/10,$AB1))))*IF($AB2=3,1000,IF($AB2=2,100,IF($AB2=1,10,1))),RANDBETWEEN(1.00001*IF($AB2=3,$AB1/1000,IF($AB2=2,$AB1/100,IF($AB2=1,$AB1/10,$AB1))),2*IF($AB2=3,$AB1/1000,IF($AB2=2,$AB1/100,IF($AB2=1,$AB1/10,$AB1))))*IF($AB2=3,1000,IF($AB2=2,100,IF($AB2=1,10,1))))*(-1)^RANDBETWEEN(1,2))) -> 6.1 | AG3: =IF(AG4=1,$V1,$Z1) -> m
A4: =IF(COUNTIF($B$1:B4,TRUE)=COUNTIF($B$1:B3,TRUE),"",COUNTIF($B$1:B4,TRUE)) ->  | B4: =Worksheet!$B$26 -> FALSE | C4: =RANDBETWEEN(5,RANDBETWEEN(5,Worksheet!$D$8)) -> 9 | D4: m | E4: ± | F4: =IF(I4=1,H4*10^RANDBETWEEN(IF(Worksheet!$D$14,-1,0),0),IF(I4=2,H4*10^RANDBETWEEN(RANDBETWEEN(0,2),2),CHOOSE(RANDBETWEEN(1,3),5,10,20))) -> 0.3 | G4: =IF(I4=1,D4,IF(I4=3,"%","mm")) -> m | H4: 3 | I4: =IF(AND(Worksheet!$D$12,RAND()<0.2),3,IF(RAND()<Worksheet!$D$10/100,1,2)) -> 1 | J4: 0.3 | K4: m | L4: 300 | M4: mm | V4: =RANDBETWEEN(7,8) -> 8 | W4: =IF(Worksheet!$D$16,RANDBETWEEN(1,2),1) -> 1 | X4: =RANDBETWEEN(7,8) -> 7 | Y4: =IF(Worksheet!$D$16,RANDBETWEEN(1,2),1) -> 1 | Z4: =RANDBETWEEN(7,8) -> 8 | AA4: =IF(Worksheet!$D$16,RANDBETWEEN(1,2),1) -> 1 | AB4: =RANDBETWEEN(7,8) -> 7 | AC4: =IF(Worksheet!$D$16,RANDBETWEEN(1,2),1) -> 1 | AD4: =RANDBETWEEN(7,8) -> 8 | AE4: =IF(Worksheet!$D$16,RANDBETWEEN(1,2),1) -> 1 | AF4: =RANDBETWEEN(7,8) -> 8 | AG4: =IF(Worksheet!$D$16,RANDBETWEEN(1,2),1) -> 1
A5: =IF(COUNTIF($B$1:B5,TRUE)=COUNTIF($B$1:B4,TRUE),"",COUNTIF($B$1:B5,TRUE)) -> 4 | B5: =Worksheet!$D$20 -> TRUE | C5: =RANDBETWEEN(5,RANDBETWEEN(5,Worksheet!$D$8)) -> 50 | D5: kg | E5: ± | F5: =IF(I5=1,H5*10^RANDBETWEEN(IF(Worksheet!$D$14,-1,0),0),IF(I5=2,H5*10^RANDBETWEEN(RANDBETWEEN(0,2),2),CHOOSE(RANDBETWEEN(1,3),5,10,20))) -> 5 | G5: =IF(I5=1,D5,IF(I5=3,"%","g")) -> kg | H5: =RANDBETWEEN(1,MIN(9,C5)) -> 5 | I5: =IF(AND(Worksheet!$D$12,RAND()<0.2),3,IF(RAND()<Worksheet!$D$10/100,1,2)) -> 1 | J5: 5 | K5: =CONCATENATE(" ",D5) -> kg | L5: 5000 | M5: g | S5: 2 | T5: =RANDBETWEEN(1,MAX('SYSTEM FORMULAE'!$A$1:$A$1737)) -> 231 | U5: =IF(RIGHT(TEXT(VLOOKUP(T5,'SYSTEM FORMULAE'!$A$1:$Q$1737,3),"# ##0.###"),1)=".",LEFT(TEXT(VLOOKUP(T5,'SYSTEM FORMULAE'!$A$1:$Q$1737,3),"# ##0.###"),LEN(TEXT(VLOOKUP(T5,'SYSTEM FORMULAE'!$A$1:$Q$1737,3),"# ##0.###"))-1),TEXT(VLOOKUP(T5,'SYSTEM FORMULAE'!$A$1:$Q$1737,3),"# ##0.###")) -> 62 | V5: =VLOOKUP(T5,'SYSTEM FORMULAE'!$A$1:$Q$1737,4) -> litres | W5: ± | X5: =IF(RIGHT(TEXT(VLOOKUP(T5,'SYSTEM FORMULAE'!$A$1:$Q$1737,6),"# ##0.###"),1)=".",LEFT(TEXT(VLOOKUP(T5,'SYSTEM FORMULAE'!$A$1:$Q$1737,6),"# ##0.###"),LEN(TEXT(VLOOKUP(T5,'SYSTEM FORMULAE'!$A$1:$Q$1737,6),"# ##0.###"))-1),TEXT(VLOOKUP(T5,'SYSTEM FORMULAE'!$A$1:$Q$1737,6),"# ##0.###")) -> 10 | Y5: =VLOOKUP(T5,'SYSTEM FORMULAE'!$A$1:$Q$1737,7) -> % | Z5: =VLOOKUP(T5,'SYSTEM FORMULAE'!$A$1:$Q$1737,13) -> ml | AA5: =VLOOKUP(T5,'SYSTEM FORMULAE'!$A$1:$Q$1737,10) -> 6.2 | AB5: =VLOOKUP(T5,'SYSTEM FORMULAE'!$A$1:$Q$1737,12) -> 6200 | AD5: =U5-AA5 -> 55.8 | AE5: =V5 -> litres | AF5: =U5+AA5 -> 68.2 | AG5: =V5 -> litres
A6: =IF(COUNTIF($B$1:B6,TRUE)=COUNTIF($B$1:B5,TRUE),"",COUNTIF($B$1:B6,TRUE)) -> 5 | B6: =Worksheet!$D$22 -> TRUE | C6: =RANDBETWEEN(5,RANDBETWEEN(5,Worksheet!$D$8)) -> 65 | D6: tonnes | E6: ± | F6: =IF(I6=1,H6*10^RANDBETWEEN(IF(Worksheet!$D$14,-1,0),0),IF(I6=2,H6*10^RANDBETWEEN(RANDBETWEEN(0,2),2),CHOOSE(RANDBETWEEN(1,3),5,10,20))) -> 3 | G6: =IF(I6=1,D6,IF(I6=3,"%","kg")) -> kg | H6: =RANDBETWEEN(1,MIN(9,C6)) -> 3 | I6: =IF(AND(Worksheet!$D$12,RAND()<0.2),3,IF(RAND()<Worksheet!$D$10/100,1,2)) -> 2 | J6: 0.003 | K6: =CONCATENATE(" ",D6) -> tonnes | L6: 3 | M6: kg | AA6: =IF(AA5=INT(AA5),IF(AA5/1000=INT(AA5/1000),3,IF(AA5/100=INT(AA5/100),2,IF(AA5/10=INT(AA5/10),1,0))),INT(LOG($AA5-INT($AA5)))) -> -1 | AB6: =IF(AB5=INT(AB5),IF(AB5/1000=INT(AB5/1000),3,IF(AB5/100=INT(AB5/100),2,IF(AB5/10=INT(AB5/10),1,0))),INT(LOG($AA5-INT($AA5)))) -> 2 | AC6: =IF(Z5="cm",100,IF(Z5="°C",1,IF(AND(V5="cm",Z5="mm"),10,1000))) -> 1000
A7: =IF(COUNTIF($B$1:B7,TRUE)=COUNTIF($B$1:B6,TRUE),"",COUNTIF($B$1:B7,TRUE)) -> 6 | B7: =Worksheet!$D$24 -> TRUE | C7: =RANDBETWEEN(5,RANDBETWEEN(5,Worksheet!$D$8)) -> 9 | D7: litres | E7: ± | F7: =IF(I7=1,H7*10^RANDBETWEEN(IF(Worksheet!$D$14,-1,0),0),IF(I7=2,H7*10^RANDBETWEEN(RANDBETWEEN(0,2),2),CHOOSE(RANDBETWEEN(1,3),5,10,20))) -> 0.9 | G7: =IF(I7=1,D7,IF(I7=3,"%","ml")) -> litres | H7: =RANDBETWEEN(1,MIN(9,C7)) -> 9 | I7: =IF(AND(Worksheet!$D$12,RAND()<0.2),3,IF(RAND()<Worksheet!$D$10/100,1,2)) -> 1 | J7: 0.9 | K7: =CONCATENATE(" ",D7) -> litres | L7: 900 | M7: ml | V7: =IF(W8=1,MAX(0,$U5+RANDBETWEEN(IF(V8=7,0,1.00001)*$AA5/10^$AA6,IF(V8=7,1,2)*$AA5/10^$AA6)*10^$AA6*(-1)^RANDBETWEEN(1,2)),MAX(0,$U5*$AC6+IF(V8=7,RANDBETWEEN(0,IF($AB6=3,$AB5/1000,IF($AB6=2,$AB5/100,IF($AB6=1,$AB5/10,$AB5))))*IF($AB6=3,1000,IF($AB6=2,100,IF($AB6=1,10,1))),RANDBETWEEN(1.00001*IF($AB6=3,$AB5/1000,IF($AB6=2,$AB5/100,IF($AB6=1,$AB5/10,$AB5))),2*IF($AB6=3,$AB5/1000,IF($AB6=2,$AB5/100,IF($AB6=1,$AB5/10,$AB5))))*IF($AB6=3,1000,IF($AB6=2,100,IF($AB6=1,10,1))))*(-1)^RANDBETWEEN(1,2))) -> 70 | W7: =IF(W8=1,$V5,$Z5) -> litres | X7: =IF(Y8=1,MAX(0,$U5+RANDBETWEEN(IF(X8=7,0,1.00001)*$AA5/10^$AA6,IF(X8=7,1,2)*$AA5/10^$AA6)*10^$AA6*(-1)^RANDBETWEEN(1,2)),MAX(0,$U5*$AC6+IF(X8=7,RANDBETWEEN(0,IF($AB6=3,$AB5/1000,IF($AB6=2,$AB5/100,IF($AB6=1,$AB5/10,$AB5))))*IF($AB6=3,1000,IF($AB6=2,100,IF($AB6=1,10,1))),RANDBETWEEN(1.00001*IF($AB6=3,$AB5/1000,IF($AB6=2,$AB5/100,IF($AB6=1,$AB5/10,$AB5))),2*IF($AB6=3,$AB5/1000,IF($AB6=2,$AB5/100,IF($AB6=1,$AB5/10,$AB5))))*IF($AB6=3,1000,IF($AB6=2,100,IF($AB6=1,10,1))))*(-1)^RANDBETWEEN(1,2))) -> 65.7 | Y7: =IF(Y8=1,$V5,$Z5) -> litres | Z7: =IF(AA8=1,MAX(0,$U5+RANDBETWEEN(IF(Z8=7,0,1.00001)*$AA5/10^$AA6,IF(Z8=7,1,2)*$AA5/10^$AA6)*10^$AA6*(-1)^RANDBETWEEN(1,2)),MAX(0,$U5*$AC6+IF(Z8=7,RANDBETWEEN(0,IF($AB6=3,$AB5/1000,IF($AB6=2,$AB5/100,IF($AB6=1,$AB5/10,$AB5))))*IF($AB6=3,1000,IF($AB6=2,100,IF($AB6=1,10,1))),RANDBETWEEN(1.00001*IF($AB6=3,$AB5/1000,IF($AB6=2,$AB5/100,IF($AB6=1,$AB5/10,$AB5))),2*IF($AB6=3,$AB5/1000,IF($AB6=2,$AB5/100,IF($AB6=1,$AB5/10,$AB5))))*IF($AB6=3,1000,IF($AB6=2,100,IF($AB6=1,10,1))))*(-1)^RANDBETWEEN(1,2))) -> 60.1 | AA7: =IF(AA8=1,$V5,$Z5) -> litres | AB7: =IF(AC8=1,MAX(0,$U5+RANDBETWEEN(IF(AB8=7,0,1.00001)*$AA5/10^$AA6,IF(AB8=7,1,2)*$AA5/10^$AA6)*10^$AA6*(-1)^RANDBETWEEN(1,2)),MAX(0,$U5*$AC6+IF(AB8=7,RANDBETWEEN(0,IF($AB6=3,$AB5/1000,IF($AB6=2,$AB5/100,IF($AB6=1,$AB5/10,$AB5))))*IF($AB6=3,1000,IF($AB6=2,100,IF($AB6=1,10,1))),RANDBETWEEN(1.00001*IF($AB6=3,$AB5/1000,IF($AB6=2,$AB5/100,IF($AB6=1,$AB5/10,$AB5))),2*IF($AB6=3,$AB5/1000,IF($AB6=2,$AB5/100,IF($AB6=1,$AB5/10,$AB5))))*IF($AB6=3,1000,IF($AB6=2,100,IF($AB6=1,10,1))))*(-1)^RANDBETWEEN(1,2))) -> 73.4 | AC7: =IF(AC8=1,$V5,$Z5) -> litres | AD7: =IF(AE8=1,MAX(0,$U5+RANDBETWEEN(IF(AD8=7,0,1.00001)*$AA5/10^$AA6,IF(AD8=7,1,2)*$AA5/10^$AA6)*10^$AA6*(-1)^RANDBETWEEN(1,2)),MAX(0,$U5*$AC6+IF(AD8=7,RANDBETWEEN(0,IF($AB6=3,$AB5/1000,IF($AB6=2,$AB5/100,IF($AB6=1,$AB5/10,$AB5))))*IF($AB6=3,1000,IF($AB6=2,100,IF($AB6=1,10,1))),RANDBETWEEN(1.00001*IF($AB6=3,$AB5/1000,IF($AB6=2,$AB5/100,IF($AB6=1,$AB5/10,$AB5))),2*IF($AB6=3,$AB5/1000,IF($AB6=2,$AB5/100,IF($AB6=1,$AB5/10,$AB5))))*IF($AB6=3,1000,IF($AB6=2,100,IF($AB6=1,10,1))))*(-1)^RANDBETWEEN(1,2))) -> 63 | AE7: =IF(AE8=1,$V5,$Z5) -> litres | AF7: =IF(AG8=1,MAX(0,$U5+RANDBETWEEN(IF(AF8=7,0,1.00001)*$AA5/10^$AA6,IF(AF8=7,1,2)*$AA5/10^$AA6)*10^$AA6*(-1)^RANDBETWEEN(1,2)),MAX(0,$U5*$AC6+IF(AF8=7,RANDBETWEEN(0,IF($AB6=3,$AB5/1000,IF($AB6=2,$AB5/100,IF($AB6=1,$AB5/10,$AB5))))*IF($AB6=3,1000,IF($AB6=2,100,IF($AB6=1,10,1))),RANDBETWEEN(1.00001*IF($AB6=3,$AB5/1000,IF($AB6=2,$AB5/100,IF($AB6=1,$AB5/10,$AB5))),2*IF($AB6=3,$AB5/1000,IF($AB6=2,$AB5/100,IF($AB6=1,$AB5/10,$AB5))))*IF($AB6=3,1000,IF($AB6=2,100,IF($AB6=1,10,1))))*(-1)^RANDBETWEEN(1,2))) -> 67.6 | AG7: =IF(AG8=1,$V5,$Z5) -> litres
A8: =IF(COUNTIF($B$1:B8,TRUE)=COUNTIF($B$1:B7,TRUE),"",COUNTIF($B$1:B8,TRUE)) ->  | B8: =Worksheet!$D$26 -> FALSE | C8: =RANDBETWEEN(5,RANDBETWEEN(5,Worksheet!$D$8)) -> 49 | D8: litres | E8: ± | F8: =IF(I8=1,H8*10^RANDBETWEEN(IF(Worksheet!$D$14,-1,0),0),IF(I8=2,H8*10^RANDBETWEEN(RANDBETWEEN(0,2),2),CHOOSE(RANDBETWEEN(1,3),5,10,20))) -> 6 | G8: =IF(I8=1,D8,IF(I8=3,"%","cm³")) -> litres | H8: =RANDBETWEEN(1,MIN(9,C8)) -> 6 | I8: =IF(AND(Worksheet!$D$12,RAND()<0.2),3,IF(RAND()<Worksheet!$D$10/100,1,2)) -> 1 | J8: 6 | K8: =CONCATENATE(" ",D8) -> litres | L8: 6000 | M8: cm³ | V8: =RANDBETWEEN(7,8) -> 8 | W8: =IF(Worksheet!$D$16,RANDBETWEEN(1,2),1) -> 1 | X8: =RANDBETWEEN(7,8) -> 7 | Y8: =IF(Worksheet!$D$16,RANDBETWEEN(1,2),1) -> 1 | Z8: =RANDBETWEEN(7,8) -> 7 | AA8: =IF(Worksheet!$D$16,RANDBETWEEN(1,2),1) -> 1 | AB8: =RANDBETWEEN(7,8) -> 8 | AC8: =IF(Worksheet!$D$16,RANDBETWEEN(1,2),1) -> 1 | AD8: =RANDBETWEEN(7,8) -> 7 | AE8: =IF(Worksheet!$D$16,RANDBETWEEN(1,2),1) -> 1 | AF8: =RANDBETWEEN(7,8) -> 7 | AG8: =IF(Worksheet!$D$16,RANDBETWEEN(1,2),1) -> 1
A9: =IF(COUNTIF($B$1:B9,TRUE)=COUNTIF($B$1:B9,TRUE),"",COUNTIF($B$1:B9,TRUE)) ->  | B9: =Worksheet!$B$28 -> TRUE | C9: =RANDBETWEEN(5,20) -> 15 | D9: °C | E9: ± | F9: =IF(I9=1,H9*10^RANDBETWEEN(IF(Worksheet!$D$14,-1,0),0),IF(I9=2,H9,CHOOSE(RANDBETWEEN(1,3),5,10,20))) -> 9 | G9: =IF(I9=1,D9,IF(I9=3,"%","sec")) -> °C | H9: =RANDBETWEEN(1,MIN(9,C9)) -> 9 | I9: =IF(AND(Worksheet!$D$12,RAND()<0),3,IF(RAND()<Worksheet!$D$10/100,1,2)) -> 1 | J9: =IF(I9=1,F9,IF(I9=2,F9,IF(I9=3,F9/100*C9,""))) -> 9 | K9: =CONCATENATE(" ",D9) -> °C | L9: =IF(I9=1,F9,IF(I9=2,F9,IF(I9=3,F9/100*C9,""))) -> 9 | M9: °C | S9: 3 | T9: =RANDBETWEEN(1,MAX('SYSTEM FORMULAE'!$A$1:$A$1737)) -> 1024 | U9: =IF(RIGHT(TEXT(VLOOKUP(T9,'SYSTEM FORMULAE'!$A$1:$Q$1737,3),"# ##0.###"),1)=".",LEFT(TEXT(VLOOKUP(T9,'SYSTEM FORMULAE'!$A$1:$Q$1737,3),"# ##0.###"),LEN(TEXT(VLOOKUP(T9,'SYSTEM FORMULAE'!$A$1:$Q$1737,3),"# ##0.###"))-1),TEXT(VLOOKUP(T9,'SYSTEM FORMULAE'!$A$1:$Q$1737,3),"# ##0.###")) -> 44 | V9: =VLOOKUP(T9,'SYSTEM FORMULAE'!$A$1:$Q$1737,4) -> m | W9: ± | X9: =IF(RIGHT(TEXT(VLOOKUP(T9,'SYSTEM FORMULAE'!$A$1:$Q$1737,6),"# ##0.###"),1)=".",LEFT(TEXT(VLOOKUP(T9,'SYSTEM FORMULAE'!$A$1:$Q$1737,6),"# ##0.###"),LEN(TEXT(VLOOKUP(T9,'SYSTEM FORMULAE'!$A$1:$Q$1737,6),"# ##0.###"))-1),TEXT(VLOOKUP(T9,'SYSTEM FORMULAE'!$A$1:$Q$1737,6),"# ##0.###")) -> 20 | Y9: =VLOOKUP(T9,'SYSTEM FORMULAE'!$A$1:$Q$1737,7) -> cm | Z9: =VLOOKUP(T9,'SYSTEM FORMULAE'!$A$1:$Q$1737,13) -> cm | AA9: =VLOOKUP(T9,'SYSTEM FORMULAE'!$A$1:$Q$1737,10) -> 0.2 | AB9: =VLOOKUP(T9,'SYSTEM FORMULAE'!$A$1:$Q$1737,12) -> 20 | AD9: =U9-AA9 -> 43.8 | AE9: =V9 -> m | AF9: =U9+AA9 -> 44.2 | AG9: =V9 -> m
A10: =COUNTIF($B$1:B10,TRUE) -> 8 | B10: =Worksheet!$B$20 -> TRUE | C10: =RANDBETWEEN(5,RANDBETWEEN(5,Worksheet!$D$8)) -> 35 | D10: cm | E10: ± | F10: =IF(I10=1,H10*10^RANDBETWEEN(IF(Worksheet!$D$14,-1,0),0),IF(I10=2,H10,CHOOSE(RANDBETWEEN(1,3),5,10,20))) -> 20 | G10: =IF(I10=1,D10,IF(I10=3,"%","mm")) -> % | H10: =RANDBETWEEN(1,MIN(9,C10)) -> 1 | I10: =IF(AND(Worksheet!$D$12,RAND()<0.2),3,IF(RAND()<Worksheet!$D$10/100,1,2)) -> 3 | J10: =IF(I10=1,F10,IF(I10=2,F10/10,IF(I10=3,F10/100*C10,""))) -> 7 | K10: =CONCATENATE(" ",D10) -> cm | L10: =IF(I10=1,F10*10,IF(I10=2,F10,IF(I10=3,F10/100*C10*10,""))) -> 70 | M10: mm | AA10: =IF(AA9=INT(AA9),IF(AA9/1000=INT(AA9/1000),3,IF(AA9/100=INT(AA9/100),2,IF(AA9/10=INT(AA9/10),1,0))),INT(LOG($AA9-INT($AA9)))) -> -1 | AB10: =IF(AB9=INT(AB9),IF(AB9/1000=INT(AB9/1000),3,IF(AB9/100=INT(AB9/100),2,IF(AB9/10=INT(AB9/10),1,0))),INT(LOG($AA9-INT($AA9)))) -> 1 | AC10: =IF(Z9="cm",100,IF(Z9="°C",1,IF(AND(V9="cm",Z9="mm"),10,1000))) -> 100
A11: =IF(COUNTIF($B$1:B11,TRUE)=COUNTIF($B$1:B10,TRUE),"",COUNTIF($B$1:B11,TRUE)) -> 9 | B11: =Worksheet!$B$22 -> TRUE | C11: =RANDBETWEEN(5,RANDBETWEEN(5,Worksheet!$D$8)) -> 8 | D11: m | E11: ± | F11: =IF(I11=1,H11*10^RANDBETWEEN(IF(Worksheet!$D$14,-1,0),0),IF(I11=2,H11*10^RANDBETWEEN(RANDBETWEEN(0,1),1),CHOOSE(RANDBETWEEN(1,3),5,10,20))) -> 0.8 | G11: =IF(I11=1,D11,IF(I11=3,"%","cm")) -> m | H11: =RANDBETWEEN(1,MIN(9,C11)) -> 8 | I11: =IF(AND(Worksheet!$D$12,RAND()<0.2),3,IF(RAND()<Worksheet!$D$10/100,1,2)) -> 1 | J11: =IF(I11=1,F11,IF(I11=2,F11/100,IF(I11=3,F11/100*C11,""))) -> 0.8 | K11: =CONCATENATE(" ",D11) -> m | L11: =IF(I11=1,F11*100,IF(I11=2,F11,IF(I11=3,F11/100*C11*100,""))) -> 80 | M11: cm | V11: =IF(W12=1,MAX(0,$U9+RANDBETWEEN(IF(V12=7,0,1.00001)*$AA9/10^$AA10,IF(V12=7,1,2)*$AA9/10^$AA10)*10^$AA10*(-1)^RANDBETWEEN(1,2)),MAX(0,$U9*$AC10+IF(V12=7,RANDBETWEEN(0,IF($AB10=3,$AB9/1000,IF($AB10=2,$AB9/100,IF($AB10=1,$AB9/10,$AB9))))*IF($AB10=3,1000,IF($AB10=2,100,IF($AB10=1,10,1))),RANDBETWEEN(1.00001*IF($AB10=3,$AB9/1000,IF($AB10=2,$AB9/100,IF($AB10=1,$AB9/10,$AB9))),2*IF($AB10=3,$AB9/1000,IF($AB10=2,$AB9/100,IF($AB10=1,$AB9/10,$AB9))))*IF($AB10=3,1000,IF($AB10=2,100,IF($AB10=1,10,1))))*(-1)^RANDBETWEEN(1,2))) -> 44.4 | W11: =IF(W12=1,$V9,$Z9) -> m | X11: =IF(Y12=1,MAX(0,$U9+RANDBETWEEN(IF(X12=7,0,1.00001)*$AA9/10^$AA10,IF(X12=7,1,2)*$AA9/10^$AA10)*10^$AA10*(-1)^RANDBETWEEN(1,2)),MAX(0,$U9*$AC10+IF(X12=7,RANDBETWEEN(0,IF($AB10=3,$AB9/1000,IF($AB10=2,$AB9/100,IF($AB10=1,$AB9/10,$AB9))))*IF($AB10=3,1000,IF($AB10=2,100,IF($AB10=1,10,1))),RANDBETWEEN(1.00001*IF($AB10=3,$AB9/1000,IF($AB10=2,$AB9/100,IF($AB10=1,$AB9/10,$AB9))),2*IF($AB10=3,$AB9/1000,IF($AB10=2,$AB9/100,IF($AB10=1,$AB9/10,$AB9))))*IF($AB10=3,1000,IF($AB10=2,100,IF($AB10=1,10,1))))*(-1)^RANDBETWEEN(1,2))) -> 44.2 | Y11: =IF(Y12=1,$V9,$Z9) -> m | Z11: =IF(AA12=1,MAX(0,$U9+RANDBETWEEN(IF(Z12=7,0,1.00001)*$AA9/10^$AA10,IF(Z12=7,1,2)*$AA9/10^$AA10)*10^$AA10*(-1)^RANDBETWEEN(1,2)),MAX(0,$U9*$AC10+IF(Z12=7,RANDBETWEEN(0,IF($AB10=3,$AB9/1000,IF($AB10=2,$AB9/100,IF($AB10=1,$AB9/10,$AB9))))*IF($AB10=3,1000,IF($AB10=2,100,IF($AB10=1,10,1))),RANDBETWEEN(1.00001*IF($AB10=3,$AB9/1000,IF($AB10=2,$AB9/100,IF($AB10=1,$AB9/10,$AB9))),2*IF($AB10=3,$AB9/1000,IF($AB10=2,$AB9/100,IF($AB10=1,$AB9/10,$AB9))))*IF($AB10=3,1000,IF($AB10=2,100,IF($AB10=1,10,1))))*(-1)^RANDBETWEEN(1,2))) -> 44.2 | AA11: =IF(AA12=1,$V9,$Z9) -> m | AB11: =IF(AC12=1,MAX(0,$U9+RANDBETWEEN(IF(AB12=7,0,1.00001)*$AA9/10^$AA10,IF(AB12=7,1,2)*$AA9/10^$AA10)*10^$AA10*(-1)^RANDBETWEEN(1,2)),MAX(0,$U9*$AC10+IF(AB12=7,RANDBETWEEN(0,IF($AB10=3,$AB9/1000,IF($AB10=2,$AB9/100,IF($AB10=1,$AB9/10,$AB9))))*IF($AB10=3,1000,IF($AB10=2,100,IF($AB10=1,10,1))),RANDBETWEEN(1.00001*IF($AB10=3,$AB9/1000,IF($AB10=2,$AB9/100,IF($AB10=1,$AB9/10,$AB9))),2*IF($AB10=3,$AB9/1000,IF($AB10=2,$AB9/100,IF($AB10=1,$AB9/10,$AB9))))*IF($AB10=3,1000,IF($AB10=2,100,IF($AB10=1,10,1))))*(-1)^RANDBETWEEN(1,2))) -> 44.1 | AC11: =IF(AC12=1,$V9,$Z9) -> m | AD11: =IF(AE12=1,MAX(0,$U9+RANDBETWEEN(IF(AD12=7,0,1.00001)*$AA9/10^$AA10,IF(AD12=7,1,2)*$AA9/10^$AA10)*10^$AA10*(-1)^RANDBETWEEN(1,2)),MAX(0,$U9*$AC10+IF(AD12=7,RANDBETWEEN(0,IF($AB10=3,$AB9/1000,IF($AB10=2,$AB9/100,IF($AB10=1,$AB9/10,$AB9))))*IF($AB10=3,1000,IF($AB10=2,100,IF($AB10=1,10,1))),RANDBETWEEN(1.00001*IF($AB10=3,$AB9/1000,IF($AB10=2,$AB9/100,IF($AB10=1,$AB9/10,$AB9))),2*IF($AB10=3,$AB9/1000,IF($AB10=2,$AB9/100,IF($AB10=1,$AB9/10,$AB9))))*IF($AB10=3,1000,IF($AB10=2,100,IF($AB10=1,10,1))))*(-1)^RANDBETWEEN(1,2))) -> 44.3 | AE11: =IF(AE12=1,$V9,$Z9) -> m | AF11: =IF(AG12=1,MAX(0,$U9+RANDBETWEEN(IF(AF12=7,0,1.00001)*$AA9/10^$AA10,IF(AF12=7,1,2)*$AA9/10^$AA10)*10^$AA10*(-1)^RANDBETWEEN(1,2)),MAX(0,$U9*$AC10+IF(AF12=7,RANDBETWEEN(0,IF($AB10=3,$AB9/1000,IF($AB10=2,$AB9/100,IF($AB10=1,$AB9/10,$AB9))))*IF($AB10=3,1000,IF($AB10=2,100,IF($AB10=1,10,1))),RANDBETWEEN(1.00001*IF($AB10=3,$AB9/1000,IF($AB10=2,$AB9/100,IF($AB10=1,$AB9/10,$AB9))),2*IF($AB10=3,$AB9/1000,IF($AB10=2,$AB9/100,IF($AB10=1,$AB9/10,$AB9))))*IF($AB10=3,1000,IF($AB10=2,100,IF($AB10=1,10,1))))*(-1)^RANDBETWEEN(1,2))) -> 44.4 | AG11: =IF(AG12=1,$V9,$Z9) -> m
A12: =IF(COUNTIF($B$1:B12,TRUE)=COUNTIF($B$1:B11,TRUE),"",COUNTIF($B$1:B12,TRUE)) -> 10 | B12: =Worksheet!$B$24 -> TRUE | C12: =RANDBETWEEN(5,RANDBETWEEN(5,Worksheet!$D$8)) -> 5 | D12: km | E12: ± | F12: =IF(I12=1,H12*10^RANDBETWEEN(IF(Worksheet!$D$14,-1,0),0),IF(I12=2,H12*10^RANDBETWEEN(RANDBETWEEN(0,2),2),CHOOSE(RANDBETWEEN(1,3),5,10,20))) -> 0.1 | G12: =IF(I12=1,D12,IF(I12=3,"%","m")) -> km | H12: 1 | I12: =IF(AND(Worksheet!$D$12,RAND()<0.2),3,IF(RAND()<Worksheet!$D$10/100,1,2)) -> 1 | J12: =IF(I12=1,F12,IF(I12=2,F12/1000,IF(I12=3,F12/100*C12,""))) -> 0.1 | K12: km | L12: =IF(I12=1,F12*1000,IF(I12=2,F12,IF(I12=3,F12/100*C12*1000,""))) -> 100 | M12: m | V12: =RANDBETWEEN(7,8) -> 8 | W12: =IF(Worksheet!$D$16,RANDBETWEEN(1,2),1) -> 1 | X12: =RANDBETWEEN(7,8) -> 7 | Y12: =IF(Worksheet!$D$16,RANDBETWEEN(1,2),1) -> 1 | Z12: =RANDBETWEEN(7,8) -> 7 | AA12: =IF(Worksheet!$D$16,RANDBETWEEN(1,2),1) -> 1 | AB12: =RANDBETWEEN(7,8) -> 7 | AC12: =IF(Worksheet!$D$16,RANDBETWEEN(1,2),1) -> 1 | AD12: =RANDBETWEEN(7,8) -> 8 | AE12: =IF(Worksheet!$D$16,RANDBETWEEN(1,2),1) -> 1 | AF12: =RANDBETWEEN(7,8) -> 8 | AG12: =IF(Worksheet!$D$16,RANDBETWEEN(1,2),1) -> 1
A13: =IF(COUNTIF($B$1:B13,TRUE)=COUNTIF($B$1:B12,TRUE),"",COUNTIF($B$1:B13,TRUE)) ->  | B13: =Worksheet!$B$26 -> FALSE | C13: =RANDBETWEEN(5,RANDBETWEEN(5,Worksheet!$D$8)) -> 79 | D13: m | E13: ± | F13: =IF(I13=1,H13*10^RANDBETWEEN(IF(Worksheet!$D$14,-1,0),0),IF(I13=2,H13*10^RANDBETWEEN(RANDBETWEEN(0,2),2),CHOOSE(RANDBETWEEN(1,3),5,10,20))) -> 0.7 | G13: =IF(I13=1,D13,IF(I13=3,"%","mm")) -> m | H13: 7 | I13: =IF(AND(Worksheet!$D$12,RAND()<0.2),3,IF(RAND()<Worksheet!$D$10/100,1,2)) -> 1 | J13: 0.7 | K13: m | L13: 700 | M13: mm | S13: 4 | T13: =RANDBETWEEN(1,MAX('SYSTEM FORMULAE'!$A$1:$A$1737)) -> 1114 | U13: =IF(RIGHT(TEXT(VLOOKUP(T13,'SYSTEM FORMULAE'!$A$1:$Q$1737,3),"# ##0.###"),1)=".",LEFT(TEXT(VLOOKUP(T13,'SYSTEM FORMULAE'!$A$1:$Q$1737,3),"# ##0.###"),LEN(TEXT(VLOOKUP(T13,'SYSTEM FORMULAE'!$A$1:$Q$1737,3),"# ##0.###"))-1),TEXT(VLOOKUP(T13,'SYSTEM FORMULAE'!$A$1:$Q$1737,3),"# ##0.###")) -> 40 | V13: =VLOOKUP(T13,'SYSTEM FORMULAE'!$A$1:$Q$1737,4) -> cm | W13: ± | X13: =IF(RIGHT(TEXT(VLOOKUP(T13,'SYSTEM FORMULAE'!$A$1:$Q$1737,6),"# ##0.###"),1)=".",LEFT(TEXT(VLOOKUP(T13,'SYSTEM FORMULAE'!$A$1:$Q$1737,6),"# ##0.###"),LEN(TEXT(VLOOKUP(T13,'SYSTEM FORMULAE'!$A$1:$Q$1737,6),"# ##0.###"))-1),TEXT(VLOOKUP(T13,'SYSTEM FORMULAE'!$A$1:$Q$1737,6),"# ##0.###")) -> 0.3 | Y13: =VLOOKUP(T13,'SYSTEM FORMULAE'!$A$1:$Q$1737,7) -> cm | Z13: =VLOOKUP(T13,'SYSTEM FORMULAE'!$A$1:$Q$1737,13) -> mm | AA13: =VLOOKUP(T13,'SYSTEM FORMULAE'!$A$1:$Q$1737,10) -> 0.3 | AB13: =VLOOKUP(T13,'SYSTEM FORMULAE'!$A$1:$Q$1737,12) -> 3 | AD13: =U13-AA13 -> 39.7 | AE13: =V13 -> cm | AF13: =U13+AA13 -> 40.3 | AG13: =V13 -> cm
A14: =IF(COUNTIF($B$1:B14,TRUE)=COUNTIF($B$1:B13,TRUE),"",COUNTIF($B$1:B14,TRUE)) -> 11 | B14: =Worksheet!$D$20 -> TRUE | C14: =RANDBETWEEN(5,RANDBETWEEN(5,Worksheet!$D$8)) -> 22 | D14: kg | E14: ± | F14: =IF(I14=1,H14*10^RANDBETWEEN(IF(Worksheet!$D$14,-1,0),0),IF(I14=2,H14*10^RANDBETWEEN(RANDBETWEEN(0,2),2),CHOOSE(RANDBETWEEN(1,3),5,10,20))) -> 40 | G14: =IF(I14=1,D14,IF(I14=3,"%","g")) -> g | H14: =RANDBETWEEN(1,MIN(9,C14)) -> 4 | I14: =IF(AND(Worksheet!$D$12,RAND()<0.2),3,IF(RAND()<Worksheet!$D$10/100,1,2)) -> 2 | J14: 0.04 | K14: =CONCATENATE(" ",D14) -> kg | L14: 40 | M14: g | AA14: =IF(AA13=INT(AA13),IF(AA13/1000=INT(AA13/1000),3,IF(AA13/100=INT(AA13/100),2,IF(AA13/10=INT(AA13/10),1,0))),INT(LOG($AA13-INT($AA13)))) -> -1 | AB14: =IF(AB13=INT(AB13),IF(AB13/1000=INT(AB13/1000),3,IF(AB13/100=INT(AB13/100),2,IF(AB13/10=INT(AB13/10),1,0))),INT(LOG($AA13-INT($AA13)))) -> 0 | AC14: =IF(Z13="cm",100,IF(Z13="°C",1,IF(AND(V13="cm",Z13="mm"),10,1000))) -> 10
A15: =IF(COUNTIF($B$1:B15,TRUE)=COUNTIF($B$1:B14,TRUE),"",COUNTIF($B$1:B15,TRUE)) -> 12 | B15: =Worksheet!$D$22 -> TRUE | C15: =RANDBETWEEN(5,RANDBETWEEN(5,Worksheet!$D$8)) -> 7 | D15: tonnes | E15: ± | F15: =IF(I15=1,H15*10^RANDBETWEEN(IF(Worksheet!$D$14,-1,0),0),IF(I15=2,H15*10^RANDBETWEEN(RANDBETWEEN(0,2),2),CHOOSE(RANDBETWEEN(1,3),5,10,20))) -> 10 | G15: =IF(I15=1,D15,IF(I15=3,"%","kg")) -> % | H15: =RANDBETWEEN(1,MIN(9,C15)) -> 7 | I15: =IF(AND(Worksheet!$D$12,RAND()<0.2),3,IF(RAND()<Worksheet!$D$10/100,1,2)) -> 3 | J15: 0.7 | K15: =CONCATENATE(" ",D15) -> tonnes | L15: 700 | M15: kg | V15: =IF(W16=1,MAX(0,$U13+RANDBETWEEN(IF(V16=7,0,1.00001)*$AA13/10^$AA14,IF(V16=7,1,2)*$AA13/10^$AA14)*10^$AA14*(-1)^RANDBETWEEN(1,2)),MAX(0,$U13*$AC14+IF(V16=7,RANDBETWEEN(0,IF($AB14=3,$AB13/1000,IF($AB14=2,$AB13/100,IF($AB14=1,$AB13/10,$AB13))))*IF($AB14=3,1000,IF($AB14=2,100,IF($AB14=1,10,1))),RANDBETWEEN(1.00001*IF($AB14=3,$AB13/1000,IF($AB14=2,$AB13/100,IF($AB14=1,$AB13/10,$AB13))),2*IF($AB14=3,$AB13/1000,IF($AB14=2,$AB13/100,IF($AB14=1,$AB13/10,$AB13))))*IF($AB14=3,1000,IF($AB14=2,100,IF($AB14=1,10,1))))*(-1)^RANDBETWEEN(1,2))) -> 40.6 | W15: =IF(W16=1,$V13,$Z13) -> cm | X15: =IF(Y16=1,MAX(0,$U13+RANDBETWEEN(IF(X16=7,0,1.00001)*$AA13/10^$AA14,IF(X16=7,1,2)*$AA13/10^$AA14)*10^$AA14*(-1)^RANDBETWEEN(1,2)),MAX(0,$U13*$AC14+IF(X16=7,RANDBETWEEN(0,IF($AB14=3,$AB13/1000,IF($AB14=2,$AB13/100,IF($AB14=1,$AB13/10,$AB13))))*IF($AB14=3,1000,IF($AB14=2,100,IF($AB14=1,10,1))),RANDBETWEEN(1.00001*IF($AB14=3,$AB13/1000,IF($AB14=2,$AB13/100,IF($AB14=1,$AB13/10,$AB13))),2*IF($AB14=3,$AB13/1000,IF($AB14=2,$AB13/100,IF($AB14=1,$AB13/10,$AB13))))*IF($AB14=3,1000,IF($AB14=2,100,IF($AB14=1,10,1))))*(-1)^RANDBETWEEN(1,2))) -> 40.2 | Y15: =IF(Y16=1,$V13,$Z13) -> cm | Z15: =IF(AA16=1,MAX(0,$U13+RANDBETWEEN(IF(Z16=7,0,1.00001)*$AA13/10^$AA14,IF(Z16=7,1,2)*$AA13/10^$AA14)*10^$AA14*(-1)^RANDBETWEEN(1,2)),MAX(0,$U13*$AC14+IF(Z16=7,RANDBETWEEN(0,IF($AB14=3,$AB13/1000,IF($AB14=2,$AB13/100,IF($AB14=1,$AB13/10,$AB13))))*IF($AB14=3,1000,IF($AB14=2,100,IF($AB14=1,10,1))),RANDBETWEEN(1.00001*IF($AB14=3,$AB13/1000,IF($AB14=2,$AB13/100,IF($AB14=1,$AB13/10,$AB13))),2*IF($AB14=3,$AB13/1000,IF($AB14=2,$AB13/100,IF($AB14=1,$AB13/10,$AB13))))*IF($AB14=3,1000,IF($AB14=2,100,IF($AB14=1,10,1))))*(-1)^RANDBETWEEN(1,2))) -> 40.4 | AA15: =IF(AA16=1,$V13,$Z13) -> cm | AB15: =IF(AC16=1,MAX(0,$U13+RANDBETWEEN(IF(AB16=7,0,1.00001)*$AA13/10^$AA14,IF(AB16=7,1,2)*$AA13/10^$AA14)*10^$AA14*(-1)^RANDBETWEEN(1,2)),MAX(0,$U13*$AC14+IF(AB16=7,RANDBETWEEN(0,IF($AB14=3,$AB13/1000,IF($AB14=2,$AB13/100,IF($AB14=1,$AB13/10,$AB13))))*IF($AB14=3,1000,IF($AB14=2,100,IF($AB14=1,10,1))),RANDBETWEEN(1.00001*IF($AB14=3,$AB13/1000,IF($AB14=2,$AB13/100,IF($AB14=1,$AB13/10,$AB13))),2*IF($AB14=3,$AB13/1000,IF($AB14=2,$AB13/100,IF($AB14=1,$AB13/10,$AB13))))*IF($AB14=3,1000,IF($AB14=2,100,IF($AB14=1,10,1))))*(-1)^RANDBETWEEN(1,2))) -> 40 | AC15: =IF(AC16=1,$V13,$Z13) -> cm | AD15: =IF(AE16=1,MAX(0,$U13+RANDBETWEEN(IF(AD16=7,0,1.00001)*$AA13/10^$AA14,IF(AD16=7,1,2)*$AA13/10^$AA14)*10^$AA14*(-1)^RANDBETWEEN(1,2)),MAX(0,$U13*$AC14+IF(AD16=7,RANDBETWEEN(0,IF($AB14=3,$AB13/1000,IF($AB14=2,$AB13/100,IF($AB14=1,$AB13/10,$AB13))))*IF($AB14=3,1000,IF($AB14=2,100,IF($AB14=1,10,1))),RANDBETWEEN(1.00001*IF($AB14=3,$AB13/1000,IF($AB14=2,$AB13/100,IF($AB14=1,$AB13/10,$AB13))),2*IF($AB14=3,$AB13/1000,IF($AB14=2,$AB13/100,IF($AB14=1,$AB13/10,$AB13))))*IF($AB14=3,1000,IF($AB14=2,100,IF($AB14=1,10,1))))*(-1)^RANDBETWEEN(1,2))) -> 40.5 | AE15: =IF(AE16=1,$V13,$Z13) -> cm | AF15: =IF(AG16=1,MAX(0,$U13+RANDBETWEEN(IF(AF16=7,0,1.00001)*$AA13/10^$AA14,IF(AF16=7,1,2)*$AA13/10^$AA14)*10^$AA14*(-1)^RANDBETWEEN(1,2)),MAX(0,$U13*$AC14+IF(AF16=7,RANDBETWEEN(0,IF($AB14=3,$AB13/1000,IF($AB14=2,$AB13/100,IF($AB14=1,$AB13/10,$AB13))))*IF($AB14=3,1000,IF($AB14=2,100,IF($AB14=1,10,1))),RANDBETWEEN(1.00001*IF($AB14=3,$AB13/1000,IF($AB14=2,$AB13/100,IF($AB14=1,$AB13/10,$AB13))),2*IF($AB14=3,$AB13/1000,IF($AB14=2,$AB13/100,IF($AB14=1,$AB13/10,$AB13))))*IF($AB14=3,1000,IF($AB14=2,100,IF($AB14=1,10,1))))*(-1)^RANDBETWEEN(1,2))) -> 39.5 | AG15: =IF(AG16=1,$V13,$Z13) -> cm
A16: =IF(COUNTIF($B$1:B16,TRUE)=COUNTIF($B$1:B15,TRUE),"",COUNTIF($B$1:B16,TRUE)) -> 13 | B16: =Worksheet!$D$24 -> TRUE | C16: =RANDBETWEEN(5,RANDBETWEEN(5,Worksheet!$D$8)) -> 23 | D16: litres | E16: ± | F16: =IF(I16=1,H16*10^RANDBETWEEN(IF(Worksheet!$D$14,-1,0),0),IF(I16=2,H16*10^RANDBETWEEN(RANDBETWEEN(0,2),2),CHOOSE(RANDBETWEEN(1,3),5,10,20))) -> 10 | G16: =IF(I16=1,D16,IF(I16=3,"%","ml")) -> % | H16: =RANDBETWEEN(1,MIN(9,C16)) -> 4 | I16: =IF(AND(Worksheet!$D$12,RAND()<0.2),3,IF(RAND()<Worksheet!$D$10/100,1,2)) -> 3 | J16: 2.3 | K16: =CONCATENATE(" ",D16) -> litres | L16: 2300 | M16: ml | V16: =RANDBETWEEN(7,8) -> 8 | W16: =IF(Worksheet!$D$16,RANDBETWEEN(1,2),1) -> 1 | X16: =RANDBETWEEN(7,8) -> 7 | Y16: =IF(Worksheet!$D$16,RANDBETWEEN(1,2),1) -> 1 | Z16: =RANDBETWEEN(7,8) -> 8 | AA16: =IF(Worksheet!$D$16,RANDBETWEEN(1,2),1) -> 1 | AB16: =RANDBETWEEN(7,8) -> 7 | AC16: =IF(Worksheet!$D$16,RANDBETWEEN(1,2),1) -> 1 | AD16: =RANDBETWEEN(7,8) -> 8 | AE16: =IF(Worksheet!$D$16,RANDBETWEEN(1,2),1) -> 1 | AF16: =RANDBETWEEN(7,8) -> 8 | AG16: =IF(Worksheet!$D$16,RANDBETWEEN(1,2),1) -> 1
A17: =IF(COUNTIF($B$1:B17,TRUE)=COUNTIF($B$1:B16,TRUE),"",COUNTIF($B$1:B17,TRUE)) ->  | B17: =Worksheet!$D$26 -> FALSE | C17: =RANDBETWEEN(5,RANDBETWEEN(5,Worksheet!$D$8)) -> 116 | D17: litres | E17: ± | F17: =IF(I17=1,H17*10^RANDBETWEEN(IF(Worksheet!$D$14,-1,0),0),IF(I17=2,H17*10^RANDBETWEEN(RANDBETWEEN(0,2),2),CHOOSE(RANDBETWEEN(1,3),5,10,20))) -> 0.7 | G17: =IF(I17=1,D17,IF(I17=3,"%","cm³")) -> litres | H17: =RANDBETWEEN(1,MIN(9,C17)) -> 7 | I17: =IF(AND(Worksheet!$D$12,RAND()<0.2),3,IF(RAND()<Worksheet!$D$10/100,1,2)) -> 1 | J17: 0.7 | K17: =CONCATENATE(" ",D17) -> litres | L17: 700 | M17: cm³ | S17: 5 | T17: =RANDBETWEEN(1,MAX('SYSTEM FORMULAE'!$A$1:$A$1737)) -> 337 | U17: =IF(RIGHT(TEXT(VLOOKUP(T17,'SYSTEM FORMULAE'!$A$1:$Q$1737,3),"# ##0.###"),1)=".",LEFT(TEXT(VLOOKUP(T17,'SYSTEM FORMULAE'!$A$1:$Q$1737,3),"# ##0.###"),LEN(TEXT(VLOOKUP(T17,'SYSTEM FORMULAE'!$A$1:$Q$1737,3),"# ##0.###"))-1),TEXT(VLOOKUP(T17,'SYSTEM FORMULAE'!$A$1:$Q$1737,3),"# ##0.###")) -> 16 | V17: =VLOOKUP(T17,'SYSTEM FORMULAE'!$A$1:$Q$1737,4) -> cm | W17: ± | X17: =IF(RIGHT(TEXT(VLOOKUP(T17,'SYSTEM FORMULAE'!$A$1:$Q$1737,6),"# ##0.###"),1)=".",LEFT(TEXT(VLOOKUP(T17,'SYSTEM FORMULAE'!$A$1:$Q$1737,6),"# ##0.###"),LEN(TEXT(VLOOKUP(T17,'SYSTEM FORMULAE'!$A$1:$Q$1737,6),"# ##0.###"))-1),TEXT(VLOOKUP(T17,'SYSTEM FORMULAE'!$A$1:$Q$1737,6),"# ##0.###")) -> 0.7 | Y17: =VLOOKUP(T17,'SYSTEM FORMULAE'!$A$1:$Q$1737,7) -> cm | Z17: =VLOOKUP(T17,'SYSTEM FORMULAE'!$A$1:$Q$1737,13) -> mm | AA17: =VLOOKUP(T17,'SYSTEM FORMULAE'!$A$1:$Q$1737,10) -> 0.7 | AB17: =VLOOKUP(T17,'SYSTEM FORMULAE'!$A$1:$Q$1737,12) -> 7 | AD17: =U17-AA17 -> 15.3 | AE17: =V17 -> cm | AF17: =U17+AA17 -> 16.7 | AG17: =V17 -> cm
A18: =IF(COUNTIF($B$1:B18,TRUE)=COUNTIF($B$1:B18,TRUE),"",COUNTIF($B$1:B18,TRUE)) ->  | B18: =Worksheet!$B$28 -> TRUE | C18: =RANDBETWEEN(5,20) -> 7 | D18: °C | E18: ± | F18: =IF(I18=1,H18*10^RANDBETWEEN(IF(Worksheet!$D$14,-1,0),0),IF(I18=2,H18,CHOOSE(RANDBETWEEN(1,3),5,10,20))) -> 3 | G18: =IF(I18=1,D18,IF(I18=3,"%","sec")) -> °C | H18: =RANDBETWEEN(1,MIN(9,C18)) -> 3 | I18: =IF(AND(Worksheet!$D$12,RAND()<0),3,IF(RAND()<Worksheet!$D$10/100,1,2)) -> 1 | J18: =IF(I18=1,F18,IF(I18=2,F18,IF(I18=3,F18/100*C18,""))) -> 3 | K18: =CONCATENATE(" ",D18) -> °C | L18: =IF(I18=1,F18,IF(I18=2,F18,IF(I18=3,F18/100*C18,""))) -> 3 | M18: °C | AA18: =IF(AA17=INT(AA17),IF(AA17/1000=INT(AA17/1000),3,IF(AA17/100=INT(AA17/100),2,IF(AA17/10=INT(AA17/10),1,0))),INT(LOG($AA17-INT($AA17)))) -> -1 | AB18: =IF(AB17=INT(AB17),IF(AB17/1000=INT(AB17/1000),3,IF(AB17/100=INT(AB17/100),2,IF(AB17/10=INT(AB17/10),1,0))),INT(LOG($AA17-INT($AA17)))) -> 0 | AC18: =IF(Z17="cm",100,IF(Z17="°C",1,IF(AND(V17="cm",Z17="mm"),10,1000))) -> 10
A19: =COUNTIF($B$1:B19,TRUE) -> 15 | B19: =Worksheet!$B$20 -> TRUE | C19: =RANDBETWEEN(5,RANDBETWEEN(5,Worksheet!$D$8)) -> 80 | D19: cm | E19: ± | F19: =IF(I19=1,H19*10^RANDBETWEEN(IF(Worksheet!$D$14,-1,0),0),IF(I19=2,H19,CHOOSE(RANDBETWEEN(1,3),5,10,20))) -> 10 | G19: =IF(I19=1,D19,IF(I19=3,"%","mm")) -> % | H19: =RANDBETWEEN(1,MIN(9,C19)) -> 3 | I19: =IF(AND(Worksheet!$D$12,RAND()<0.2),3,IF(RAND()<Worksheet!$D$10/100,1,2)) -> 3 | J19: =IF(I19=1,F19,IF(I19=2,F19/10,IF(I19=3,F19/100*C19,""))) -> 8 | K19: =CONCATENATE(" ",D19) -> cm | L19: =IF(I19=1,F19*10,IF(I19=2,F19,IF(I19=3,F19/100*C19*10,""))) -> 80 | M19: mm | V19: =IF(W20=1,MAX(0,$U17+RANDBETWEEN(IF(V20=7,0,1.00001)*$AA17/10^$AA18,IF(V20=7,1,2)*$AA17/10^$AA18)*10^$AA18*(-1)^RANDBETWEEN(1,2)),MAX(0,$U17*$AC18+IF(V20=7,RANDBETWEEN(0,IF($AB18=3,$AB17/1000,IF($AB18=2,$AB17/100,IF($AB18=1,$AB17/10,$AB17))))*IF($AB18=3,1000,IF($AB18=2,100,IF($AB18=1,10,1))),RANDBETWEEN(1.00001*IF($AB18=3,$AB17/1000,IF($AB18=2,$AB17/100,IF($AB18=1,$AB17/10,$AB17))),2*IF($AB18=3,$AB17/1000,IF($AB18=2,$AB17/100,IF($AB18=1,$AB17/10,$AB17))))*IF($AB18=3,1000,IF($AB18=2,100,IF($AB18=1,10,1))))*(-1)^RANDBETWEEN(1,2))) -> 15.2 | W19: =IF(W20=1,$V17,$Z17) -> cm | X19: =IF(Y20=1,MAX(0,$U17+RANDBETWEEN(IF(X20=7,0,1.00001)*$AA17/10^$AA18,IF(X20=7,1,2)*$AA17/10^$AA18)*10^$AA18*(-1)^RANDBETWEEN(1,2)),MAX(0,$U17*$AC18+IF(X20=7,RANDBETWEEN(0,IF($AB18=3,$AB17/1000,IF($AB18=2,$AB17/100,IF($AB18=1,$AB17/10,$AB17))))*IF($AB18=3,1000,IF($AB18=2,100,IF($AB18=1,10,1))),RANDBETWEEN(1.00001*IF($AB18=3,$AB17/1000,IF($AB18=2,$AB17/100,IF($AB18=1,$AB17/10,$AB17))),2*IF($AB18=3,$AB17/1000,IF($AB18=2,$AB17/100,IF($AB18=1,$AB17/10,$AB17))))*IF($AB18=3,1000,IF($AB18=2,100,IF($AB18=1,10,1))))*(-1)^RANDBETWEEN(1,2))) -> 14.7 | Y19: =IF(Y20=1,$V17,$Z17) -> cm | Z19: =IF(AA20=1,MAX(0,$U17+RANDBETWEEN(IF(Z20=7,0,1.00001)*$AA17/10^$AA18,IF(Z20=7,1,2)*$AA17/10^$AA18)*10^$AA18*(-1)^RANDBETWEEN(1,2)),MAX(0,$U17*$AC18+IF(Z20=7,RANDBETWEEN(0,IF($AB18=3,$AB17/1000,IF($AB18=2,$AB17/100,IF($AB18=1,$AB17/10,$AB17))))*IF($AB18=3,1000,IF($AB18=2,100,IF($AB18=1,10,1))),RANDBETWEEN(1.00001*IF($AB18=3,$AB17/1000,IF($AB18=2,$AB17/100,IF($AB18=1,$AB17/10,$AB17))),2*IF($AB18=3,$AB17/1000,IF($AB18=2,$AB17/100,IF($AB18=1,$AB17/10,$AB17))))*IF($AB18=3,1000,IF($AB18=2,100,IF($AB18=1,10,1))))*(-1)^RANDBETWEEN(1,2))) -> 16.6 | AA19: =IF(AA20=1,$V17,$Z17) -> cm | AB19: =IF(AC20=1,MAX(0,$U17+RANDBETWEEN(IF(AB20=7,0,1.00001)*$AA17/10^$AA18,IF(AB20=7,1,2)*$AA17/10^$AA18)*10^$AA18*(-1)^RANDBETWEEN(1,2)),MAX(0,$U17*$AC18+IF(AB20=7,RANDBETWEEN(0,IF($AB18=3,$AB17/1000,IF($AB18=2,$AB17/100,IF($AB18=1,$AB17/10,$AB17))))*IF($AB18=3,1000,IF($AB18=2,100,IF($AB18=1,10,1))),RANDBETWEEN(1.00001*IF($AB18=3,$AB17/1000,IF($AB18=2,$AB17/100,IF($AB18=1,$AB17/10,$AB17))),2*IF($AB18=3,$AB17/1000,IF($AB18=2,$AB17/100,IF($AB18=1,$AB17/10,$AB17))))*IF($AB18=3,1000,IF($AB18=2,100,IF($AB18=1,10,1))))*(-1)^RANDBETWEEN(1,2))) -> 15.3 | AC19: =IF(AC20=1,$V17,$Z17) -> cm | AD19: =IF(AE20=1,MAX(0,$U17+RANDBETWEEN(IF(AD20=7,0,1.00001)*$AA17/10^$AA18,IF(AD20=7,1,2)*$AA17/10^$AA18)*10^$AA18*(-1)^RANDBETWEEN(1,2)),MAX(0,$U17*$AC18+IF(AD20=7,RANDBETWEEN(0,IF($AB18=3,$AB17/1000,IF($AB18=2,$AB17/100,IF($AB18=1,$AB17/10,$AB17))))*IF($AB18=3,1000,IF($AB18=2,100,IF($AB18=1,10,1))),RANDBETWEEN(1.00001*IF($AB18=3,$AB17/1000,IF($AB18=2,$AB17/100,IF($AB18=1,$AB17/10,$AB17))),2*IF($AB18=3,$AB17/1000,IF($AB18=2,$AB17/100,IF($AB18=1,$AB17/10,$AB17))))*IF($AB18=3,1000,IF($AB18=2,100,IF($AB18=1,10,1))))*(-1)^RANDBETWEEN(1,2))) -> 17.3 | AE19: =IF(AE20=1,$V17,$Z17) -> cm | AF19: =IF(AG20=1,MAX(0,$U17+RANDBETWEEN(IF(AF20=7,0,1.00001)*$AA17/10^$AA18,IF(AF20=7,1,2)*$AA17/10^$AA18)*10^$AA18*(-1)^RANDBETWEEN(1,2)),MAX(0,$U17*$AC18+IF(AF20=7,RANDBETWEEN(0,IF($AB18=3,$AB17/1000,IF($AB18=2,$AB17/100,IF($AB18=1,$AB17/10,$AB17))))*IF($AB18=3,1000,IF($AB18=2,100,IF($AB18=1,10,1))),RANDBETWEEN(1.00001*IF($AB18=3,$AB17/1000,IF($AB18=2,$AB17/100,IF($AB18=1,$AB17/10,$AB17))),2*IF($AB18=3,$AB17/1000,IF($AB18=2,$AB17/100,IF($AB18=1,$AB17/10,$AB17))))*IF($AB18=3,1000,IF($AB18=2,100,IF($AB18=1,10,1))))*(-1)^RANDBETWEEN(1,2))) -> 17.1 | AG19: =IF(AG20=1,$V17,$Z17) -> cm
A20: =IF(COUNTIF($B$1:B20,TRUE)=COUNTIF($B$1:B19,TRUE),"",COUNTIF($B$1:B20,TRUE)) -> 16 | B20: =Worksheet!$B$22 -> TRUE | C20: =RANDBETWEEN(5,RANDBETWEEN(5,Worksheet!$D$8)) -> 104 | D20: m | E20: ± | F20: =IF(I20=1,H20*10^RANDBETWEEN(IF(Worksheet!$D$14,-1,0),0),IF(I20=2,H20*10^RANDBETWEEN(RANDBETWEEN(0,1),1),CHOOSE(RANDBETWEEN(1,3),5,10,20))) -> 0.3 | G20: =IF(I20=1,D20,IF(I20=3,"%","cm")) -> m | H20: =RANDBETWEEN(1,MIN(9,C20)) -> 3 | I20: =IF(AND(Worksheet!$D$12,RAND()<0.2),3,IF(RAND()<Worksheet!$D$10/100,1,2)) -> 1 | J20: =IF(I20=1,F20,IF(I20=2,F20/100,IF(I20=3,F20/100*C20,""))) -> 0.3 | K20: =CONCATENATE(" ",D20) -> m | L20: =IF(I20=1,F20*100,IF(I20=2,F20,IF(I20=3,F20/100*C20*100,""))) -> 30 | M20: cm | V20: =RANDBETWEEN(7,8) -> 8 | W20: =IF(Worksheet!$D$16,RANDBETWEEN(1,2),1) -> 1 | X20: =RANDBETWEEN(7,8) -> 8 | Y20: =IF(Worksheet!$D$16,RANDBETWEEN(1,2),1) -> 1 | Z20: =RANDBETWEEN(7,8) -> 7 | AA20: =IF(Worksheet!$D$16,RANDBETWEEN(1,2),1) -> 1 | AB20: =RANDBETWEEN(7,8) -> 7 | AC20: =IF(Worksheet!$D$16,RANDBETWEEN(1,2),1) -> 1 | AD20: =RANDBETWEEN(7,8) -> 8 | AE20: =IF(Worksheet!$D$16,RANDBETWEEN(1,2),1) -> 1 | AF20: =RANDBETWEEN(7,8) -> 8 | AG20: =IF(Worksheet!$D$16,RANDBETWEEN(1,2),1) -> 1
A21: =IF(COUNTIF($B$1:B21,TRUE)=COUNTIF($B$1:B20,TRUE),"",COUNTIF($B$1:B21,TRUE)) -> 17 | B21: =Worksheet!$B$24 -> TRUE | C21: =RANDBETWEEN(5,RANDBETWEEN(5,Worksheet!$D$8)) -> 17 | D21: km | E21: ± | F21: =IF(I21=1,H21*10^RANDBETWEEN(IF(Worksheet!$D$14,-1,0),0),IF(I21=2,H21*10^RANDBETWEEN(RANDBETWEEN(0,2),2),CHOOSE(RANDBETWEEN(1,3),5,10,20))) -> 70 | G21: =IF(I21=1,D21,IF(I21=3,"%","m")) -> m | H21: 7 | I21: =IF(AND(Worksheet!$D$12,RAND()<0.2),3,IF(RAND()<Worksheet!$D$10/100,1,2)) -> 2 | J21: =IF(I21=1,F21,IF(I21=2,F21/1000,IF(I21=3,F21/100*C21,""))) -> 0.07 | K21: km | L21: =IF(I21=1,F21*1000,IF(I21=2,F21,IF(I21=3,F21/100*C21*1000,""))) -> 70 | M21: m | S21: 6 | T21: =RANDBETWEEN(1,MAX('SYSTEM FORMULAE'!$A$1:$A$1737)) -> 501 | U21: =IF(RIGHT(TEXT(VLOOKUP(T21,'SYSTEM FORMULAE'!$A$1:$Q$1737,3),"# ##0.###"),1)=".",LEFT(TEXT(VLOOKUP(T21,'SYSTEM FORMULAE'!$A$1:$Q$1737,3),"# ##0.###"),LEN(TEXT(VLOOKUP(T21,'SYSTEM FORMULAE'!$A$1:$Q$1737,3),"# ##0.###"))-1),TEXT(VLOOKUP(T21,'SYSTEM FORMULAE'!$A$1:$Q$1737,3),"# ##0.###")) -> 145 | V21: =VLOOKUP(T21,'SYSTEM FORMULAE'!$A$1:$Q$1737,4) -> kg | W21: ± | X21: =IF(RIGHT(TEXT(VLOOKUP(T21,'SYSTEM FORMULAE'!$A$1:$Q$1737,6),"# ##0.###"),1)=".",LEFT(TEXT(VLOOKUP(T21,'SYSTEM FORMULAE'!$A$1:$Q$1737,6),"# ##0.###"),LEN(TEXT(VLOOKUP(T21,'SYSTEM FORMULAE'!$A$1:$Q$1737,6),"# ##0.###"))-1),TEXT(VLOOKUP(T21,'SYSTEM FORMULAE'!$A$1:$Q$1737,6),"# ##0.###")) -> 0.8 | Y21: =VLOOKUP(T21,'SYSTEM FORMULAE'!$A$1:$Q$1737,7) -> kg | Z21: =VLOOKUP(T21,'SYSTEM FORMULAE'!$A$1:$Q$1737,13) -> g | AA21: =VLOOKUP(T21,'SYSTEM FORMULAE'!$A$1:$Q$1737,10) -> 0.8 | AB21: =VLOOKUP(T21,'SYSTEM FORMULAE'!$A$1:$Q$1737,12) -> 800 | AD21: =U21-AA21 -> 144.2 | AE21: =V21 -> kg | AF21: =U21+AA21 -> 145.8 | AG21: =V21 -> kg
A22: =IF(COUNTIF($B$1:B22,TRUE)=COUNTIF($B$1:B21,TRUE),"",COUNTIF($B$1:B22,TRUE)) ->  | B22: =Worksheet!$B$26 -> FALSE | C22: =RANDBETWEEN(5,RANDBETWEEN(5,Worksheet!$D$8)) -> 34 | D22: m | E22: ± | F22: =IF(I22=1,H22*10^RANDBETWEEN(IF(Worksheet!$D$14,-1,0),0),IF(I22=2,H22*10^RANDBETWEEN(RANDBETWEEN(0,2),2),CHOOSE(RANDBETWEEN(1,3),5,10,20))) -> 300 | G22: =IF(I22=1,D22,IF(I22=3,"%","mm")) -> mm | H22: 3 | I22: =IF(AND(Worksheet!$D$12,RAND()<0.2),3,IF(RAND()<Worksheet!$D$10/100,1,2)) -> 2 | J22: 0.3 | K22: m | L22: 300 | M22: mm | AA22: =IF(AA21=INT(AA21),IF(AA21/1000=INT(AA21/1000),3,IF(AA21/100=INT(AA21/100),2,IF(AA21/10=INT(AA21/10),1,0))),INT(LOG($AA21-INT($AA21)))) -> -1 | AB22: =IF(AB21=INT(AB21),IF(AB21/1000=INT(AB21/1000),3,IF(AB21/100=INT(AB21/100),2,IF(AB21/10=INT(AB21/10),1,0))),INT(LOG($AA21-INT($AA21)))) -> 2 | AC22: =IF(Z21="cm",100,IF(Z21="°C",1,IF(AND(V21="cm",Z21="mm"),10,1000))) -> 1000
A23: =IF(COUNTIF($B$1:B23,TRUE)=COUNTIF($B$1:B22,TRUE),"",COUNTIF($B$1:B23,TRUE)) -> 18 | B23: =Worksheet!$D$20 -> TRUE | C23: =RANDBETWEEN(5,RANDBETWEEN(5,Worksheet!$D$8)) -> 41 | D23: kg | E23: ± | F23: =IF(I23=1,H23*10^RANDBETWEEN(IF(Worksheet!$D$14,-1,0),0),IF(I23=2,H23*10^RANDBETWEEN(RANDBETWEEN(0,2),2),CHOOSE(RANDBETWEEN(1,3),5,10,20))) -> 5 | G23: =IF(I23=1,D23,IF(I23=3,"%","g")) -> % | H23: =RANDBETWEEN(1,MIN(9,C23)) -> 3 | I23: =IF(AND(Worksheet!$D$12,RAND()<0.2),3,IF(RAND()<Worksheet!$D$10/100,1,2)) -> 3 | J23: 2.05 | K23: =CONCATENATE(" ",D23) -> kg | L23: 2050 | M23: g | V23: =IF(W24=1,MAX(0,$U21+RANDBETWEEN(IF(V24=7,0,1.00001)*$AA21/10^$AA22,IF(V24=7,1,2)*$AA21/10^$AA22)*10^$AA22*(-1)^RANDBETWEEN(1,2)),MAX(0,$U21*$AC22+IF(V24=7,RANDBETWEEN(0,IF($AB22=3,$AB21/1000,IF($AB22=2,$AB21/100,IF($AB22=1,$AB21/10,$AB21))))*IF($AB22=3,1000,IF($AB22=2,100,IF($AB22=1,10,1))),RANDBETWEEN(1.00001*IF($AB22=3,$AB21/1000,IF($AB22=2,$AB21/100,IF($AB22=1,$AB21/10,$AB21))),2*IF($AB22=3,$AB21/1000,IF($AB22=2,$AB21/100,IF($AB22=1,$AB21/10,$AB21))))*IF($AB22=3,1000,IF($AB22=2,100,IF($AB22=1,10,1))))*(-1)^RANDBETWEEN(1,2))) -> 143.7 | W23: =IF(W24=1,$V21,$Z21) -> kg | X23: =IF(Y24=1,MAX(0,$U21+RANDBETWEEN(IF(X24=7,0,1.00001)*$AA21/10^$AA22,IF(X24=7,1,2)*$AA21/10^$AA22)*10^$AA22*(-1)^RANDBETWEEN(1,2)),MAX(0,$U21*$AC22+IF(X24=7,RANDBETWEEN(0,IF($AB22=3,$AB21/1000,IF($AB22=2,$AB21/100,IF($AB22=1,$AB21/10,$AB21))))*IF($AB22=3,1000,IF($AB22=2,100,IF($AB22=1,10,1))),RANDBETWEEN(1.00001*IF($AB22=3,$AB21/1000,IF($AB22=2,$AB21/100,IF($AB22=1,$AB21/10,$AB21))),2*IF($AB22=3,$AB21/1000,IF($AB22=2,$AB21/100,IF($AB22=1,$AB21/10,$AB21))))*IF($AB22=3,1000,IF($AB22=2,100,IF($AB22=1,10,1))))*(-1)^RANDBETWEEN(1,2))) -> 143.4 | Y23: =IF(Y24=1,$V21,$Z21) -> kg | Z23: =IF(AA24=1,MAX(0,$U21+RANDBETWEEN(IF(Z24=7,0,1.00001)*$AA21/10^$AA22,IF(Z24=7,1,2)*$AA21/10^$AA22)*10^$AA22*(-1)^RANDBETWEEN(1,2)),MAX(0,$U21*$AC22+IF(Z24=7,RANDBETWEEN(0,IF($AB22=3,$AB21/1000,IF($AB22=2,$AB21/100,IF($AB22=1,$AB21/10,$AB21))))*IF($AB22=3,1000,IF($AB22=2,100,IF($AB22=1,10,1))),RANDBETWEEN(1.00001*IF($AB22=3,$AB21/1000,IF($AB22=2,$AB21/100,IF($AB22=1,$AB21/10,$AB21))),2*IF($AB22=3,$AB21/1000,IF($AB22=2,$AB21/100,IF($AB22=1,$AB21/10,$AB21))))*IF($AB22=3,1000,IF($AB22=2,100,IF($AB22=1,10,1))))*(-1)^RANDBETWEEN(1,2))) -> 144.5 | AA23: =IF(AA24=1,$V21,$Z21) -> kg | AB23: =IF(AC24=1,MAX(0,$U21+RANDBETWEEN(IF(AB24=7,0,1.00001)*$AA21/10^$AA22,IF(AB24=7,1,2)*$AA21/10^$AA22)*10^$AA22*(-1)^RANDBETWEEN(1,2)),MAX(0,$U21*$AC22+IF(AB24=7,RANDBETWEEN(0,IF($AB22=3,$AB21/1000,IF($AB22=2,$AB21/100,IF($AB22=1,$AB21/10,$AB21))))*IF($AB22=3,1000,IF($AB22=2,100,IF($AB22=1,10,1))),RANDBETWEEN(1.00001*IF($AB22=3,$AB21/1000,IF($AB22=2,$AB21/100,IF($AB22=1,$AB21/10,$AB21))),2*IF($AB22=3,$AB21/1000,IF($AB22=2,$AB21/100,IF($AB22=1,$AB21/10,$AB21))))*IF($AB22=3,1000,IF($AB22=2,100,IF($AB22=1,10,1))))*(-1)^RANDBETWEEN(1,2))) -> 145.7 | AC23: =IF(AC24=1,$V21,$Z21) -> kg | AD23: =IF(AE24=1,MAX(0,$U21+RANDBETWEEN(IF(AD24=7,0,1.00001)*$AA21/10^$AA22,IF(AD24=7,1,2)*$AA21/10^$AA22)*10^$AA22*(-1)^RANDBETWEEN(1,2)),MAX(0,$U21*$AC22+IF(AD24=7,RANDBETWEEN(0,IF($AB22=3,$AB21/1000,IF($AB22=2,$AB21/100,IF($AB22=1,$AB21/10,$AB21))))*IF($AB22=3,1000,IF($AB22=2,100,IF($AB22=1,10,1))),RANDBETWEEN(1.00001*IF($AB22=3,$AB21/1000,IF($AB22=2,$AB21/100,IF($AB22=1,$AB21/10,$AB21))),2*IF($AB22=3,$AB21/1000,IF($AB22=2,$AB21/100,IF($AB22=1,$AB21/10,$AB21))))*IF($AB22=3,1000,IF($AB22=2,100,IF($AB22=1,10,1))))*(-1)^RANDBETWEEN(1,2))) -> 146.6 | AE23: =IF(AE24=1,$V21,$Z21) -> kg | AF23: =IF(AG24=1,MAX(0,$U21+RANDBETWEEN(IF(AF24=7,0,1.00001)*$AA21/10^$AA22,IF(AF24=7,1,2)*$AA21/10^$AA22)*10^$AA22*(-1)^RANDBETWEEN(1,2)),MAX(0,$U21*$AC22+IF(AF24=7,RANDBETWEEN(0,IF($AB22=3,$AB21/1000,IF($AB22=2,$AB21/100,IF($AB22=1,$AB21/10,$AB21))))*IF($AB22=3,1000,IF($AB22=2,100,IF($AB22=1,10,1))),RANDBETWEEN(1.00001*IF($AB22=3,$AB21/1000,IF($AB22=2,$AB21/100,IF($AB22=1,$AB21/10,$AB21))),2*IF($AB22=3,$AB21/1000,IF($AB22=2,$AB21/100,IF($AB22=1,$AB21/10,$AB21))))*IF($AB22=3,1000,IF($AB22=2,100,IF($AB22=1,10,1))))*(-1)^RANDBETWEEN(1,2))) -> 143.7 | AG23: =IF(AG24=1,$V21,$Z21) -> kg
A24: =IF(COUNTIF($B$1:B24,TRUE)=COUNTIF($B$1:B23,TRUE),"",COUNTIF($B$1:B24,TRUE)) -> 19 | B24: =Worksheet!$D$22 -> TRUE | C24: =RANDBETWEEN(5,RANDBETWEEN(5,Worksheet!$D$8)) -> 51 | D24: tonnes | E24: ± | F24: =IF(I24=1,H24*10^RANDBETWEEN(IF(Worksheet!$D$14,-1,0),0),IF(I24=2,H24*10^RANDBETWEEN(RANDBETWEEN(0,2),2),CHOOSE(RANDBETWEEN(1,3),5,10,20))) -> 3 | G24: =IF(I24=1,D24,IF(I24=3,"%","kg")) -> tonnes | H24: =RANDBETWEEN(1,MIN(9,C24)) -> 3 | I24: =IF(AND(Worksheet!$D$12,RAND()<0.2),3,IF(RAND()<Worksheet!$D$10/100,1,2)) -> 1 | J24: 3 | K24: =CONCATENATE(" ",D24) -> tonnes | L24: 3000 | M24: kg | V24: =RANDBETWEEN(7,8) -> 8 | W24: =IF(Worksheet!$D$16,RANDBETWEEN(1,2),1) -> 1 | X24: =RANDBETWEEN(7,8) -> 8 | Y24: =IF(Worksheet!$D$16,RANDBETWEEN(1,2),1) -> 1 | Z24: =RANDBETWEEN(7,8) -> 7 | AA24: =IF(Worksheet!$D$16,RANDBETWEEN(1,2),1) -> 1 | AB24: =RANDBETWEEN(7,8) -> 7 | AC24: =IF(Worksheet!$D$16,RANDBETWEEN(1,2),1) -> 1 | AD24: =RANDBETWEEN(7,8) -> 8 | AE24: =IF(Worksheet!$D$16,RANDBETWEEN(1,2),1) -> 1 | AF24: =RANDBETWEEN(7,8) -> 8 | AG24: =IF(Worksheet!$D$16,RANDBETWEEN(1,2),1) -> 1
A25: =IF(COUNTIF($B$1:B25,TRUE)=COUNTIF($B$1:B24,TRUE),"",COUNTIF($B$1:B25,TRUE)) -> 20 | B25: =Worksheet!$D$24 -> TRUE | C25: =RANDBETWEEN(5,RANDBETWEEN(5,Worksheet!$D$8)) -> 41 | D25: litres | E25: ± | F25: =IF(I25=1,H25*10^RANDBETWEEN(IF(Worksheet!$D$14,-1,0),0),IF(I25=2,H25*10^RANDBETWEEN(RANDBETWEEN(0,2),2),CHOOSE(RANDBETWEEN(1,3),5,10,20))) -> 80 | G25: =IF(I25=1,D25,IF(I25=3,"%","ml")) -> ml | H25: =RANDBETWEEN(1,MIN(9,C25)) -> 8 | I25: =IF(AND(Worksheet!$D$12,RAND()<0.2),3,IF(RAND()<Worksheet!$D$10/100,1,2)) -> 2 | J25: 0.08 | K25: =CONCATENATE(" ",D25) -> litres | L25: 80 | M25: ml | S25: 7 | T25: =RANDBETWEEN(1,MAX('SYSTEM FORMULAE'!$A$1:$A$1737)) -> 1179 | U25: =IF(RIGHT(TEXT(VLOOKUP(T25,'SYSTEM FORMULAE'!$A$1:$Q$1737,3),"# ##0.###"),1)=".",LEFT(TEXT(VLOOKUP(T25,'SYSTEM FORMULAE'!$A$1:$Q$1737,3),"# ##0.###"),LEN(TEXT(VLOOKUP(T25,'SYSTEM FORMULAE'!$A$1:$Q$1737,3),"# ##0.###"))-1),TEXT(VLOOKUP(T25,'SYSTEM FORMULAE'!$A$1:$Q$1737,3),"# ##0.###")) -> 47 | V25: =VLOOKUP(T25,'SYSTEM FORMULAE'!$A$1:$Q$1737,4) -> km | W25: ± | X25: =IF(RIGHT(TEXT(VLOOKUP(T25,'SYSTEM FORMULAE'!$A$1:$Q$1737,6),"# ##0.###"),1)=".",LEFT(TEXT(VLOOKUP(T25,'SYSTEM FORMULAE'!$A$1:$Q$1737,6),"# ##0.###"),LEN(TEXT(VLOOKUP(T25,'SYSTEM FORMULAE'!$A$1:$Q$1737,6),"# ##0.###"))-1),TEXT(VLOOKUP(T25,'SYSTEM FORMULAE'!$A$1:$Q$1737,6),"# ##0.###")) -> 100 | Y25: =VLOOKUP(T25,'SYSTEM FORMULAE'!$A$1:$Q$1737,7) -> m | Z25: =VLOOKUP(T25,'SYSTEM FORMULAE'!$A$1:$Q$1737,13) -> m | AA25: =VLOOKUP(T25,'SYSTEM FORMULAE'!$A$1:$Q$1737,10) -> 0.1 | AB25: =VLOOKUP(T25,'SYSTEM FORMULAE'!$A$1:$Q$1737,12) -> 100 | AD25: =U25-AA25 -> 46.9 | AE25: =V25 -> km | AF25: =U25+AA25 -> 47.1 | AG25: =V25 -> km
A26: =IF(COUNTIF($B$1:B26,TRUE)=COUNTIF($B$1:B25,TRUE),"",COUNTIF($B$1:B26,TRUE)) ->  | B26: =Worksheet!$D$26 -> FALSE | C26: =RANDBETWEEN(5,RANDBETWEEN(5,Worksheet!$D$8)) -> 173 | D26: litres | E26: ± | F26: =IF(I26=1,H26*10^RANDBETWEEN(IF(Worksheet!$D$14,-1,0),0),IF(I26=2,H26*10^RANDBETWEEN(RANDBETWEEN(0,2),2),CHOOSE(RANDBETWEEN(1,3),5,10,20))) -> 0.1 | G26: =IF(I26=1,D26,IF(I26=3,"%","cm³")) -> litres | H26: =RANDBETWEEN(1,MIN(9,C26)) -> 1 | I26: =IF(AND(Worksheet!$D$12,RAND()<0.2),3,IF(RAND()<Worksheet!$D$10/100,1,2)) -> 1 | J26: 0.1 | K26: =CONCATENATE(" ",D26) -> litres | L26: 100 | M26: cm³ | AA26: =IF(AA25=INT(AA25),IF(AA25/1000=INT(AA25/1000),3,IF(AA25/100=INT(AA25/100),2,IF(AA25/10=INT(AA25/10),1,0))),INT(LOG($AA25-INT($AA25)))) -> -1 | AB26: =IF(AB25=INT(AB25),IF(AB25/1000=INT(AB25/1000),3,IF(AB25/100=INT(AB25/100),2,IF(AB25/10=INT(AB25/10),1,0))),INT(LOG($AA25-INT($AA25)))) -> 2 | AC26: =IF(Z25="cm",100,IF(Z25="°C",1,IF(AND(V25="cm",Z25="mm"),10,1000))) -> 1000
A27: =IF(COUNTIF($B$1:B27,TRUE)=COUNTIF($B$1:B27,TRUE),"",COUNTIF($B$1:B27,TRUE)) ->  | B27: =Worksheet!$B$28 -> TRUE | C27: =RANDBETWEEN(5,20) -> 18 | D27: °C | E27: ± | F27: =IF(I27=1,H27*10^RANDBETWEEN(IF(Worksheet!$D$14,-1,0),0),IF(I27=2,H27,CHOOSE(RANDBETWEEN(1,3),5,10,20))) -> 0.6 | G27: =IF(I27=1,D27,IF(I27=3,"%","sec")) -> °C | H27: =RANDBETWEEN(1,MIN(9,C27)) -> 6 | I27: =IF(AND(Worksheet!$D$12,RAND()<0),3,IF(RAND()<Worksheet!$D$10/100,1,2)) -> 1 | J27: =IF(I27=1,F27,IF(I27=2,F27,IF(I27=3,F27/100*C27,""))) -> 0.6 | K27: =CONCATENATE(" ",D27) -> °C | L27: =IF(I27=1,F27,IF(I27=2,F27,IF(I27=3,F27/100*C27,""))) -> 0.6 | M27: °C | V27: =IF(W28=1,MAX(0,$U25+RANDBETWEEN(IF(V28=7,0,1.00001)*$AA25/10^$AA26,IF(V28=7,1,2)*$AA25/10^$AA26)*10^$AA26*(-1)^RANDBETWEEN(1,2)),MAX(0,$U25*$AC26+IF(V28=7,RANDBETWEEN(0,IF($AB26=3,$AB25/1000,IF($AB26=2,$AB25/100,IF($AB26=1,$AB25/10,$AB25))))*IF($AB26=3,1000,IF($AB26=2,100,IF($AB26=1,10,1))),RANDBETWEEN(1.00001*IF($AB26=3,$AB25/1000,IF($AB26=2,$AB25/100,IF($AB26=1,$AB25/10,$AB25))),2*IF($AB26=3,$AB25/1000,IF($AB26=2,$AB25/100,IF($AB26=1,$AB25/10,$AB25))))*IF($AB26=3,1000,IF($AB26=2,100,IF($AB26=1,10,1))))*(-1)^RANDBETWEEN(1,2))) -> 46.9 | W27: =IF(W28=1,$V25,$Z25) -> km | X27: =IF(Y28=1,MAX(0,$U25+RANDBETWEEN(IF(X28=7,0,1.00001)*$AA25/10^$AA26,IF(X28=7,1,2)*$AA25/10^$AA26)*10^$AA26*(-1)^RANDBETWEEN(1,2)),MAX(0,$U25*$AC26+IF(X28=7,RANDBETWEEN(0,IF($AB26=3,$AB25/1000,IF($AB26=2,$AB25/100,IF($AB26=1,$AB25/10,$AB25))))*IF($AB26=3,1000,IF($AB26=2,100,IF($AB26=1,10,1))),RANDBETWEEN(1.00001*IF($AB26=3,$AB25/1000,IF($AB26=2,$AB25/100,IF($AB26=1,$AB25/10,$AB25))),2*IF($AB26=3,$AB25/1000,IF($AB26=2,$AB25/100,IF($AB26=1,$AB25/10,$AB25))))*IF($AB26=3,1000,IF($AB26=2,100,IF($AB26=1,10,1))))*(-1)^RANDBETWEEN(1,2))) -> 46.8 | Y27: =IF(Y28=1,$V25,$Z25) -> km | Z27: =IF(AA28=1,MAX(0,$U25+RANDBETWEEN(IF(Z28=7,0,1.00001)*$AA25/10^$AA26,IF(Z28=7,1,2)*$AA25/10^$AA26)*10^$AA26*(-1)^RANDBETWEEN(1,2)),MAX(0,$U25*$AC26+IF(Z28=7,RANDBETWEEN(0,IF($AB26=3,$AB25/1000,IF($AB26=2,$AB25/100,IF($AB26=1,$AB25/10,$AB25))))*IF($AB26=3,1000,IF($AB26=2,100,IF($AB26=1,10,1))),RANDBETWEEN(1.00001*IF($AB26=3,$AB25/1000,IF($AB26=2,$AB25/100,IF($AB26=1,$AB25/10,$AB25))),2*IF($AB26=3,$AB25/1000,IF($AB26=2,$AB25/100,IF($AB26=1,$AB25/10,$AB25))))*IF($AB26=3,1000,IF($AB26=2,100,IF($AB26=1,10,1))))*(-1)^RANDBETWEEN(1,2))) -> 46.8 | AA27: =IF(AA28=1,$V25,$Z25) -> km | AB27: =IF(AC28=1,MAX(0,$U25+RANDBETWEEN(IF(AB28=7,0,1.00001)*$AA25/10^$AA26,IF(AB28=7,1,2)*$AA25/10^$AA26)*10^$AA26*(-1)^RANDBETWEEN(1,2)),MAX(0,$U25*$AC26+IF(AB28=7,RANDBETWEEN(0,IF($AB26=3,$AB25/1000,IF($AB26=2,$AB25/100,IF($AB26=1,$AB25/10,$AB25))))*IF($AB26=3,1000,IF($AB26=2,100,IF($AB26=1,10,1))),RANDBETWEEN(1.00001*IF($AB26=3,$AB25/1000,IF($AB26=2,$AB25/100,IF($AB26=1,$AB25/10,$AB25))),2*IF($AB26=3,$AB25/1000,IF($AB26=2,$AB25/100,IF($AB26=1,$AB25/10,$AB25))))*IF($AB26=3,1000,IF($AB26=2,100,IF($AB26=1,10,1))))*(-1)^RANDBETWEEN(1,2))) -> 47.1 | AC27: =IF(AC28=1,$V25,$Z25) -> km | AD27: =IF(AE28=1,MAX(0,$U25+RANDBETWEEN(IF(AD28=7,0,1.00001)*$AA25/10^$AA26,IF(AD28=7,1,2)*$AA25/10^$AA26)*10^$AA26*(-1)^RANDBETWEEN(1,2)),MAX(0,$U25*$AC26+IF(AD28=7,RANDBETWEEN(0,IF($AB26=3,$AB25/1000,IF($AB26=2,$AB25/100,IF($AB26=1,$AB25/10,$AB25))))*IF($AB26=3,1000,IF($AB26=2,100,IF($AB26=1,10,1))),RANDBETWEEN(1.00001*IF($AB26=3,$AB25/1000,IF($AB26=2,$AB25/100,IF($AB26=1,$AB25/10,$AB25))),2*IF($AB26=3,$AB25/1000,IF($AB26=2,$AB25/100,IF($AB26=1,$AB25/10,$AB25))))*IF($AB26=3,1000,IF($AB26=2,100,IF($AB26=1,10,1))))*(-1)^RANDBETWEEN(1,2))) -> 47.2 | AE27: =IF(AE28=1,$V25,$Z25) -> km | AF27: =IF(AG28=1,MAX(0,$U25+RANDBETWEEN(IF(AF28=7,0,1.00001)*$AA25/10^$AA26,IF(AF28=7,1,2)*$AA25/10^$AA26)*10^$AA26*(-1)^RANDBETWEEN(1,2)),MAX(0,$U25*$AC26+IF(AF28=7,RANDBETWEEN(0,IF($AB26=3,$AB25/1000,IF($AB26=2,$AB25/100,IF($AB26=1,$AB25/10,$AB25))))*IF($AB26=3,1000,IF($AB26=2,100,IF($AB26=1,10,1))),RANDBETWEEN(1.00001*IF($AB26=3,$AB25/1000,IF($AB26=2,$AB25/100,IF($AB26=1,$AB25/10,$AB25))),2*IF($AB26=3,$AB25/1000,IF($AB26=2,$AB25/100,IF($AB26=1,$AB25/10,$AB25))))*IF($AB26=3,1000,IF($AB26=2,100,IF($AB26=1,10,1))))*(-1)^RANDBETWEEN(1,2))) -> 47.2 | AG27: =IF(AG28=1,$V25,$Z25) -> km
A28: =COUNTIF($B$1:B28,TRUE) -> 22 | B28: =Worksheet!$B$20 -> TRUE | C28: =RANDBETWEEN(5,RANDBETWEEN(5,Worksheet!$D$8)) -> 5 | D28: cm | E28: ± | F28: =IF(I28=1,H28*10^RANDBETWEEN(IF(Worksheet!$D$14,-1,0),0),IF(I28=2,H28,CHOOSE(RANDBETWEEN(1,3),5,10,20))) -> 10 | G28: =IF(I28=1,D28,IF(I28=3,"%","mm")) -> % | H28: =RANDBETWEEN(1,MIN(9,C28)) -> 4 | I28: =IF(AND(Worksheet!$D$12,RAND()<0.2),3,IF(RAND()<Worksheet!$D$10/100,1,2)) -> 3 | J28: =IF(I28=1,F28,IF(I28=2,F28/10,IF(I28=3,F28/100*C28,""))) -> 0.5 | K28: =CONCATENATE(" ",D28) -> cm | L28: =IF(I28=1,F28*10,IF(I28=2,F28,IF(I28=3,F28/100*C28*10,""))) -> 5 | M28: mm | V28: =RANDBETWEEN(7,8) -> 7 | W28: =IF(Worksheet!$D$16,RANDBETWEEN(1,2),1) -> 1 | X28: =RANDBETWEEN(7,8) -> 8 | Y28: =IF(Worksheet!$D$16,RANDBETWEEN(1,2),1) -> 1 | Z28: =RANDBETWEEN(7,8) -> 8 | AA28: =IF(Worksheet!$D$16,RANDBETWEEN(1,2),1) -> 1 | AB28: =RANDBETWEEN(7,8) -> 7 | AC28: =IF(Worksheet!$D$16,RANDBETWEEN(1,2),1) -> 1 | AD28: =RANDBETWEEN(7,8) -> 8 | AE28: =IF(Worksheet!$D$16,RANDBETWEEN(1,2),1) -> 1 | AF28: =RANDBETWEEN(7,8) -> 8 | AG28: =IF(Worksheet!$D$16,RANDBETWEEN(1,2),1) -> 1
A29: =IF(COUNTIF($B$1:B29,TRUE)=COUNTIF($B$1:B28,TRUE),"",COUNTIF($B$1:B29,TRUE)) -> 23 | B29: =Worksheet!$B$22 -> TRUE | C29: =RANDBETWEEN(5,RANDBETWEEN(5,Worksheet!$D$8)) -> 8 | D29: m | E29: ± | F29: =IF(I29=1,H29*10^RANDBETWEEN(IF(Worksheet!$D$14,-1,0),0),IF(I29=2,H29*10^RANDBETWEEN(RANDBETWEEN(0,1),1),CHOOSE(RANDBETWEEN(1,3),5,10,20))) -> 10 | G29: =IF(I29=1,D29,IF(I29=3,"%","cm")) -> % | H29: =RANDBETWEEN(1,MIN(9,C29)) -> 6 | I29: =IF(AND(Worksheet!$D$12,RAND()<0.2),3,IF(RAND()<Worksheet!$D$10/100,1,2)) -> 3 | J29: =IF(I29=1,F29,IF(I29=2,F29/100,IF(I29=3,F29/100*C29,""))) -> 0.8 | K29: =CONCATENATE(" ",D29) -> m | L29: =IF(I29=1,F29*100,IF(I29=2,F29,IF(I29=3,F29/100*C29*100,""))) -> 80 | M29: cm | S29: 8 | T29: =RANDBETWEEN(1,MAX('SYSTEM FORMULAE'!$A$1:$A$1737)) -> 856 | U29: =IF(RIGHT(TEXT(VLOOKUP(T29,'SYSTEM FORMULAE'!$A$1:$Q$1737,3),"# ##0.###"),1)=".",LEFT(TEXT(VLOOKUP(T29,'SYSTEM FORMULAE'!$A$1:$Q$1737,3),"# ##0.###"),LEN(TEXT(VLOOKUP(T29,'SYSTEM FORMULAE'!$A$1:$Q$1737,3),"# ##0.###"))-1),TEXT(VLOOKUP(T29,'SYSTEM FORMULAE'!$A$1:$Q$1737,3),"# ##0.###")) -> 36 | V29: =VLOOKUP(T29,'SYSTEM FORMULAE'!$A$1:$Q$1737,4) -> m | W29: ± | X29: =IF(RIGHT(TEXT(VLOOKUP(T29,'SYSTEM FORMULAE'!$A$1:$Q$1737,6),"# ##0.###"),1)=".",LEFT(TEXT(VLOOKUP(T29,'SYSTEM FORMULAE'!$A$1:$Q$1737,6),"# ##0.###"),LEN(TEXT(VLOOKUP(T29,'SYSTEM FORMULAE'!$A$1:$Q$1737,6),"# ##0.###"))-1),TEXT(VLOOKUP(T29,'SYSTEM FORMULAE'!$A$1:$Q$1737,6),"# ##0.###")) -> 90 | Y29: =VLOOKUP(T29,'SYSTEM FORMULAE'!$A$1:$Q$1737,7) -> cm | Z29: =VLOOKUP(T29,'SYSTEM FORMULAE'!$A$1:$Q$1737,13) -> cm | AA29: =VLOOKUP(T29,'SYSTEM FORMULAE'!$A$1:$Q$1737,10) -> 0.9 | AB29: =VLOOKUP(T29,'SYSTEM FORMULAE'!$A$1:$Q$1737,12) -> 90 | AD29: =U29-AA29 -> 35.1 | AE29: =V29 -> m | AF29: =U29+AA29 -> 36.9 | AG29: =V29 -> m
A30: =IF(COUNTIF($B$1:B30,TRUE)=COUNTIF($B$1:B29,TRUE),"",COUNTIF($B$1:B30,TRUE)) -> 24 | B30: =Worksheet!$B$24 -> TRUE | C30: =RANDBETWEEN(5,RANDBETWEEN(5,Worksheet!$D$8)) -> 9 | D30: km | E30: ± | F30: =IF(I30=1,H30*10^RANDBETWEEN(IF(Worksheet!$D$14,-1,0),0),IF(I30=2,H30*10^RANDBETWEEN(RANDBETWEEN(0,2),2),CHOOSE(RANDBETWEEN(1,3),5,10,20))) -> 0.4 | G30: =IF(I30=1,D30,IF(I30=3,"%","m")) -> km | H30: 4 | I30: =IF(AND(Worksheet!$D$12,RAND()<0.2),3,IF(RAND()<Worksheet!$D$10/100,1,2)) -> 1 | J30: =IF(I30=1,F30,IF(I30=2,F30/1000,IF(I30=3,F30/100*C30,""))) -> 0.4 | K30: km | L30: =IF(I30=1,F30*1000,IF(I30=2,F30,IF(I30=3,F30/100*C30*1000,""))) -> 400 | M30: m | AA30: =IF(AA29=INT(AA29),IF(AA29/1000=INT(AA29/1000),3,IF(AA29/100=INT(AA29/100),2,IF(AA29/10=INT(AA29/10),1,0))),INT(LOG($AA29-INT($AA29)))) -> -1 | AB30: =IF(AB29=INT(AB29),IF(AB29/1000=INT(AB29/1000),3,IF(AB29/100=INT(AB29/100),2,IF(AB29/10=INT(AB29/10),1,0))),INT(LOG($AA29-INT($AA29)))) -> 1 | AC30: =IF(Z29="cm",100,IF(Z29="°C",1,IF(AND(V29="cm",Z29="mm"),10,1000))) -> 100
A31: =IF(COUNTIF($B$1:B31,TRUE)=COUNTIF($B$1:B30,TRUE),"",COUNTIF($B$1:B31,TRUE)) ->  | B31: =Worksheet!$B$26 -> FALSE | C31: =RANDBETWEEN(5,RANDBETWEEN(5,Worksheet!$D$8)) -> 5 | D31: m | E31: ± | F31: =IF(I31=1,H31*10^RANDBETWEEN(IF(Worksheet!$D$14,-1,0),0),IF(I31=2,H31*10^RANDBETWEEN(RANDBETWEEN(0,2),2),CHOOSE(RANDBETWEEN(1,3),5,10,20))) -> 300 | G31: =IF(I31=1,D31,IF(I31=3,"%","mm")) -> mm | H31: 3 | I31: =IF(AND(Worksheet!$D$12,RAND()<0.2),3,IF(RAND()<Worksheet!$D$10/100,1,2)) -> 2 | J31: 0.3 | K31: m | L31: 300 | M31: mm | V31: =IF(W32=1,MAX(0,$U29+RANDBETWEEN(IF(V32=7,0,1.00001)*$AA29/10^$AA30,IF(V32=7,1,2)*$AA29/10^$AA30)*10^$AA30*(-1)^RANDBETWEEN(1,2)),MAX(0,$U29*$AC30+IF(V32=7,RANDBETWEEN(0,IF($AB30=3,$AB29/1000,IF($AB30=2,$AB29/100,IF($AB30=1,$AB29/10,$AB29))))*IF($AB30=3,1000,IF($AB30=2,100,IF($AB30=1,10,1))),RANDBETWEEN(1.00001*IF($AB30=3,$AB29/1000,IF($AB30=2,$AB29/100,IF($AB30=1,$AB29/10,$AB29))),2*IF($AB30=3,$AB29/1000,IF($AB30=2,$AB29/100,IF($AB30=1,$AB29/10,$AB29))))*IF($AB30=3,1000,IF($AB30=2,100,IF($AB30=1,10,1))))*(-1)^RANDBETWEEN(1,2))) -> 34.7 | W31: =IF(W32=1,$V29,$Z29) -> m | X31: =IF(Y32=1,MAX(0,$U29+RANDBETWEEN(IF(X32=7,0,1.00001)*$AA29/10^$AA30,IF(X32=7,1,2)*$AA29/10^$AA30)*10^$AA30*(-1)^RANDBETWEEN(1,2)),MAX(0,$U29*$AC30+IF(X32=7,RANDBETWEEN(0,IF($AB30=3,$AB29/1000,IF($AB30=2,$AB29/100,IF($AB30=1,$AB29/10,$AB29))))*IF($AB30=3,1000,IF($AB30=2,100,IF($AB30=1,10,1))),RANDBETWEEN(1.00001*IF($AB30=3,$AB29/1000,IF($AB30=2,$AB29/100,IF($AB30=1,$AB29/10,$AB29))),2*IF($AB30=3,$AB29/1000,IF($AB30=2,$AB29/100,IF($AB30=1,$AB29/10,$AB29))))*IF($AB30=3,1000,IF($AB30=2,100,IF($AB30=1,10,1))))*(-1)^RANDBETWEEN(1,2))) -> 37.4 | Y31: =IF(Y32=1,$V29,$Z29) -> m | Z31: =IF(AA32=1,MAX(0,$U29+RANDBETWEEN(IF(Z32=7,0,1.00001)*$AA29/10^$AA30,IF(Z32=7,1,2)*$AA29/10^$AA30)*10^$AA30*(-1)^RANDBETWEEN(1,2)),MAX(0,$U29*$AC30+IF(Z32=7,RANDBETWEEN(0,IF($AB30=3,$AB29/1000,IF($AB30=2,$AB29/100,IF($AB30=1,$AB29/10,$AB29))))*IF($AB30=3,1000,IF($AB30=2,100,IF($AB30=1,10,1))),RANDBETWEEN(1.00001*IF($AB30=3,$AB29/1000,IF($AB30=2,$AB29/100,IF($AB30=1,$AB29/10,$AB29))),2*IF($AB30=3,$AB29/1000,IF($AB30=2,$AB29/100,IF($AB30=1,$AB29/10,$AB29))))*IF($AB30=3,1000,IF($AB30=2,100,IF($AB30=1,10,1))))*(-1)^RANDBETWEEN(1,2))) -> 37.8 | AA31: =IF(AA32=1,$V29,$Z29) -> m | AB31: =IF(AC32=1,MAX(0,$U29+RANDBETWEEN(IF(AB32=7,0,1.00001)*$AA29/10^$AA30,IF(AB32=7,1,2)*$AA29/10^$AA30)*10^$AA30*(-1)^RANDBETWEEN(1,2)),MAX(0,$U29*$AC30+IF(AB32=7,RANDBETWEEN(0,IF($AB30=3,$AB29/1000,IF($AB30=2,$AB29/100,IF($AB30=1,$AB29/10,$AB29))))*IF($AB30=3,1000,IF($AB30=2,100,IF($AB30=1,10,1))),RANDBETWEEN(1.00001*IF($AB30=3,$AB29/1000,IF($AB30=2,$AB29/100,IF($AB30=1,$AB29/10,$AB29))),2*IF($AB30=3,$AB29/1000,IF($AB30=2,$AB29/100,IF($AB30=1,$AB29/10,$AB29))))*IF($AB30=3,1000,IF($AB30=2,100,IF($AB30=1,10,1))))*(-1)^RANDBETWEEN(1,2))) -> 36.6 | AC31: =IF(AC32=1,$V29,$Z29) -> m | AD31: =IF(AE32=1,MAX(0,$U29+RANDBETWEEN(IF(AD32=7,0,1.00001)*$AA29/10^$AA30,IF(AD32=7,1,2)*$AA29/10^$AA30)*10^$AA30*(-1)^RANDBETWEEN(1,2)),MAX(0,$U29*$AC30+IF(AD32=7,RANDBETWEEN(0,IF($AB30=3,$AB29/1000,IF($AB30=2,$AB29/100,IF($AB30=1,$AB29/10,$AB29))))*IF($AB30=3,1000,IF($AB30=2,100,IF($AB30=1,10,1))),RANDBETWEEN(1.00001*IF($AB30=3,$AB29/1000,IF($AB30=2,$AB29/100,IF($AB30=1,$AB29/10,$AB29))),2*IF($AB30=3,$AB29/1000,IF($AB30=2,$AB29/100,IF($AB30=1,$AB29/10,$AB29))))*IF($AB30=3,1000,IF($AB30=2,100,IF($AB30=1,10,1))))*(-1)^RANDBETWEEN(1,2))) -> 36.8 | AE31: =IF(AE32=1,$V29,$Z29) -> m | AF31: =IF(AG32=1,MAX(0,$U29+RANDBETWEEN(IF(AF32=7,0,1.00001)*$AA29/10^$AA30,IF(AF32=7,1,2)*$AA29/10^$AA30)*10^$AA30*(-1)^RANDBETWEEN(1,2)),MAX(0,$U29*$AC30+IF(AF32=7,RANDBETWEEN(0,IF($AB30=3,$AB29/1000,IF($AB30=2,$AB29/100,IF($AB30=1,$AB29/10,$AB29))))*IF($AB30=3,1000,IF($AB30=2,100,IF($AB30=1,10,1))),RANDBETWEEN(1.00001*IF($AB30=3,$AB29/1000,IF($AB30=2,$AB29/100,IF($AB30=1,$AB29/10,$AB29))),2*IF($AB30=3,$AB29/1000,IF($AB30=2,$AB29/100,IF($AB30=1,$AB29/10,$AB29))))*IF($AB30=3,1000,IF($AB30=2,100,IF($AB30=1,10,1))))*(-1)^RANDBETWEEN(1,2))) -> 34.7 | AG31: =IF(AG32=1,$V29,$Z29) -> m
A32: =IF(COUNTIF($B$1:B32,TRUE)=COUNTIF($B$1:B31,TRUE),"",COUNTIF($B$1:B32,TRUE)) -> 25 | B32: =Worksheet!$D$20 -> TRUE | C32: =RANDBETWEEN(5,RANDBETWEEN(5,Worksheet!$D$8)) -> 70 | D32: kg | E32: ± | F32: =IF(I32=1,H32*10^RANDBETWEEN(IF(Worksheet!$D$14,-1,0),0),IF(I32=2,H32*10^RANDBETWEEN(RANDBETWEEN(0,2),2),CHOOSE(RANDBETWEEN(1,3),5,10,20))) -> 0.1 | G32: =IF(I32=1,D32,IF(I32=3,"%","g")) -> kg | H32: =RANDBETWEEN(1,MIN(9,C32)) -> 1 | I32: =IF(AND(Worksheet!$D$12,RAND()<0.2),3,IF(RAND()<Worksheet!$D$10/100,1,2)) -> 1 | J32: 0.1 | K32: =CONCATENATE(" ",D32) -> kg | L32: 100 | M32: g | V32: =RANDBETWEEN(7,8) -> 8 | W32: =IF(Worksheet!$D$16,RANDBETWEEN(1,2),1) -> 1 | X32: =RANDBETWEEN(7,8) -> 8 | Y32: =IF(Worksheet!$D$16,RANDBETWEEN(1,2),1) -> 1 | Z32: =RANDBETWEEN(7,8) -> 8 | AA32: =IF(Worksheet!$D$16,RANDBETWEEN(1,2),1) -> 1 | AB32: =RANDBETWEEN(7,8) -> 7 | AC32: =IF(Worksheet!$D$16,RANDBETWEEN(1,2),1) -> 1 | AD32: =RANDBETWEEN(7,8) -> 7 | AE32: =IF(Worksheet!$D$16,RANDBETWEEN(1,2),1) -> 1 | AF32: =RANDBETWEEN(7,8) -> 8 | AG32: =IF(Worksheet!$D$16,RANDBETWEEN(1,2),1) -> 1
A33: =IF(COUNTIF($B$1:B33,TRUE)=COUNTIF($B$1:B32,TRUE),"",COUNTIF($B$1:B33,TRUE)) -> 26 | B33: =Worksheet!$D$22 -> TRUE | C33: =RANDBETWEEN(5,RANDBETWEEN(5,Worksheet!$D$8)) -> 33 | D33: tonnes | E33: ± | F33: =IF(I33=1,H33*10^RANDBETWEEN(IF(Worksheet!$D$14,-1,0),0),IF(I33=2,H33*10^RANDBETWEEN(RANDBETWEEN(0,2),2),CHOOSE(RANDBETWEEN(1,3),5,10,20))) -> 1 | G33: =IF(I33=1,D33,IF(I33=3,"%","kg")) -> tonnes | H33: =RANDBETWEEN(1,MIN(9,C33)) -> 1 | I33: =IF(AND(Worksheet!$D$12,RAND()<0.2),3,IF(RAND()<Worksheet!$D$10/100,1,2)) -> 1 | J33: 1 | K33: =CONCATENATE(" ",D33) -> tonnes | L33: 1000 | M33: kg | S33: 9 | T33: =RANDBETWEEN(1,MAX('SYSTEM FORMULAE'!$A$1:$A$1737)) -> 292 | U33: =IF(RIGHT(TEXT(VLOOKUP(T33,'SYSTEM FORMULAE'!$A$1:$Q$1737,3),"# ##0.###"),1)=".",LEFT(TEXT(VLOOKUP(T33,'SYSTEM FORMULAE'!$A$1:$Q$1737,3),"# ##0.###"),LEN(TEXT(VLOOKUP(T33,'SYSTEM FORMULAE'!$A$1:$Q$1737,3),"# ##0.###"))-1),TEXT(VLOOKUP(T33,'SYSTEM FORMULAE'!$A$1:$Q$1737,3),"# ##0.###")) -> 33 | V33: =VLOOKUP(T33,'SYSTEM FORMULAE'!$A$1:$Q$1737,4) -> tonnes | W33: ± | X33: =IF(RIGHT(TEXT(VLOOKUP(T33,'SYSTEM FORMULAE'!$A$1:$Q$1737,6),"# ##0.###"),1)=".",LEFT(TEXT(VLOOKUP(T33,'SYSTEM FORMULAE'!$A$1:$Q$1737,6),"# ##0.###"),LEN(TEXT(VLOOKUP(T33,'SYSTEM FORMULAE'!$A$1:$Q$1737,6),"# ##0.###"))-1),TEXT(VLOOKUP(T33,'SYSTEM FORMULAE'!$A$1:$Q$1737,6),"# ##0.###")) -> 3 | Y33: =VLOOKUP(T33,'SYSTEM FORMULAE'!$A$1:$Q$1737,7) -> tonnes | Z33: =VLOOKUP(T33,'SYSTEM FORMULAE'!$A$1:$Q$1737,13) -> kg | AA33: =VLOOKUP(T33,'SYSTEM FORMULAE'!$A$1:$Q$1737,10) -> 3 | AB33: =VLOOKUP(T33,'SYSTEM FORMULAE'!$A$1:$Q$1737,12) -> 3000 | AD33: =U33-AA33 -> 30 | AE33: =V33 -> tonnes | AF33: =U33+AA33 -> 36 | AG33: =V33 -> tonnes
A34: =IF(COUNTIF($B$1:B34,TRUE)=COUNTIF($B$1:B33,TRUE),"",COUNTIF($B$1:B34,TRUE)) -> 27 | B34: =Worksheet!$D$24 -> TRUE | C34: =RANDBETWEEN(5,RANDBETWEEN(5,Worksheet!$D$8)) -> 40 | D34: litres | E34: ± | F34: =IF(I34=1,H34*10^RANDBETWEEN(IF(Worksheet!$D$14,-1,0),0),IF(I34=2,H34*10^RANDBETWEEN(RANDBETWEEN(0,2),2),CHOOSE(RANDBETWEEN(1,3),5,10,20))) -> 10 | G34: =IF(I34=1,D34,IF(I34=3,"%","ml")) -> % | H34: =RANDBETWEEN(1,MIN(9,C34)) -> 4 | I34: =IF(AND(Worksheet!$D$12,RAND()<0.2),3,IF(RAND()<Worksheet!$D$10/100,1,2)) -> 3 | J34: 4 | K34: =CONCATENATE(" ",D34) -> litres | L34: 4000 | M34: ml | AA34: =IF(AA33=INT(AA33),IF(AA33/1000=INT(AA33/1000),3,IF(AA33/100=INT(AA33/100),2,IF(AA33/10=INT(AA33/10),1,0))),INT(LOG($AA33-INT($AA33)))) -> 0 | AB34: =IF(AB33=INT(AB33),IF(AB33/1000=INT(AB33/1000),3,IF(AB33/100=INT(AB33/100),2,IF(AB33/10=INT(AB33/10),1,0))),INT(LOG($AA33-INT($AA33)))) -> 3 | AC34: =IF(Z33="cm",100,IF(Z33="°C",1,IF(AND(V33="cm",Z33="mm"),10,1000))) -> 1000
A35: =IF(COUNTIF($B$1:B35,TRUE)=COUNTIF($B$1:B34,TRUE),"",COUNTIF($B$1:B35,TRUE)) ->  | B35: =Worksheet!$D$26 -> FALSE | C35: =RANDBETWEEN(5,RANDBETWEEN(5,Worksheet!$D$8)) -> 22 | D35: litres | E35: ± | F35: =IF(I35=1,H35*10^RANDBETWEEN(IF(Worksheet!$D$14,-1,0),0),IF(I35=2,H35*10^RANDBETWEEN(RANDBETWEEN(0,2),2),CHOOSE(RANDBETWEEN(1,3),5,10,20))) -> 0.3 | G35: =IF(I35=1,D35,IF(I35=3,"%","cm³")) -> litres | H35: =RANDBETWEEN(1,MIN(9,C35)) -> 3 | I35: =IF(AND(Worksheet!$D$12,RAND()<0.2),3,IF(RAND()<Worksheet!$D$10/100,1,2)) -> 1 | J35: 0.3 | K35: =CONCATENATE(" ",D35) -> litres | L35: 300 | M35: cm³ | V35: =IF(W36=1,MAX(0,$U33+RANDBETWEEN(IF(V36=7,0,1.00001)*$AA33/10^$AA34,IF(V36=7,1,2)*$AA33/10^$AA34)*10^$AA34*(-1)^RANDBETWEEN(1,2)),MAX(0,$U33*$AC34+IF(V36=7,RANDBETWEEN(0,IF($AB34=3,$AB33/1000,IF($AB34=2,$AB33/100,IF($AB34=1,$AB33/10,$AB33))))*IF($AB34=3,1000,IF($AB34=2,100,IF($AB34=1,10,1))),RANDBETWEEN(1.00001*IF($AB34=3,$AB33/1000,IF($AB34=2,$AB33/100,IF($AB34=1,$AB33/10,$AB33))),2*IF($AB34=3,$AB33/1000,IF($AB34=2,$AB33/100,IF($AB34=1,$AB33/10,$AB33))))*IF($AB34=3,1000,IF($AB34=2,100,IF($AB34=1,10,1))))*(-1)^RANDBETWEEN(1,2))) -> 27 | W35: =IF(W36=1,$V33,$Z33) -> tonnes | X35: =IF(Y36=1,MAX(0,$U33+RANDBETWEEN(IF(X36=7,0,1.00001)*$AA33/10^$AA34,IF(X36=7,1,2)*$AA33/10^$AA34)*10^$AA34*(-1)^RANDBETWEEN(1,2)),MAX(0,$U33*$AC34+IF(X36=7,RANDBETWEEN(0,IF($AB34=3,$AB33/1000,IF($AB34=2,$AB33/100,IF($AB34=1,$AB33/10,$AB33))))*IF($AB34=3,1000,IF($AB34=2,100,IF($AB34=1,10,1))),RANDBETWEEN(1.00001*IF($AB34=3,$AB33/1000,IF($AB34=2,$AB33/100,IF($AB34=1,$AB33/10,$AB33))),2*IF($AB34=3,$AB33/1000,IF($AB34=2,$AB33/100,IF($AB34=1,$AB33/10,$AB33))))*IF($AB34=3,1000,IF($AB34=2,100,IF($AB34=1,10,1))))*(-1)^RANDBETWEEN(1,2))) -> 37 | Y35: =IF(Y36=1,$V33,$Z33) -> tonnes | Z35: =IF(AA36=1,MAX(0,$U33+RANDBETWEEN(IF(Z36=7,0,1.00001)*$AA33/10^$AA34,IF(Z36=7,1,2)*$AA33/10^$AA34)*10^$AA34*(-1)^RANDBETWEEN(1,2)),MAX(0,$U33*$AC34+IF(Z36=7,RANDBETWEEN(0,IF($AB34=3,$AB33/1000,IF($AB34=2,$AB33/100,IF($AB34=1,$AB33/10,$AB33))))*IF($AB34=3,1000,IF($AB34=2,100,IF($AB34=1,10,1))),RANDBETWEEN(1.00001*IF($AB34=3,$AB33/1000,IF($AB34=2,$AB33/100,IF($AB34=1,$AB33/10,$AB33))),2*IF($AB34=3,$AB33/1000,IF($AB34=2,$AB33/100,IF($AB34=1,$AB33/10,$AB33))))*IF($AB34=3,1000,IF($AB34=2,100,IF($AB34=1,10,1))))*(-1)^RANDBETWEEN(1,2))) -> 27 | AA35: =IF(AA36=1,$V33,$Z33) -> tonnes | AB35: =IF(AC36=1,MAX(0,$U33+RANDBETWEEN(IF(AB36=7,0,1.00001)*$AA33/10^$AA34,IF(AB36=7,1,2)*$AA33/10^$AA34)*10^$AA34*(-1)^RANDBETWEEN(1,2)),MAX(0,$U33*$AC34+IF(AB36=7,RANDBETWEEN(0,IF($AB34=3,$AB33/1000,IF($AB34=2,$AB33/100,IF($AB34=1,$AB33/10,$AB33))))*IF($AB34=3,1000,IF($AB34=2,100,IF($AB34=1,10,1))),RANDBETWEEN(1.00001*IF($AB34=3,$AB33/1000,IF($AB34=2,$AB33/100,IF($AB34=1,$AB33/10,$AB33))),2*IF($AB34=3,$AB33/1000,IF($AB34=2,$AB33/100,IF($AB34=1,$AB33/10,$AB33))))*IF($AB34=3,1000,IF($AB34=2,100,IF($AB34=1,10,1))))*(-1)^RANDBETWEEN(1,2))) -> 28 | AC35: =IF(AC36=1,$V33,$Z33) -> tonnes | AD35: =IF(AE36=1,MAX(0,$U33+RANDBETWEEN(IF(AD36=7,0,1.00001)*$AA33/10^$AA34,IF(AD36=7,1,2)*$AA33/10^$AA34)*10^$AA34*(-1)^RANDBETWEEN(1,2)),MAX(0,$U33*$AC34+IF(AD36=7,RANDBETWEEN(0,IF($AB34=3,$AB33/1000,IF($AB34=2,$AB33/100,IF($AB34=1,$AB33/10,$AB33))))*IF($AB34=3,1000,IF($AB34=2,100,IF($AB34=1,10,1))),RANDBETWEEN(1.00001*IF($AB34=3,$AB33/1000,IF($AB34=2,$AB33/100,IF($AB34=1,$AB33/10,$AB33))),2*IF($AB34=3,$AB33/1000,IF($AB34=2,$AB33/100,IF($AB34=1,$AB33/10,$AB33))))*IF($AB34=3,1000,IF($AB34=2,100,IF($AB34=1,10,1))))*(-1)^RANDBETWEEN(1,2))) -> 27 | AE35: =IF(AE36=1,$V33,$Z33) -> tonnes | AF35: =IF(AG36=1,MAX(0,$U33+RANDBETWEEN(IF(AF36=7,0,1.00001)*$AA33/10^$AA34,IF(AF36=7,1,2)*$AA33/10^$AA34)*10^$AA34*(-1)^RANDBETWEEN(1,2)),MAX(0,$U33*$AC34+IF(AF36=7,RANDBETWEEN(0,IF($AB34=3,$AB33/1000,IF($AB34=2,$AB33/100,IF($AB34=1,$AB33/10,$AB33))))*IF($AB34=3,1000,IF($AB34=2,100,IF($AB34=1,10,1))),RANDBETWEEN(1.00001*IF($AB34=3,$AB33/1000,IF($AB34=2,$AB33/100,IF($AB34=1,$AB33/10,$AB33))),2*IF($AB34=3,$AB33/1000,IF($AB34=2,$AB33/100,IF($AB34=1,$AB33/10,$AB33))))*IF($AB34=3,1000,IF($AB34=2,100,IF($AB34=1,10,1))))*(-1)^RANDBETWEEN(1,2))) -> 31 | AG35: =IF(AG36=1,$V33,$Z33) -> tonnes
A36: =IF(COUNTIF($B$1:B36,TRUE)=COUNTIF($B$1:B36,TRUE),"",COUNTIF($B$1:B36,TRUE)) ->  | B36: =Worksheet!$B$28 -> TRUE | C36: =RANDBETWEEN(5,20) -> 14 | D36: °C | E36: ± | F36: =IF(I36=1,H36*10^RANDBETWEEN(IF(Worksheet!$D$14,-1,0),0),IF(I36=2,H36,CHOOSE(RANDBETWEEN(1,3),5,10,20))) -> 0.2 | G36: =IF(I36=1,D36,IF(I36=3,"%","sec")) -> °C | H36: =RANDBETWEEN(1,MIN(9,C36)) -> 2 | I36: =IF(AND(Worksheet!$D$12,RAND()<0),3,IF(RAND()<Worksheet!$D$10/100,1,2)) -> 1 | J36: =IF(I36=1,F36,IF(I36=2,F36,IF(I36=3,F36/100*C36,""))) -> 0.2 | K36: =CONCATENATE(" ",D36) -> °C | L36: =IF(I36=1,F36,IF(I36=2,F36,IF(I36=3,F36/100*C36,""))) -> 0.2 | M36: °C | V36: =RANDBETWEEN(7,8) -> 8 | W36: =IF(Worksheet!$D$16,RANDBETWEEN(1,2),1) -> 1 | X36: =RANDBETWEEN(7,8) -> 8 | Y36: =IF(Worksheet!$D$16,RANDBETWEEN(1,2),1) -> 1 | Z36: =RANDBETWEEN(7,8) -> 8 | AA36: =IF(Worksheet!$D$16,RANDBETWEEN(1,2),1) -> 1 | AB36: =RANDBETWEEN(7,8) -> 8 | AC36: =IF(Worksheet!$D$16,RANDBETWEEN(1,2),1) -> 1 | AD36: =RANDBETWEEN(7,8) -> 8 | AE36: =IF(Worksheet!$D$16,RANDBETWEEN(1,2),1) -> 1 | AF36: =RANDBETWEEN(7,8) -> 7 | AG36: =IF(Worksheet!$D$16,RANDBETWEEN(1,2),1) -> 1
A37: =COUNTIF($B$1:B37,TRUE) -> 29 | B37: =Worksheet!$B$20 -> TRUE | C37: =RANDBETWEEN(5,RANDBETWEEN(5,Worksheet!$D$8)) -> 23 | D37: cm | E37: ± | F37: =IF(I37=1,H37*10^RANDBETWEEN(IF(Worksheet!$D$14,-1,0),0),IF(I37=2,H37,CHOOSE(RANDBETWEEN(1,3),5,10,20))) -> 20 | G37: =IF(I37=1,D37,IF(I37=3,"%","mm")) -> % | H37: =RANDBETWEEN(1,MIN(9,C37)) -> 6 | I37: =IF(AND(Worksheet!$D$12,RAND()<0.2),3,IF(RAND()<Worksheet!$D$10/100,1,2)) -> 3 | J37: =IF(I37=1,F37,IF(I37=2,F37/10,IF(I37=3,F37/100*C37,""))) -> 4.6 | K37: =CONCATENATE(" ",D37) -> cm | L37: =IF(I37=1,F37*10,IF(I37=2,F37,IF(I37=3,F37/100*C37*10,""))) -> 46 | M37: mm | S37: 10 | T37: =RANDBETWEEN(1,MAX('SYSTEM FORMULAE'!$A$1:$A$1737)) -> 629 | U37: =IF(RIGHT(TEXT(VLOOKUP(T37,'SYSTEM FORMULAE'!$A$1:$Q$1737,3),"# ##0.###"),1)=".",LEFT(TEXT(VLOOKUP(T37,'SYSTEM FORMULAE'!$A$1:$Q$1737,3),"# ##0.###"),LEN(TEXT(VLOOKUP(T37,'SYSTEM FORMULAE'!$A$1:$Q$1737,3),"# ##0.###"))-1),TEXT(VLOOKUP(T37,'SYSTEM FORMULAE'!$A$1:$Q$1737,3),"# ##0.###")) -> 58 | V37: =VLOOKUP(T37,'SYSTEM FORMULAE'!$A$1:$Q$1737,4) -> litres | W37: ± | X37: =IF(RIGHT(TEXT(VLOOKUP(T37,'SYSTEM FORMULAE'!$A$1:$Q$1737,6),"# ##0.###"),1)=".",LEFT(TEXT(VLOOKUP(T37,'SYSTEM FORMULAE'!$A$1:$Q$1737,6),"# ##0.###"),LEN(TEXT(VLOOKUP(T37,'SYSTEM FORMULAE'!$A$1:$Q$1737,6),"# ##0.###"))-1),TEXT(VLOOKUP(T37,'SYSTEM FORMULAE'!$A$1:$Q$1737,6),"# ##0.###")) -> 0.2 | Y37: =VLOOKUP(T37,'SYSTEM FORMULAE'!$A$1:$Q$1737,7) -> litres | Z37: =VLOOKUP(T37,'SYSTEM FORMULAE'!$A$1:$Q$1737,13) -> ml | AA37: =VLOOKUP(T37,'SYSTEM FORMULAE'!$A$1:$Q$1737,10) -> 0.2 | AB37: =VLOOKUP(T37,'SYSTEM FORMULAE'!$A$1:$Q$1737,12) -> 200 | AD37: =U37-AA37 -> 57.8 | AE37: =V37 -> litres | AF37: =U37+AA37 -> 58.2 | AG37: =V37 -> litres
A38: =IF(COUNTIF($B$1:B38,TRUE)=COUNTIF($B$1:B37,TRUE),"",COUNTIF($B$1:B38,TRUE)) -> 30 | B38: =Worksheet!$B$22 -> TRUE | C38: =RANDBETWEEN(5,RANDBETWEEN(5,Worksheet!$D$8)) -> 144 | D38: m | E38: ± | F38: =IF(I38=1,H38*10^RANDBETWEEN(IF(Worksheet!$D$14,-1,0),0),IF(I38=2,H38*10^RANDBETWEEN(RANDBETWEEN(0,1),1),CHOOSE(RANDBETWEEN(1,3),5,10,20))) -> 0.4 | G38: =IF(I38=1,D38,IF(I38=3,"%","cm")) -> m | H38: =RANDBETWEEN(1,MIN(9,C38)) -> 4 | I38: =IF(AND(Worksheet!$D$12,RAND()<0.2),3,IF(RAND()<Worksheet!$D$10/100,1,2)) -> 1 | J38: =IF(I38=1,F38,IF(I38=2,F38/100,IF(I38=3,F38/100*C38,""))) -> 0.4 | K38: =CONCATENATE(" ",D38) -> m | L38: =IF(I38=1,F38*100,IF(I38=2,F38,IF(I38=3,F38/100*C38*100,""))) -> 40 | M38: cm | AA38: =IF(AA37=INT(AA37),IF(AA37/1000=INT(AA37/1000),3,IF(AA37/100=INT(AA37/100),2,IF(AA37/10=INT(AA37/10),1,0))),INT(LOG($AA37-INT($AA37)))) -> -1 | AB38: =IF(AB37=INT(AB37),IF(AB37/1000=INT(AB37/1000),3,IF(AB37/100=INT(AB37/100),2,IF(AB37/10=INT(AB37/10),1,0))),INT(LOG($AA37-INT($AA37)))) -> 2 | AC38: =IF(Z37="cm",100,IF(Z37="°C",1,IF(AND(V37="cm",Z37="mm"),10,1000))) -> 1000
A39: =IF(COUNTIF($B$1:B39,TRUE)=COUNTIF($B$1:B38,TRUE),"",COUNTIF($B$1:B39,TRUE)) -> 31 | B39: =Worksheet!$B$24 -> TRUE | C39: =RANDBETWEEN(5,RANDBETWEEN(5,Worksheet!$D$8)) -> 39 | D39: km | E39: ± | F39: =IF(I39=1,H39*10^RANDBETWEEN(IF(Worksheet!$D$14,-1,0),0),IF(I39=2,H39*10^RANDBETWEEN(RANDBETWEEN(0,2),2),CHOOSE(RANDBETWEEN(1,3),5,10,20))) -> 900 | G39: =IF(I39=1,D39,IF(I39=3,"%","m")) -> m | H39: 9 | I39: =IF(AND(Worksheet!$D$12,RAND()<0.2),3,IF(RAND()<Worksheet!$D$10/100,1,2)) -> 2 | J39: =IF(I39=1,F39,IF(I39=2,F39/1000,IF(I39=3,F39/100*C39,""))) -> 0.9 | K39: km | L39: =IF(I39=1,F39*1000,IF(I39=2,F39,IF(I39=3,F39/100*C39*1000,""))) -> 900 | M39: m | V39: =IF(W40=1,MAX(0,$U37+RANDBETWEEN(IF(V40=7,0,1.00001)*$AA37/10^$AA38,IF(V40=7,1,2)*$AA37/10^$AA38)*10^$AA38*(-1)^RANDBETWEEN(1,2)),MAX(0,$U37*$AC38+IF(V40=7,RANDBETWEEN(0,IF($AB38=3,$AB37/1000,IF($AB38=2,$AB37/100,IF($AB38=1,$AB37/10,$AB37))))*IF($AB38=3,1000,IF($AB38=2,100,IF($AB38=1,10,1))),RANDBETWEEN(1.00001*IF($AB38=3,$AB37/1000,IF($AB38=2,$AB37/100,IF($AB38=1,$AB37/10,$AB37))),2*IF($AB38=3,$AB37/1000,IF($AB38=2,$AB37/100,IF($AB38=1,$AB37/10,$AB37))))*IF($AB38=3,1000,IF($AB38=2,100,IF($AB38=1,10,1))))*(-1)^RANDBETWEEN(1,2))) -> 58.4 | W39: =IF(W40=1,$V37,$Z37) -> litres | X39: =IF(Y40=1,MAX(0,$U37+RANDBETWEEN(IF(X40=7,0,1.00001)*$AA37/10^$AA38,IF(X40=7,1,2)*$AA37/10^$AA38)*10^$AA38*(-1)^RANDBETWEEN(1,2)),MAX(0,$U37*$AC38+IF(X40=7,RANDBETWEEN(0,IF($AB38=3,$AB37/1000,IF($AB38=2,$AB37/100,IF($AB38=1,$AB37/10,$AB37))))*IF($AB38=3,1000,IF($AB38=2,100,IF($AB38=1,10,1))),RANDBETWEEN(1.00001*IF($AB38=3,$AB37/1000,IF($AB38=2,$AB37/100,IF($AB38=1,$AB37/10,$AB37))),2*IF($AB38=3,$AB37/1000,IF($AB38=2,$AB37/100,IF($AB38=1,$AB37/10,$AB37))))*IF($AB38=3,1000,IF($AB38=2,100,IF($AB38=1,10,1))))*(-1)^RANDBETWEEN(1,2))) -> 57.8 | Y39: =IF(Y40=1,$V37,$Z37) -> litres | Z39: =IF(AA40=1,MAX(0,$U37+RANDBETWEEN(IF(Z40=7,0,1.00001)*$AA37/10^$AA38,IF(Z40=7,1,2)*$AA37/10^$AA38)*10^$AA38*(-1)^RANDBETWEEN(1,2)),MAX(0,$U37*$AC38+IF(Z40=7,RANDBETWEEN(0,IF($AB38=3,$AB37/1000,IF($AB38=2,$AB37/100,IF($AB38=1,$AB37/10,$AB37))))*IF($AB38=3,1000,IF($AB38=2,100,IF($AB38=1,10,1))),RANDBETWEEN(1.00001*IF($AB38=3,$AB37/1000,IF($AB38=2,$AB37/100,IF($AB38=1,$AB37/10,$AB37))),2*IF($AB38=3,$AB37/1000,IF($AB38=2,$AB37/100,IF($AB38=1,$AB37/10,$AB37))))*IF($AB38=3,1000,IF($AB38=2,100,IF($AB38=1,10,1))))*(-1)^RANDBETWEEN(1,2))) -> 57.9 | AA39: =IF(AA40=1,$V37,$Z37) -> litres | AB39: =IF(AC40=1,MAX(0,$U37+RANDBETWEEN(IF(AB40=7,0,1.00001)*$AA37/10^$AA38,IF(AB40=7,1,2)*$AA37/10^$AA38)*10^$AA38*(-1)^RANDBETWEEN(1,2)),MAX(0,$U37*$AC38+IF(AB40=7,RANDBETWEEN(0,IF($AB38=3,$AB37/1000,IF($AB38=2,$AB37/100,IF($AB38=1,$AB37/10,$AB37))))*IF($AB38=3,1000,IF($AB38=2,100,IF($AB38=1,10,1))),RANDBETWEEN(1.00001*IF($AB38=3,$AB37/1000,IF($AB38=2,$AB37/100,IF($AB38=1,$AB37/10,$AB37))),2*IF($AB38=3,$AB37/1000,IF($AB38=2,$AB37/100,IF($AB38=1,$AB37/10,$AB37))))*IF($AB38=3,1000,IF($AB38=2,100,IF($AB38=1,10,1))))*(-1)^RANDBETWEEN(1,2))) -> 57.8 | AC39: =IF(AC40=1,$V37,$Z37) -> litres | AD39: =IF(AE40=1,MAX(0,$U37+RANDBETWEEN(IF(AD40=7,0,1.00001)*$AA37/10^$AA38,IF(AD40=7,1,2)*$AA37/10^$AA38)*10^$AA38*(-1)^RANDBETWEEN(1,2)),MAX(0,$U37*$AC38+IF(AD40=7,RANDBETWEEN(0,IF($AB38=3,$AB37/1000,IF($AB38=2,$AB37/100,IF($AB38=1,$AB37/10,$AB37))))*IF($AB38=3,1000,IF($AB38=2,100,IF($AB38=1,10,1))),RANDBETWEEN(1.00001*IF($AB38=3,$AB37/1000,IF($AB38=2,$AB37/100,IF($AB38=1,$AB37/10,$AB37))),2*IF($AB38=3,$AB37/1000,IF($AB38=2,$AB37/100,IF($AB38=1,$AB37/10,$AB37))))*IF($AB38=3,1000,IF($AB38=2,100,IF($AB38=1,10,1))))*(-1)^RANDBETWEEN(1,2))) -> 58.2 | AE39: =IF(AE40=1,$V37,$Z37) -> litres | AF39: =IF(AG40=1,MAX(0,$U37+RANDBETWEEN(IF(AF40=7,0,1.00001)*$AA37/10^$AA38,IF(AF40=7,1,2)*$AA37/10^$AA38)*10^$AA38*(-1)^RANDBETWEEN(1,2)),MAX(0,$U37*$AC38+IF(AF40=7,RANDBETWEEN(0,IF($AB38=3,$AB37/1000,IF($AB38=2,$AB37/100,IF($AB38=1,$AB37/10,$AB37))))*IF($AB38=3,1000,IF($AB38=2,100,IF($AB38=1,10,1))),RANDBETWEEN(1.00001*IF($AB38=3,$AB37/1000,IF($AB38=2,$AB37/100,IF($AB38=1,$AB37/10,$AB37))),2*IF($AB38=3,$AB37/1000,IF($AB38=2,$AB37/100,IF($AB38=1,$AB37/10,$AB37))))*IF($AB38=3,1000,IF($AB38=2,100,IF($AB38=1,10,1))))*(-1)^RANDBETWEEN(1,2))) -> 58.1 | AG39: =IF(AG40=1,$V37,$Z37) -> litres
A40: =IF(COUNTIF($B$1:B40,TRUE)=COUNTIF($B$1:B39,TRUE),"",COUNTIF($B$1:B40,TRUE)) ->  | B40: =Worksheet!$B$26 -> FALSE | C40: =RANDBETWEEN(5,RANDBETWEEN(5,Worksheet!$D$8)) -> 112 | D40: m | E40: ± | F40: =IF(I40=1,H40*10^RANDBETWEEN(IF(Worksheet!$D$14,-1,0),0),IF(I40=2,H40*10^RANDBETWEEN(RANDBETWEEN(0,2),2),CHOOSE(RANDBETWEEN(1,3),5,10,20))) -> 10 | G40: =IF(I40=1,D40,IF(I40=3,"%","mm")) -> mm | H40: 1 | I40: =IF(AND(Worksheet!$D$12,RAND()<0.2),3,IF(RAND()<Worksheet!$D$10/100,1,2)) -> 2 | J40: 0.01 | K40: m | L40: 10 | M40: mm | V40: =RANDBETWEEN(7,8) -> 8 | W40: =IF(Worksheet!$D$16,RANDBETWEEN(1,2),1) -> 1 | X40: =RANDBETWEEN(7,8) -> 7 | Y40: =IF(Worksheet!$D$16,RANDBETWEEN(1,2),1) -> 1 | Z40: =RANDBETWEEN(7,8) -> 7 | AA40: =IF(Worksheet!$D$16,RANDBETWEEN(1,2),1) -> 1 | AB40: =RANDBETWEEN(7,8) -> 7 | AC40: =IF(Worksheet!$D$16,RANDBETWEEN(1,2),1) -> 1 | AD40: =RANDBETWEEN(7,8) -> 7 | AE40: =IF(Worksheet!$D$16,RANDBETWEEN(1,2),1) -> 1 | AF40: =RANDBETWEEN(7,8) -> 7 | AG40: =IF(Worksheet!$D$16,RANDBETWEEN(1,2),1) -> 1
A41: =IF(COUNTIF($B$1:B41,TRUE)=COUNTIF($B$1:B40,TRUE),"",COUNTIF($B$1:B41,TRUE)) -> 32 | B41: =Worksheet!$D$20 -> TRUE | C41: =RANDBETWEEN(5,RANDBETWEEN(5,Worksheet!$D$8)) -> 36 | D41: kg | E41: ± | F41: =IF(I41=1,H41*10^RANDBETWEEN(IF(Worksheet!$D$14,-1,0),0),IF(I41=2,H41*10^RANDBETWEEN(RANDBETWEEN(0,2),2),CHOOSE(RANDBETWEEN(1,3),5,10,20))) -> 0.8 | G41: =IF(I41=1,D41,IF(I41=3,"%","g")) -> kg | H41: =RANDBETWEEN(1,MIN(9,C41)) -> 8 | I41: =IF(AND(Worksheet!$D$12,RAND()<0.2),3,IF(RAND()<Worksheet!$D$10/100,1,2)) -> 1 | J41: 0.8 | K41: =CONCATENATE(" ",D41) -> kg | L41: 800 | M41: g
A42: =IF(COUNTIF($B$1:B42,TRUE)=COUNTIF($B$1:B41,TRUE),"",COUNTIF($B$1:B42,TRUE)) -> 33 | B42: =Worksheet!$D$22 -> TRUE | C42: =RANDBETWEEN(5,RANDBETWEEN(5,Worksheet!$D$8)) -> 16 | D42: tonnes | E42: ± | F42: =IF(I42=1,H42*10^RANDBETWEEN(IF(Worksheet!$D$14,-1,0),0),IF(I42=2,H42*10^RANDBETWEEN(RANDBETWEEN(0,2),2),CHOOSE(RANDBETWEEN(1,3),5,10,20))) -> 0.1 | G42: =IF(I42=1,D42,IF(I42=3,"%","kg")) -> tonnes | H42: =RANDBETWEEN(1,MIN(9,C42)) -> 1 | I42: =IF(AND(Worksheet!$D$12,RAND()<0.2),3,IF(RAND()<Worksheet!$D$10/100,1,2)) -> 1 | J42: 0.1 | K42: =CONCATENATE(" ",D42) -> tonnes | L42: 100 | M42: kg
A43: =IF(COUNTIF($B$1:B43,TRUE)=COUNTIF($B$1:B42,TRUE),"",COUNTIF($B$1:B43,TRUE)) -> 34 | B43: =Worksheet!$D$24 -> TRUE | C43: =RANDBETWEEN(5,RANDBETWEEN(5,Worksheet!$D$8)) -> 38 | D43: litres | E43: ± | F43: =IF(I43=1,H43*10^RANDBETWEEN(IF(Worksheet!$D$14,-1,0),0),IF(I43=2,H43*10^RANDBETWEEN(RANDBETWEEN(0,2),2),CHOOSE(RANDBETWEEN(1,3),5,10,20))) -> 5 | G43: =IF(I43=1,D43,IF(I43=3,"%","ml")) -> % | H43: =RANDBETWEEN(1,MIN(9,C43)) -> 8 | I43: =IF(AND(Worksheet!$D$12,RAND()<0.2),3,IF(RAND()<Worksheet!$D$10/100,1,2)) -> 3 | J43: 1.9 | K43: =CONCATENATE(" ",D43) -> litres | L43: 1900 | M43: ml
A44: =IF(COUNTIF($B$1:B44,TRUE)=COUNTIF($B$1:B43,TRUE),"",COUNTIF($B$1:B44,TRUE)) ->  | B44: =Worksheet!$D$26 -> FALSE | C44: =RANDBETWEEN(5,RANDBETWEEN(5,Worksheet!$D$8)) -> 19 | D44: litres | E44: ± | F44: =IF(I44=1,H44*10^RANDBETWEEN(IF(Worksheet!$D$14,-1,0),0),IF(I44=2,H44*10^RANDBETWEEN(RANDBETWEEN(0,2),2),CHOOSE(RANDBETWEEN(1,3),5,10,20))) -> 0.1 | G44: =IF(I44=1,D44,IF(I44=3,"%","cm³")) -> litres | H44: =RANDBETWEEN(1,MIN(9,C44)) -> 1 | I44: =IF(AND(Worksheet!$D$12,RAND()<0.2),3,IF(RAND()<Worksheet!$D$10/100,1,2)) -> 1 | J44: 0.1 | K44: =CONCATENATE(" ",D44) -> litres | L44: 100 | M44: cm³
A45: =IF(COUNTIF($B$1:B45,TRUE)=COUNTIF($B$1:B45,TRUE),"",COUNTIF($B$1:B45,TRUE)) ->  | B45: =Worksheet!$B$28 -> TRUE | C45: =RANDBETWEEN(5,20) -> 20 | D45: °C | E45: ± | F45: =IF(I45=1,H45*10^RANDBETWEEN(IF(Worksheet!$D$14,-1,0),0),IF(I45=2,H45,CHOOSE(RANDBETWEEN(1,3),5,10,20))) -> 6 | G45: =IF(I45=1,D45,IF(I45=3,"%","sec")) -> sec | H45: =RANDBETWEEN(1,MIN(9,C45)) -> 6 | I45: =IF(AND(Worksheet!$D$12,RAND()<0),3,IF(RAND()<Worksheet!$D$10/100,1,2)) -> 2 | J45: =IF(I45=1,F45,IF(I45=2,F45,IF(I45=3,F45/100*C45,""))) -> 6 | K45: =CONCATENATE(" ",D45) -> °C | L45: =IF(I45=1,F45,IF(I45=2,F45,IF(I45=3,F45/100*C45,""))) -> 6 | M45: °C
A46: =COUNTIF($B$1:B46,TRUE) -> 36 | B46: =Worksheet!$B$20 -> TRUE | C46: =RANDBETWEEN(5,RANDBETWEEN(5,Worksheet!$D$8)) -> 144 | D46: cm | E46: ± | F46: =IF(I46=1,H46*10^RANDBETWEEN(IF(Worksheet!$D$14,-1,0),0),IF(I46=2,H46,CHOOSE(RANDBETWEEN(1,3),5,10,20))) -> 0.6 | G46: =IF(I46=1,D46,IF(I46=3,"%","mm")) -> cm | H46: =RANDBETWEEN(1,MIN(9,C46)) -> 6 | I46: =IF(AND(Worksheet!$D$12,RAND()<0.2),3,IF(RAND()<Worksheet!$D$10/100,1,2)) -> 1 | J46: =IF(I46=1,F46,IF(I46=2,F46/10,IF(I46=3,F46/100*C46,""))) -> 0.6 | K46: =CONCATENATE(" ",D46) -> cm | L46: =IF(I46=1,F46*10,IF(I46=2,F46,IF(I46=3,F46/100*C46*10,""))) -> 6 | M46: mm
A47: =IF(COUNTIF($B$1:B47,TRUE)=COUNTIF($B$1:B46,TRUE),"",COUNTIF($B$1:B47,TRUE)) -> 37 | B47: =Worksheet!$B$22 -> TRUE | C47: =RANDBETWEEN(5,RANDBETWEEN(5,Worksheet!$D$8)) -> 10 | D47: m | E47: ± | F47: =IF(I47=1,H47*10^RANDBETWEEN(IF(Worksheet!$D$14,-1,0),0),IF(I47=2,H47*10^RANDBETWEEN(RANDBETWEEN(0,1),1),CHOOSE(RANDBETWEEN(1,3),5,10,20))) -> 7 | G47: =IF(I47=1,D47,IF(I47=3,"%","cm")) -> m | H47: =RANDBETWEEN(1,MIN(9,C47)) -> 7 | I47: =IF(AND(Worksheet!$D$12,RAND()<0.2),3,IF(RAND()<Worksheet!$D$10/100,1,2)) -> 1 | J47: =IF(I47=1,F47,IF(I47=2,F47/100,IF(I47=3,F47/100*C47,""))) -> 7 | K47: =CONCATENATE(" ",D47) -> m | L47: =IF(I47=1,F47*100,IF(I47=2,F47,IF(I47=3,F47/100*C47*100,""))) -> 700 | M47: cm
A48: =IF(COUNTIF($B$1:B48,TRUE)=COUNTIF($B$1:B47,TRUE),"",COUNTIF($B$1:B48,TRUE)) -> 38 | B48: =Worksheet!$B$24 -> TRUE | C48: =RANDBETWEEN(5,RANDBETWEEN(5,Worksheet!$D$8)) -> 86 | D48: km | E48: ± | F48: =IF(I48=1,H48*10^RANDBETWEEN(IF(Worksheet!$D$14,-1,0),0),IF(I48=2,H48*10^RANDBETWEEN(RANDBETWEEN(0,2),2),CHOOSE(RANDBETWEEN(1,3),5,10,20))) -> 7 | G48: =IF(I48=1,D48,IF(I48=3,"%","m")) -> km | H48: 7 | I48: =IF(AND(Worksheet!$D$12,RAND()<0.2),3,IF(RAND()<Worksheet!$D$10/100,1,2)) -> 1 | J48: =IF(I48=1,F48,IF(I48=2,F48/1000,IF(I48=3,F48/100*C48,""))) -> 7 | K48: km | L48: =IF(I48=1,F48*1000,IF(I48=2,F48,IF(I48=3,F48/100*C48*1000,""))) -> 7000 | M48: m
A49: =IF(COUNTIF($B$1:B49,TRUE)=COUNTIF($B$1:B48,TRUE),"",COUNTIF($B$1:B49,TRUE)) ->  | B49: =Worksheet!$B$26 -> FALSE | C49: =RANDBETWEEN(5,RANDBETWEEN(5,Worksheet!$D$8)) -> 56 | D49: m | E49: ± | F49: =IF(I49=1,H49*10^RANDBETWEEN(IF(Worksheet!$D$14,-1,0),0),IF(I49=2,H49*10^RANDBETWEEN(RANDBETWEEN(0,2),2),CHOOSE(RANDBETWEEN(1,3),5,10,20))) -> 0.3 | G49: =IF(I49=1,D49,IF(I49=3,"%","mm")) -> m | H49: 3 | I49: =IF(AND(Worksheet!$D$12,RAND()<0.2),3,IF(RAND()<Worksheet!$D$10/100,1,2)) -> 1 | J49: 0.3 | K49: m | L49: 300 | M49: mm
B50: =Worksheet!$D$20 -> TRUE | C50: =RANDBETWEEN(5,RANDBETWEEN(5,Worksheet!$D$8)) -> 20 | D50: kg | E50: ± | F50: =IF(I50=1,H50*10^RANDBETWEEN(IF(Worksheet!$D$14,-1,0),0),IF(I50=2,H50*10^RANDBETWEEN(RANDBETWEEN(0,2),2),CHOOSE(RANDBETWEEN(1,3),5,10,20))) -> 500 | G50: =IF(I50=1,D50,IF(I50=3,"%","g")) -> g | H50: =RANDBETWEEN(1,MIN(9,C50)) -> 5 | I50: =IF(AND(Worksheet!$D$12,RAND()<0.2),3,IF(RAND()<Worksheet!$D$10/100,1,2)) -> 2 | J50: 0.5 | K50: =CONCATENATE(" ",D50) -> kg | L50: 500 | M50: g
A51: =IF(COUNTIF($B$1:B51,TRUE)=COUNTIF($B$1:B50,TRUE),"",COUNTIF($B$1:B51,TRUE)) -> 40 | B51: =Worksheet!$D$22 -> TRUE | C51: =RANDBETWEEN(5,RANDBETWEEN(5,Worksheet!$D$8)) -> 170 | D51: tonnes | E51: ± | F51: =IF(I51=1,H51*10^RANDBETWEEN(IF(Worksheet!$D$14,-1,0),0),IF(I51=2,H51*10^RANDBETWEEN(RANDBETWEEN(0,2),2),CHOOSE(RANDBETWEEN(1,3),5,10,20))) -> 5 | G51: =IF(I51=1,D51,IF(I51=3,"%","kg")) -> % | H51: =RANDBETWEEN(1,MIN(9,C51)) -> 7 | I51: =IF(AND(Worksheet!$D$12,RAND()<0.2),3,IF(RAND()<Worksheet!$D$10/100,1,2)) -> 3 | J51: 8.5 | K51: =CONCATENATE(" ",D51) -> tonnes | L51: 8500 | M51: kg
A52: =IF(COUNTIF($B$1:B52,TRUE)=COUNTIF($B$1:B51,TRUE),"",COUNTIF($B$1:B52,TRUE)) -> 41 | B52: =Worksheet!$D$24 -> TRUE | C52: =RANDBETWEEN(5,RANDBETWEEN(5,Worksheet!$D$8)) -> 53 | D52: litres | E52: ± | F52: =IF(I52=1,H52*10^RANDBETWEEN(IF(Worksheet!$D$14,-1,0),0),IF(I52=2,H52*10^RANDBETWEEN(RANDBETWEEN(0,2),2),CHOOSE(RANDBETWEEN(1,3),5,10,20))) -> 10 | G52: =IF(I52=1,D52,IF(I52=3,"%","ml")) -> % | H52: =RANDBETWEEN(1,MIN(9,C52)) -> 2 | I52: =IF(AND(Worksheet!$D$12,RAND()<0.2),3,IF(RAND()<Worksheet!$D$10/100,1,2)) -> 3 | J52: 5.3 | K52: =CONCATENATE(" ",D52) -> litres | L52: 5300 | M52: ml
A53: =IF(COUNTIF($B$1:B53,TRUE)=COUNTIF($B$1:B52,TRUE),"",COUNTIF($B$1:B53,TRUE)) ->  | B53: =Worksheet!$D$26 -> FALSE | C53: =RANDBETWEEN(5,RANDBETWEEN(5,Worksheet!$D$8)) -> 18 | D53: litres | E53: ± | F53: =IF(I53=1,H53*10^RANDBETWEEN(IF(Worksheet!$D$14,-1,0),0),IF(I53=2,H53*10^RANDBETWEEN(RANDBETWEEN(0,2),2),CHOOSE(RANDBETWEEN(1,3),5,10,20))) -> 0.1 | G53: =IF(I53=1,D53,IF(I53=3,"%","cm³")) -> litres | H53: =RANDBETWEEN(1,MIN(9,C53)) -> 1 | I53: =IF(AND(Worksheet!$D$12,RAND()<0.2),3,IF(RAND()<Worksheet!$D$10/100,1,2)) -> 1 | J53: 0.1 | K53: =CONCATENATE(" ",D53) -> litres | L53: 100 | M53: cm³
A54: =IF(COUNTIF($B$1:B54,TRUE)=COUNTIF($B$1:B54,TRUE),"",COUNTIF($B$1:B54,TRUE)) ->  | B54: =Worksheet!$B$28 -> TRUE | C54: =RANDBETWEEN(5,20) -> 11 | D54: °C | E54: ± | F54: =IF(I54=1,H54*10^RANDBETWEEN(IF(Worksheet!$D$14,-1,0),0),IF(I54=2,H54,CHOOSE(RANDBETWEEN(1,3),5,10,20))) -> 0.3 | G54: =IF(I54=1,D54,IF(I54=3,"%","sec")) -> °C | H54: =RANDBETWEEN(1,MIN(9,C54)) -> 3 | I54: =IF(AND(Worksheet!$D$12,RAND()<0),3,IF(RAND()<Worksheet!$D$10/100,1,2)) -> 1 | J54: =IF(I54=1,F54,IF(I54=2,F54,IF(I54=3,F54/100*C54,""))) -> 0.3 | K54: =CONCATENATE(" ",D54) -> °C | L54: =IF(I54=1,F54,IF(I54=2,F54,IF(I54=3,F54/100*C54,""))) -> 0.3 | M54: °C
A55: =COUNTIF($B$1:B55,TRUE) -> 43 | B55: =Worksheet!$B$20 -> TRUE | C55: =RANDBETWEEN(5,RANDBETWEEN(5,Worksheet!$D$8)) -> 5 | D55: cm | E55: ± | F55: =IF(I55=1,H55*10^RANDBETWEEN(IF(Worksheet!$D$14,-1,0),0),IF(I55=2,H55,CHOOSE(RANDBETWEEN(1,3),5,10,20))) -> 0.1 | G55: =IF(I55=1,D55,IF(I55=3,"%","mm")) -> cm | H55: =RANDBETWEEN(1,MIN(9,C55)) -> 1 | I55: =IF(AND(Worksheet!$D$12,RAND()<0.2),3,IF(RAND()<Worksheet!$D$10/100,1,2)) -> 1 | J55: =IF(I55=1,F55,IF(I55=2,F55/10,IF(I55=3,F55/100*C55,""))) -> 0.1 | K55: =CONCATENATE(" ",D55) -> cm | L55: =IF(I55=1,F55*10,IF(I55=2,F55,IF(I55=3,F55/100*C55*10,""))) -> 1 | M55: mm
A56: =IF(COUNTIF($B$1:B56,TRUE)=COUNTIF($B$1:B55,TRUE),"",COUNTIF($B$1:B56,TRUE)) -> 44 | B56: =Worksheet!$B$22 -> TRUE | C56: =RANDBETWEEN(5,RANDBETWEEN(5,Worksheet!$D$8)) -> 7 | D56: m | E56: ± | F56: =IF(I56=1,H56*10^RANDBETWEEN(IF(Worksheet!$D$14,-1,0),0),IF(I56=2,H56*10^RANDBETWEEN(RANDBETWEEN(0,1),1),CHOOSE(RANDBETWEEN(1,3),5,10,20))) -> 0.6 | G56: =IF(I56=1,D56,IF(I56=3,"%","cm")) -> m | H56: =RANDBETWEEN(1,MIN(9,C56)) -> 6 | I56: =IF(AND(Worksheet!$D$12,RAND()<0.2),3,IF(RAND()<Worksheet!$D$10/100,1,2)) -> 1 | J56: =IF(I56=1,F56,IF(I56=2,F56/100,IF(I56=3,F56/100*C56,""))) -> 0.6 | K56: =CONCATENATE(" ",D56) -> m | L56: =IF(I56=1,F56*100,IF(I56=2,F56,IF(I56=3,F56/100*C56*100,""))) -> 60 | M56: cm
A57: =IF(COUNTIF($B$1:B57,TRUE)=COUNTIF($B$1:B56,TRUE),"",COUNTIF($B$1:B57,TRUE)) -> 45 | B57: =Worksheet!$B$24 -> TRUE | C57: =RANDBETWEEN(5,RANDBETWEEN(5,Worksheet!$D$8)) -> 45 | D57: km | E57: ± | F57: =IF(I57=1,H57*10^RANDBETWEEN(IF(Worksheet!$D$14,-1,0),0),IF(I57=2,H57*10^RANDBETWEEN(RANDBETWEEN(0,2),2),CHOOSE(RANDBETWEEN(1,3),5,10,20))) -> 5 | G57: =IF(I57=1,D57,IF(I57=3,"%","m")) -> km | H57: 5 | I57: =IF(AND(Worksheet!$D$12,RAND()<0.2),3,IF(RAND()<Worksheet!$D$10/100,1,2)) -> 1 | J57: =IF(I57=1,F57,IF(I57=2,F57/1000,IF(I57=3,F57/100*C57,""))) -> 5 | K57: km | L57: =IF(I57=1,F57*1000,IF(I57=2,F57,IF(I57=3,F57/100*C57*1000,""))) -> 5000 | M57: m
A58: =IF(COUNTIF($B$1:B58,TRUE)=COUNTIF($B$1:B57,TRUE),"",COUNTIF($B$1:B58,TRUE)) ->  | B58: =Worksheet!$B$26 -> FALSE | C58: =RANDBETWEEN(5,RANDBETWEEN(5,Worksheet!$D$8)) -> 58 | D58: m | E58: ± | F58: =IF(I58=1,H58*10^RANDBETWEEN(IF(Worksheet!$D$14,-1,0),0),IF(I58=2,H58*10^RANDBETWEEN(RANDBETWEEN(0,2),2),CHOOSE(RANDBETWEEN(1,3),5,10,20))) -> 100 | G58: =IF(I58=1,D58,IF(I58=3,"%","mm")) -> mm | H58: 1 | I58: =IF(AND(Worksheet!$D$12,RAND()<0.2),3,IF(RAND()<Worksheet!$D$10/100,1,2)) -> 2 | J58: 0.1 | K58: m | L58: 100 | M58: mm
A59: =IF(COUNTIF($B$1:B59,TRUE)=COUNTIF($B$1:B58,TRUE),"",COUNTIF($B$1:B59,TRUE)) -> 46 | B59: =Worksheet!$D$20 -> TRUE | C59: =RANDBETWEEN(5,RANDBETWEEN(5,Worksheet!$D$8)) -> 46 | D59: kg | E59: ± | F59: =IF(I59=1,H59*10^RANDBETWEEN(IF(Worksheet!$D$14,-1,0),0),IF(I59=2,H59*10^RANDBETWEEN(RANDBETWEEN(0,2),2),CHOOSE(RANDBETWEEN(1,3),5,10,20))) -> 800 | G59: =IF(I59=1,D59,IF(I59=3,"%","g")) -> g | H59: =RANDBETWEEN(1,MIN(9,C59)) -> 8 | I59: =IF(AND(Worksheet!$D$12,RAND()<0.2),3,IF(RAND()<Worksheet!$D$10/100,1,2)) -> 2 | J59: 0.8 | K59: =CONCATENATE(" ",D59) -> kg | L59: 800 | M59: g
A60: =IF(COUNTIF($B$1:B60,TRUE)=COUNTIF($B$1:B59,TRUE),"",COUNTIF($B$1:B60,TRUE)) -> 47 | B60: =Worksheet!$D$22 -> TRUE | C60: =RANDBETWEEN(5,RANDBETWEEN(5,Worksheet!$D$8)) -> 10 | D60: tonnes | E60: ± | F60: =IF(I60=1,H60*10^RANDBETWEEN(IF(Worksheet!$D$14,-1,0),0),IF(I60=2,H60*10^RANDBETWEEN(RANDBETWEEN(0,2),2),CHOOSE(RANDBETWEEN(1,3),5,10,20))) -> 10 | G60: =IF(I60=1,D60,IF(I60=3,"%","kg")) -> % | H60: =RANDBETWEEN(1,MIN(9,C60)) -> 6 | I60: =IF(AND(Worksheet!$D$12,RAND()<0.2),3,IF(RAND()<Worksheet!$D$10/100,1,2)) -> 3 | J60: 1 | K60: =CONCATENATE(" ",D60) -> tonnes | L60: 1000 | M60: kg
A61: =IF(COUNTIF($B$1:B61,TRUE)=COUNTIF($B$1:B60,TRUE),"",COUNTIF($B$1:B61,TRUE)) -> 48 | B61: =Worksheet!$D$24 -> TRUE | C61: =RANDBETWEEN(5,RANDBETWEEN(5,Worksheet!$D$8)) -> 13 | D61: litres | E61: ± | F61: =IF(I61=1,H61*10^RANDBETWEEN(IF(Worksheet!$D$14,-1,0),0),IF(I61=2,H61*10^RANDBETWEEN(RANDBETWEEN(0,2),2),CHOOSE(RANDBETWEEN(1,3),5,10,20))) -> 0.1 | G61: =IF(I61=1,D61,IF(I61=3,"%","ml")) -> litres | H61: =RANDBETWEEN(1,MIN(9,C61)) -> 1 | I61: =IF(AND(Worksheet!$D$12,RAND()<0.2),3,IF(RAND()<Worksheet!$D$10/100,1,2)) -> 1 | J61: 0.1 | K61: =CONCATENATE(" ",D61) -> litres | L61: 100 | M61: ml
A62: =IF(COUNTIF($B$1:B62,TRUE)=COUNTIF($B$1:B61,TRUE),"",COUNTIF($B$1:B62,TRUE)) ->  | B62: =Worksheet!$D$26 -> FALSE | C62: =RANDBETWEEN(5,RANDBETWEEN(5,Worksheet!$D$8)) -> 101 | D62: litres | E62: ± | F62: =IF(I62=1,H62*10^RANDBETWEEN(IF(Worksheet!$D$14,-1,0),0),IF(I62=2,H62*10^RANDBETWEEN(RANDBETWEEN(0,2),2),CHOOSE(RANDBETWEEN(1,3),5,10,20))) -> 3 | G62: =IF(I62=1,D62,IF(I62=3,"%","cm³")) -> litres | H62: =RANDBETWEEN(1,MIN(9,C62)) -> 3 | I62: =IF(AND(Worksheet!$D$12,RAND()<0.2),3,IF(RAND()<Worksheet!$D$10/100,1,2)) -> 1 | J62: 3 | K62: =CONCATENATE(" ",D62) -> litres | L62: 3000 | M62: cm³
A63: =IF(COUNTIF($B$1:B63,TRUE)=COUNTIF($B$1:B63,TRUE),"",COUNTIF($B$1:B63,TRUE)) ->  | B63: =Worksheet!$B$28 -> TRUE | C63: =RANDBETWEEN(5,20) -> 7 | D63: °C | E63: ± | F63: =IF(I63=1,H63*10^RANDBETWEEN(IF(Worksheet!$D$14,-1,0),0),IF(I63=2,H63,CHOOSE(RANDBETWEEN(1,3),5,10,20))) -> 3 | G63: =IF(I63=1,D63,IF(I63=3,"%","sec")) -> °C | H63: =RANDBETWEEN(1,MIN(9,C63)) -> 3 | I63: =IF(AND(Worksheet!$D$12,RAND()<0),3,IF(RAND()<Worksheet!$D$10/100,1,2)) -> 1 | J63: =IF(I63=1,F63,IF(I63=2,F63,IF(I63=3,F63/100*C63,""))) -> 3 | K63: =CONCATENATE(" ",D63) -> °C | L63: =IF(I63=1,F63,IF(I63=2,F63,IF(I63=3,F63/100*C63,""))) -> 3 | M63: °C
A64: =COUNTIF($B$1:B64,TRUE) -> 50 | B64: =Worksheet!$B$20 -> TRUE | C64: =RANDBETWEEN(5,RANDBETWEEN(5,Worksheet!$D$8)) -> 39 | D64: cm | E64: ± | F64: =IF(I64=1,H64*10^RANDBETWEEN(IF(Worksheet!$D$14,-1,0),0),IF(I64=2,H64,CHOOSE(RANDBETWEEN(1,3),5,10,20))) -> 5 | G64: =IF(I64=1,D64,IF(I64=3,"%","mm")) -> % | H64: =RANDBETWEEN(1,MIN(9,C64)) -> 7 | I64: =IF(AND(Worksheet!$D$12,RAND()<0.2),3,IF(RAND()<Worksheet!$D$10/100,1,2)) -> 3 | J64: =IF(I64=1,F64,IF(I64=2,F64/10,IF(I64=3,F64/100*C64,""))) -> 1.95 | K64: =CONCATENATE(" ",D64) -> cm | L64: =IF(I64=1,F64*10,IF(I64=2,F64,IF(I64=3,F64/100*C64*10,""))) -> 19.5 | M64: mm
A65: =IF(COUNTIF($B$1:B65,TRUE)=COUNTIF($B$1:B64,TRUE),"",COUNTIF($B$1:B65,TRUE)) -> 51 | B65: =Worksheet!$B$22 -> TRUE | C65: =RANDBETWEEN(5,RANDBETWEEN(5,Worksheet!$D$8)) -> 160 | D65: m | E65: ± | F65: =IF(I65=1,H65*10^RANDBETWEEN(IF(Worksheet!$D$14,-1,0),0),IF(I65=2,H65*10^RANDBETWEEN(RANDBETWEEN(0,1),1),CHOOSE(RANDBETWEEN(1,3),5,10,20))) -> 20 | G65: =IF(I65=1,D65,IF(I65=3,"%","cm")) -> % | H65: =RANDBETWEEN(1,MIN(9,C65)) -> 3 | I65: =IF(AND(Worksheet!$D$12,RAND()<0.2),3,IF(RAND()<Worksheet!$D$10/100,1,2)) -> 3 | J65: =IF(I65=1,F65,IF(I65=2,F65/100,IF(I65=3,F65/100*C65,""))) -> 32 | K65: =CONCATENATE(" ",D65) -> m | L65: =IF(I65=1,F65*100,IF(I65=2,F65,IF(I65=3,F65/100*C65*100,""))) -> 3200 | M65: cm
A66: =IF(COUNTIF($B$1:B66,TRUE)=COUNTIF($B$1:B65,TRUE),"",COUNTIF($B$1:B66,TRUE)) -> 52 | B66: =Worksheet!$B$24 -> TRUE | C66: =RANDBETWEEN(5,RANDBETWEEN(5,Worksheet!$D$8)) -> 138 | D66: km | E66: ± | F66: =IF(I66=1,H66*10^RANDBETWEEN(IF(Worksheet!$D$14,-1,0),0),IF(I66=2,H66*10^RANDBETWEEN(RANDBETWEEN(0,2),2),CHOOSE(RANDBETWEEN(1,3),5,10,20))) -> 6 | G66: =IF(I66=1,D66,IF(I66=3,"%","m")) -> km | H66: 6 | I66: =IF(AND(Worksheet!$D$12,RAND()<0.2),3,IF(RAND()<Worksheet!$D$10/100,1,2)) -> 1 | J66: =IF(I66=1,F66,IF(I66=2,F66/1000,IF(I66=3,F66/100*C66,""))) -> 6 | K66: km | L66: =IF(I66=1,F66*1000,IF(I66=2,F66,IF(I66=3,F66/100*C66*1000,""))) -> 6000 | M66: m
A67: =IF(COUNTIF($B$1:B67,TRUE)=COUNTIF($B$1:B66,TRUE),"",COUNTIF($B$1:B67,TRUE)) ->  | B67: =Worksheet!$B$26 -> FALSE | C67: =RANDBETWEEN(5,RANDBETWEEN(5,Worksheet!$D$8)) -> 20 | D67: m | E67: ± | F67: =IF(I67=1,H67*10^RANDBETWEEN(IF(Worksheet!$D$14,-1,0),0),IF(I67=2,H67*10^RANDBETWEEN(RANDBETWEEN(0,2),2),CHOOSE(RANDBETWEEN(1,3),5,10,20))) -> 0.2 | G67: =IF(I67=1,D67,IF(I67=3,"%","mm")) -> m | H67: 2 | I67: =IF(AND(Worksheet!$D$12,RAND()<0.2),3,IF(RAND()<Worksheet!$D$10/100,1,2)) -> 1 | J67: 0.2 | K67: m | L67: 200 | M67: mm
A68: =IF(COUNTIF($B$1:B68,TRUE)=COUNTIF($B$1:B67,TRUE),"",COUNTIF($B$1:B68,TRUE)) -> 53 | B68: =Worksheet!$D$20 -> TRUE | C68: =RANDBETWEEN(5,RANDBETWEEN(5,Worksheet!$D$8)) -> 11 | D68: kg | E68: ± | F68: =IF(I68=1,H68*10^RANDBETWEEN(IF(Worksheet!$D$14,-1,0),0),IF(I68=2,H68*10^RANDBETWEEN(RANDBETWEEN(0,2),2),CHOOSE(RANDBETWEEN(1,3),5,10,20))) -> 5 | G68: =IF(I68=1,D68,IF(I68=3,"%","g")) -> % | H68: =RANDBETWEEN(1,MIN(9,C68)) -> 1 | I68: =IF(AND(Worksheet!$D$12,RAND()<0.2),3,IF(RAND()<Worksheet!$D$10/100,1,2)) -> 3 | J68: 0.55 | K68: =CONCATENATE(" ",D68) -> kg | L68: 550 | M68: g
A69: =IF(COUNTIF($B$1:B69,TRUE)=COUNTIF($B$1:B68,TRUE),"",COUNTIF($B$1:B69,TRUE)) -> 54 | B69: =Worksheet!$D$22 -> TRUE | C69: =RANDBETWEEN(5,RANDBETWEEN(5,Worksheet!$D$8)) -> 33 | D69: tonnes | E69: ± | F69: =IF(I69=1,H69*10^RANDBETWEEN(IF(Worksheet!$D$14,-1,0),0),IF(I69=2,H69*10^RANDBETWEEN(RANDBETWEEN(0,2),2),CHOOSE(RANDBETWEEN(1,3),5,10,20))) -> 0.6 | G69: =IF(I69=1,D69,IF(I69=3,"%","kg")) -> tonnes | H69: =RANDBETWEEN(1,MIN(9,C69)) -> 6 | I69: =IF(AND(Worksheet!$D$12,RAND()<0.2),3,IF(RAND()<Worksheet!$D$10/100,1,2)) -> 1 | J69: 0.6 | K69: =CONCATENATE(" ",D69) -> tonnes | L69: 600 | M69: kg
A70: =IF(COUNTIF($B$1:B70,TRUE)=COUNTIF($B$1:B69,TRUE),"",COUNTIF($B$1:B70,TRUE)) -> 55 | B70: =Worksheet!$D$24 -> TRUE | C70: =RANDBETWEEN(5,RANDBETWEEN(5,Worksheet!$D$8)) -> 50 | D70: litres | E70: ± | F70: =IF(I70=1,H70*10^RANDBETWEEN(IF(Worksheet!$D$14,-1,0),0),IF(I70=2,H70*10^RANDBETWEEN(RANDBETWEEN(0,2),2),CHOOSE(RANDBETWEEN(1,3),5,10,20))) -> 0.3 | G70: =IF(I70=1,D70,IF(I70=3,"%","ml")) -> litres | H70: =RANDBETWEEN(1,MIN(9,C70)) -> 3 | I70: =IF(AND(Worksheet!$D$12,RAND()<0.2),3,IF(RAND()<Worksheet!$D$10/100,1,2)) -> 1 | J70: 0.3 | K70: =CONCATENATE(" ",D70) -> litres | L70: 300 | M70: ml
A71: =IF(COUNTIF($B$1:B71,TRUE)=COUNTIF($B$1:B70,TRUE),"",COUNTIF($B$1:B71,TRUE)) ->  | B71: =Worksheet!$D$26 -> FALSE | C71: =RANDBETWEEN(5,RANDBETWEEN(5,Worksheet!$D$8)) -> 7 | D71: litres | E71: ± | F71: =IF(I71=1,H71*10^RANDBETWEEN(IF(Worksheet!$D$14,-1,0),0),IF(I71=2,H71*10^RANDBETWEEN(RANDBETWEEN(0,2),2),CHOOSE(RANDBETWEEN(1,3),5,10,20))) -> 0.2 | G71: =IF(I71=1,D71,IF(I71=3,"%","cm³")) -> litres | H71: =RANDBETWEEN(1,MIN(9,C71)) -> 2 | I71: =IF(AND(Worksheet!$D$12,RAND()<0.2),3,IF(RAND()<Worksheet!$D$10/100,1,2)) -> 1 | J71: 0.2 | K71: =CONCATENATE(" ",D71) -> litres | L71: 200 | M71: cm³
A72: =IF(COUNTIF($B$1:B72,TRUE)=COUNTIF($B$1:B72,TRUE),"",COUNTIF($B$1:B72,TRUE)) ->  | B72: =Worksheet!$B$28 -> TRUE | C72: =RANDBETWEEN(5,20) -> 12 | D72: °C | E72: ± | F72: =IF(I72=1,H72*10^RANDBETWEEN(IF(Worksheet!$D$14,-1,0),0),IF(I72=2,H72,CHOOSE(RANDBETWEEN(1,3),5,10,20))) -> 6 | G72: =IF(I72=1,D72,IF(I72=3,"%","sec")) -> °C | H72: =RANDBETWEEN(1,MIN(9,C72)) -> 6 | I72: =IF(AND(Worksheet!$D$12,RAND()<0),3,IF(RAND()<Worksheet!$D$10/100,1,2)) -> 1 | J72: =IF(I72=1,F72,IF(I72=2,F72,IF(I72=3,F72/100*C72,""))) -> 6 | K72: =CONCATENATE(" ",D72) -> °C | L72: =IF(I72=1,F72,IF(I72=2,F72,IF(I72=3,F72/100*C72,""))) -> 6 | M72: °C
A73: =COUNTIF($B$1:B73,TRUE) -> 57 | B73: =Worksheet!$B$20 -> TRUE | C73: =RANDBETWEEN(5,RANDBETWEEN(5,Worksheet!$D$8)) -> 167 | D73: cm | E73: ± | F73: =IF(I73=1,H73*10^RANDBETWEEN(IF(Worksheet!$D$14,-1,0),0),IF(I73=2,H73,CHOOSE(RANDBETWEEN(1,3),5,10,20))) -> 5 | G73: =IF(I73=1,D73,IF(I73=3,"%","mm")) -> mm | H73: =RANDBETWEEN(1,MIN(9,C73)) -> 5 | I73: =IF(AND(Worksheet!$D$12,RAND()<0.2),3,IF(RAND()<Worksheet!$D$10/100,1,2)) -> 2 | J73: =IF(I73=1,F73,IF(I73=2,F73/10,IF(I73=3,F73/100*C73,""))) -> 0.5 | K73: =CONCATENATE(" ",D73) -> cm | L73: =IF(I73=1,F73*10,IF(I73=2,F73,IF(I73=3,F73/100*C73*10,""))) -> 5 | M73: mm
A74: =IF(COUNTIF($B$1:B74,TRUE)=COUNTIF($B$1:B73,TRUE),"",COUNTIF($B$1:B74,TRUE)) -> 58 | B74: =Worksheet!$B$22 -> TRUE | C74: =RANDBETWEEN(5,RANDBETWEEN(5,Worksheet!$D$8)) -> 9 | D74: m | E74: ± | F74: =IF(I74=1,H74*10^RANDBETWEEN(IF(Worksheet!$D$14,-1,0),0),IF(I74=2,H74*10^RANDBETWEEN(RANDBETWEEN(0,1),1),CHOOSE(RANDBETWEEN(1,3),5,10,20))) -> 4 | G74: =IF(I74=1,D74,IF(I74=3,"%","cm")) -> m | H74: =RANDBETWEEN(1,MIN(9,C74)) -> 4 | I74: =IF(AND(Worksheet!$D$12,RAND()<0.2),3,IF(RAND()<Worksheet!$D$10/100,1,2)) -> 1 | J74: =IF(I74=1,F74,IF(I74=2,F74/100,IF(I74=3,F74/100*C74,""))) -> 4 | K74: =CONCATENATE(" ",D74) -> m | L74: =IF(I74=1,F74*100,IF(I74=2,F74,IF(I74=3,F74/100*C74*100,""))) -> 400 | M74: cm
A75: =IF(COUNTIF($B$1:B75,TRUE)=COUNTIF($B$1:B74,TRUE),"",COUNTIF($B$1:B75,TRUE)) -> 59 | B75: =Worksheet!$B$24 -> TRUE | C75: =RANDBETWEEN(5,RANDBETWEEN(5,Worksheet!$D$8)) -> 54 | D75: km | E75: ± | F75: =IF(I75=1,H75*10^RANDBETWEEN(IF(Worksheet!$D$14,-1,0),0),IF(I75=2,H75*10^RANDBETWEEN(RANDBETWEEN(0,2),2),CHOOSE(RANDBETWEEN(1,3),5,10,20))) -> 9 | G75: =IF(I75=1,D75,IF(I75=3,"%","m")) -> km | H75: 9 | I75: =IF(AND(Worksheet!$D$12,RAND()<0.2),3,IF(RAND()<Worksheet!$D$10/100,1,2)) -> 1 | J75: =IF(I75=1,F75,IF(I75=2,F75/1000,IF(I75=3,F75/100*C75,""))) -> 9 | K75: km | L75: =IF(I75=1,F75*1000,IF(I75=2,F75,IF(I75=3,F75/100*C75*1000,""))) -> 9000 | M75: m
A76: =IF(COUNTIF($B$1:B76,TRUE)=COUNTIF($B$1:B75,TRUE),"",COUNTIF($B$1:B76,TRUE)) ->  | B76: =Worksheet!$B$26 -> FALSE | C76: =RANDBETWEEN(5,RANDBETWEEN(5,Worksheet!$D$8)) -> 54 | D76: m | E76: ± | F76: =IF(I76=1,H76*10^RANDBETWEEN(IF(Worksheet!$D$14,-1,0),0),IF(I76=2,H76*10^RANDBETWEEN(RANDBETWEEN(0,2),2),CHOOSE(RANDBETWEEN(1,3),5,10,20))) -> 0.5 | G76: =IF(I76=1,D76,IF(I76=3,"%","mm")) -> m | H76: 5 | I76: =IF(AND(Worksheet!$D$12,RAND()<0.2),3,IF(RAND()<Worksheet!$D$10/100,1,2)) -> 1 | J76: 0.5 | K76: m | L76: 500 | M76: mm
A77: =IF(COUNTIF($B$1:B77,TRUE)=COUNTIF($B$1:B76,TRUE),"",COUNTIF($B$1:B77,TRUE)) -> 60 | B77: =Worksheet!$D$20 -> TRUE | C77: =RANDBETWEEN(5,RANDBETWEEN(5,Worksheet!$D$8)) -> 41 | D77: kg | E77: ± | F77: =IF(I77=1,H77*10^RANDBETWEEN(IF(Worksheet!$D$14,-1,0),0),IF(I77=2,H77*10^RANDBETWEEN(RANDBETWEEN(0,2),2),CHOOSE(RANDBETWEEN(1,3),5,10,20))) -> 5 | G77: =IF(I77=1,D77,IF(I77=3,"%","g")) -> kg | H77: =RANDBETWEEN(1,MIN(9,C77)) -> 5 | I77: =IF(AND(Worksheet!$D$12,RAND()<0.2),3,IF(RAND()<Worksheet!$D$10/100,1,2)) -> 1 | J77: 5 | K77: =CONCATENATE(" ",D77) -> kg | L77: 5000 | M77: g
A78: =IF(COUNTIF($B$1:B78,TRUE)=COUNTIF($B$1:B77,TRUE),"",COUNTIF($B$1:B78,TRUE)) -> 61 | B78: =Worksheet!$D$22 -> TRUE | C78: =RANDBETWEEN(5,RANDBETWEEN(5,Worksheet!$D$8)) -> 17 | D78: tonnes | E78: ± | F78: =IF(I78=1,H78*10^RANDBETWEEN(IF(Worksheet!$D$14,-1,0),0),IF(I78=2,H78*10^RANDBETWEEN(RANDBETWEEN(0,2),2),CHOOSE(RANDBETWEEN(1,3),5,10,20))) -> 3 | G78: =IF(I78=1,D78,IF(I78=3,"%","kg")) -> tonnes | H78: =RANDBETWEEN(1,MIN(9,C78)) -> 3 | I78: =IF(AND(Worksheet!$D$12,RAND()<0.2),3,IF(RAND()<Worksheet!$D$10/100,1,2)) -> 1 | J78: 3 | K78: =CONCATENATE(" ",D78) -> tonnes | L78: 3000 | M78: kg
A79: =IF(COUNTIF($B$1:B79,TRUE)=COUNTIF($B$1:B78,TRUE),"",COUNTIF($B$1:B79,TRUE)) -> 62 | B79: =Worksheet!$D$24 -> TRUE | C79: =RANDBETWEEN(5,RANDBETWEEN(5,Worksheet!$D$8)) -> 17 | D79: litres | E79: ± | F79: =IF(I79=1,H79*10^RANDBETWEEN(IF(Worksheet!$D$14,-1,0),0),IF(I79=2,H79*10^RANDBETWEEN(RANDBETWEEN(0,2),2),CHOOSE(RANDBETWEEN(1,3),5,10,20))) -> 0.1 | G79: =IF(I79=1,D79,IF(I79=3,"%","ml")) -> litres | H79: =RANDBETWEEN(1,MIN(9,C79)) -> 1 | I79: =IF(AND(Worksheet!$D$12,RAND()<0.2),3,IF(RAND()<Worksheet!$D$10/100,1,2)) -> 1 | J79: 0.1 | K79: =CONCATENATE(" ",D79) -> litres | L79: 100 | M79: ml
A80: =IF(COUNTIF($B$1:B80,TRUE)=COUNTIF($B$1:B79,TRUE),"",COUNTIF($B$1:B80,TRUE)) ->  | B80: =Worksheet!$D$26 -> FALSE | C80: =RANDBETWEEN(5,RANDBETWEEN(5,Worksheet!$D$8)) -> 79 | D80: litres | E80: ± | F80: =IF(I80=1,H80*10^RANDBETWEEN(IF(Worksheet!$D$14,-1,0),0),IF(I80=2,H80*10^RANDBETWEEN(RANDBETWEEN(0,2),2),CHOOSE(RANDBETWEEN(1,3),5,10,20))) -> 9 | G80: =IF(I80=1,D80,IF(I80=3,"%","cm³")) -> litres | H80: =RANDBETWEEN(1,MIN(9,C80)) -> 9 | I80: =IF(AND(Worksheet!$D$12,RAND()<0.2),3,IF(RAND()<Worksheet!$D$10/100,1,2)) -> 1 | J80: 9 | K80: =CONCATENATE(" ",D80) -> litres | L80: 9000 | M80: cm³
A81: =IF(COUNTIF($B$1:B81,TRUE)=COUNTIF($B$1:B81,TRUE),"",COUNTIF($B$1:B81,TRUE)) ->  | B81: =Worksheet!$B$28 -> TRUE | C81: =RANDBETWEEN(5,20) -> 5 | D81: °C | E81: ± | F81: =IF(I81=1,H81*10^RANDBETWEEN(IF(Worksheet!$D$14,-1,0),0),IF(I81=2,H81,CHOOSE(RANDBETWEEN(1,3),5,10,20))) -> 0.4 | G81: =IF(I81=1,D81,IF(I81=3,"%","sec")) -> °C | H81: =RANDBETWEEN(1,MIN(9,C81)) -> 4 | I81: =IF(AND(Worksheet!$D$12,RAND()<0),3,IF(RAND()<Worksheet!$D$10/100,1,2)) -> 1 | J81: =IF(I81=1,F81,IF(I81=2,F81,IF(I81=3,F81/100*C81,""))) -> 0.4 | K81: =CONCATENATE(" ",D81) -> °C | L81: =IF(I81=1,F81,IF(I81=2,F81,IF(I81=3,F81/100*C81,""))) -> 0.4 | M81: °C
A82: =COUNTIF($B$1:B82,TRUE) -> 64 | B82: =Worksheet!$B$20 -> TRUE | C82: =RANDBETWEEN(5,RANDBETWEEN(5,Worksheet!$D$8)) -> 99 | D82: cm | E82: ± | F82: =IF(I82=1,H82*10^RANDBETWEEN(IF(Worksheet!$D$14,-1,0),0),IF(I82=2,H82,CHOOSE(RANDBETWEEN(1,3),5,10,20))) -> 9 | G82: =IF(I82=1,D82,IF(I82=3,"%","mm")) -> mm | H82: =RANDBETWEEN(1,MIN(9,C82)) -> 9 | I82: =IF(AND(Worksheet!$D$12,RAND()<0.2),3,IF(RAND()<Worksheet!$D$10/100,1,2)) -> 2 | J82: =IF(I82=1,F82,IF(I82=2,F82/10,IF(I82=3,F82/100*C82,""))) -> 0.9 | K82: =CONCATENATE(" ",D82) -> cm | L82: =IF(I82=1,F82*10,IF(I82=2,F82,IF(I82=3,F82/100*C82*10,""))) -> 9 | M82: mm
A83: =IF(COUNTIF($B$1:B83,TRUE)=COUNTIF($B$1:B82,TRUE),"",COUNTIF($B$1:B83,TRUE)) -> 65 | B83: =Worksheet!$B$22 -> TRUE | C83: =RANDBETWEEN(5,RANDBETWEEN(5,Worksheet!$D$8)) -> 30 | D83: m | E83: ± | F83: =IF(I83=1,H83*10^RANDBETWEEN(IF(Worksheet!$D$14,-1,0),0),IF(I83=2,H83*10^RANDBETWEEN(RANDBETWEEN(0,1),1),CHOOSE(RANDBETWEEN(1,3),5,10,20))) -> 8 | G83: =IF(I83=1,D83,IF(I83=3,"%","cm")) -> cm | H83: =RANDBETWEEN(1,MIN(9,C83)) -> 8 | I83: =IF(AND(Worksheet!$D$12,RAND()<0.2),3,IF(RAND()<Worksheet!$D$10/100,1,2)) -> 2 | J83: =IF(I83=1,F83,IF(I83=2,F83/100,IF(I83=3,F83/100*C83,""))) -> 0.08 | K83: =CONCATENATE(" ",D83) -> m | L83: =IF(I83=1,F83*100,IF(I83=2,F83,IF(I83=3,F83/100*C83*100,""))) -> 8 | M83: cm
A84: =IF(COUNTIF($B$1:B84,TRUE)=COUNTIF($B$1:B83,TRUE),"",COUNTIF($B$1:B84,TRUE)) -> 66 | B84: =Worksheet!$B$24 -> TRUE | C84: =RANDBETWEEN(5,RANDBETWEEN(5,Worksheet!$D$8)) -> 51 | D84: km | E84: ± | F84: =IF(I84=1,H84*10^RANDBETWEEN(IF(Worksheet!$D$14,-1,0),0),IF(I84=2,H84*10^RANDBETWEEN(RANDBETWEEN(0,2),2),CHOOSE(RANDBETWEEN(1,3),5,10,20))) -> 0.8 | G84: =IF(I84=1,D84,IF(I84=3,"%","m")) -> km | H84: 8 | I84: =IF(AND(Worksheet!$D$12,RAND()<0.2),3,IF(RAND()<Worksheet!$D$10/100,1,2)) -> 1 | J84: =IF(I84=1,F84,IF(I84=2,F84/1000,IF(I84=3,F84/100*C84,""))) -> 0.8 | K84: km | L84: =IF(I84=1,F84*1000,IF(I84=2,F84,IF(I84=3,F84/100*C84*1000,""))) -> 800 | M84: m
A85: =IF(COUNTIF($B$1:B85,TRUE)=COUNTIF($B$1:B84,TRUE),"",COUNTIF($B$1:B85,TRUE)) ->  | B85: =Worksheet!$B$26 -> FALSE | C85: =RANDBETWEEN(5,RANDBETWEEN(5,Worksheet!$D$8)) -> 9 | D85: m | E85: ± | F85: =IF(I85=1,H85*10^RANDBETWEEN(IF(Worksheet!$D$14,-1,0),0),IF(I85=2,H85*10^RANDBETWEEN(RANDBETWEEN(0,2),2),CHOOSE(RANDBETWEEN(1,3),5,10,20))) -> 50 | G85: =IF(I85=1,D85,IF(I85=3,"%","mm")) -> mm | H85: 5 | I85: =IF(AND(Worksheet!$D$12,RAND()<0.2),3,IF(RAND()<Worksheet!$D$10/100,1,2)) -> 2 | J85: 0.05 | K85: m | L85: 50 | M85: mm
A86: =IF(COUNTIF($B$1:B86,TRUE)=COUNTIF($B$1:B85,TRUE),"",COUNTIF($B$1:B86,TRUE)) -> 67 | B86: =Worksheet!$D$20 -> TRUE | C86: =RANDBETWEEN(5,RANDBETWEEN(5,Worksheet!$D$8)) -> 124 | D86: kg | E86: ± | F86: =IF(I86=1,H86*10^RANDBETWEEN(IF(Worksheet!$D$14,-1,0),0),IF(I86=2,H86*10^RANDBETWEEN(RANDBETWEEN(0,2),2),CHOOSE(RANDBETWEEN(1,3),5,10,20))) -> 0.4 | G86: =IF(I86=1,D86,IF(I86=3,"%","g")) -> kg | H86: =RANDBETWEEN(1,MIN(9,C86)) -> 4 | I86: =IF(AND(Worksheet!$D$12,RAND()<0.2),3,IF(RAND()<Worksheet!$D$10/100,1,2)) -> 1 | J86: 0.4 | K86: =CONCATENATE(" ",D86) -> kg | L86: 400 | M86: g
A87: =IF(COUNTIF($B$1:B87,TRUE)=COUNTIF($B$1:B86,TRUE),"",COUNTIF($B$1:B87,TRUE)) -> 68 | B87: =Worksheet!$D$22 -> TRUE | C87: =RANDBETWEEN(5,RANDBETWEEN(5,Worksheet!$D$8)) -> 57 | D87: tonnes | E87: ± | F87: =IF(I87=1,H87*10^RANDBETWEEN(IF(Worksheet!$D$14,-1,0),0),IF(I87=2,H87*10^RANDBETWEEN(RANDBETWEEN(0,2),2),CHOOSE(RANDBETWEEN(1,3),5,10,20))) -> 80 | G87: =IF(I87=1,D87,IF(I87=3,"%","kg")) -> kg | H87: =RANDBETWEEN(1,MIN(9,C87)) -> 8 | I87: =IF(AND(Worksheet!$D$12,RAND()<0.2),3,IF(RAND()<Worksheet!$D$10/100,1,2)) -> 2 | J87: 0.08 | K87: =CONCATENATE(" ",D87) -> tonnes | L87: 80 | M87: kg
A88: =IF(COUNTIF($B$1:B88,TRUE)=COUNTIF($B$1:B87,TRUE),"",COUNTIF($B$1:B88,TRUE)) -> 69 | B88: =Worksheet!$D$24 -> TRUE | C88: =RANDBETWEEN(5,RANDBETWEEN(5,Worksheet!$D$8)) -> 28 | D88: litres | E88: ± | F88: =IF(I88=1,H88*10^RANDBETWEEN(IF(Worksheet!$D$14,-1,0),0),IF(I88=2,H88*10^RANDBETWEEN(RANDBETWEEN(0,2),2),CHOOSE(RANDBETWEEN(1,3),5,10,20))) -> 0.8 | G88: =IF(I88=1,D88,IF(I88=3,"%","ml")) -> litres | H88: =RANDBETWEEN(1,MIN(9,C88)) -> 8 | I88: =IF(AND(Worksheet!$D$12,RAND()<0.2),3,IF(RAND()<Worksheet!$D$10/100,1,2)) -> 1 | J88: 0.8 | K88: =CONCATENATE(" ",D88) -> litres | L88: 800 | M88: ml
A89: =IF(COUNTIF($B$1:B89,TRUE)=COUNTIF($B$1:B88,TRUE),"",COUNTIF($B$1:B89,TRUE)) ->  | B89: =Worksheet!$D$26 -> FALSE | C89: =RANDBETWEEN(5,RANDBETWEEN(5,Worksheet!$D$8)) -> 7 | D89: litres | E89: ± | F89: =IF(I89=1,H89*10^RANDBETWEEN(IF(Worksheet!$D$14,-1,0),0),IF(I89=2,H89*10^RANDBETWEEN(RANDBETWEEN(0,2),2),CHOOSE(RANDBETWEEN(1,3),5,10,20))) -> 10 | G89: =IF(I89=1,D89,IF(I89=3,"%","cm³")) -> % | H89: =RANDBETWEEN(1,MIN(9,C89)) -> 1 | I89: =IF(AND(Worksheet!$D$12,RAND()<0.2),3,IF(RAND()<Worksheet!$D$10/100,1,2)) -> 3 | J89: 0.7 | K89: =CONCATENATE(" ",D89) -> litres | L89: 700 | M89: cm³
A90: =IF(COUNTIF($B$1:B90,TRUE)=COUNTIF($B$1:B90,TRUE),"",COUNTIF($B$1:B90,TRUE)) ->  | B90: =Worksheet!$B$28 -> TRUE | C90: =RANDBETWEEN(5,20) -> 20 | D90: °C | E90: ± | F90: =IF(I90=1,H90*10^RANDBETWEEN(IF(Worksheet!$D$14,-1,0),0),IF(I90=2,H90,CHOOSE(RANDBETWEEN(1,3),5,10,20))) -> 0.5 | G90: =IF(I90=1,D90,IF(I90=3,"%","sec")) -> °C | H90: =RANDBETWEEN(1,MIN(9,C90)) -> 5 | I90: =IF(AND(Worksheet!$D$12,RAND()<0),3,IF(RAND()<Worksheet!$D$10/100,1,2)) -> 1 | J90: =IF(I90=1,F90,IF(I90=2,F90,IF(I90=3,F90/100*C90,""))) -> 0.5 | K90: =CONCATENATE(" ",D90) -> °C | L90: =IF(I90=1,F90,IF(I90=2,F90,IF(I90=3,F90/100*C90,""))) -> 0.5 | M90: °C
A91: =COUNTIF($B$1:B91,TRUE) -> 71 | B91: =Worksheet!$B$20 -> TRUE | C91: =RANDBETWEEN(5,RANDBETWEEN(5,Worksheet!$D$8)) -> 156 | D91: cm | E91: ± | F91: =IF(I91=1,H91*10^RANDBETWEEN(IF(Worksheet!$D$14,-1,0),0),IF(I91=2,H91,CHOOSE(RANDBETWEEN(1,3),5,10,20))) -> 0.2 | G91: =IF(I91=1,D91,IF(I91=3,"%","mm")) -> cm | H91: =RANDBETWEEN(1,MIN(9,C91)) -> 2 | I91: =IF(AND(Worksheet!$D$12,RAND()<0.2),3,IF(RAND()<Worksheet!$D$10/100,1,2)) -> 1 | J91: =IF(I91=1,F91,IF(I91=2,F91/10,IF(I91=3,F91/100*C91,""))) -> 0.2 | K91: =CONCATENATE(" ",D91) -> cm | L91: =IF(I91=1,F91*10,IF(I91=2,F91,IF(I91=3,F91/100*C91*10,""))) -> 2 | M91: mm
A92: =IF(COUNTIF($B$1:B92,TRUE)=COUNTIF($B$1:B91,TRUE),"",COUNTIF($B$1:B92,TRUE)) -> 72 | B92: =Worksheet!$B$22 -> TRUE | C92: =RANDBETWEEN(5,RANDBETWEEN(5,Worksheet!$D$8)) -> 9 | D92: m | E92: ± | F92: =IF(I92=1,H92*10^RANDBETWEEN(IF(Worksheet!$D$14,-1,0),0),IF(I92=2,H92*10^RANDBETWEEN(RANDBETWEEN(0,1),1),CHOOSE(RANDBETWEEN(1,3),5,10,20))) -> 4 | G92: =IF(I92=1,D92,IF(I92=3,"%","cm")) -> m | H92: =RANDBETWEEN(1,MIN(9,C92)) -> 4 | I92: =IF(AND(Worksheet!$D$12,RAND()<0.2),3,IF(RAND()<Worksheet!$D$10/100,1,2)) -> 1 | J92: =IF(I92=1,F92,IF(I92=2,F92/100,IF(I92=3,F92/100*C92,""))) -> 4 | K92: =CONCATENATE(" ",D92) -> m | L92: =IF(I92=1,F92*100,IF(I92=2,F92,IF(I92=3,F92/100*C92*100,""))) -> 400 | M92: cm
A93: =IF(COUNTIF($B$1:B93,TRUE)=COUNTIF($B$1:B92,TRUE),"",COUNTIF($B$1:B93,TRUE)) -> 73 | B93: =Worksheet!$B$24 -> TRUE | C93: =RANDBETWEEN(5,RANDBETWEEN(5,Worksheet!$D$8)) -> 6 | D93: km | E93: ± | F93: =IF(I93=1,H93*10^RANDBETWEEN(IF(Worksheet!$D$14,-1,0),0),IF(I93=2,H93*10^RANDBETWEEN(RANDBETWEEN(0,2),2),CHOOSE(RANDBETWEEN(1,3),5,10,20))) -> 4 | G93: =IF(I93=1,D93,IF(I93=3,"%","m")) -> km | H93: 4 | I93: =IF(AND(Worksheet!$D$12,RAND()<0.2),3,IF(RAND()<Worksheet!$D$10/100,1,2)) -> 1 | J93: =IF(I93=1,F93,IF(I93=2,F93/1000,IF(I93=3,F93/100*C93,""))) -> 4 | K93: km | L93: =IF(I93=1,F93*1000,IF(I93=2,F93,IF(I93=3,F93/100*C93*1000,""))) -> 4000 | M93: m
A94: =IF(COUNTIF($B$1:B94,TRUE)=COUNTIF($B$1:B93,TRUE),"",COUNTIF($B$1:B94,TRUE)) ->  | B94: =Worksheet!$B$26 -> FALSE | C94: =RANDBETWEEN(5,RANDBETWEEN(5,Worksheet!$D$8)) -> 85 | D94: m | E94: ± | F94: =IF(I94=1,H94*10^RANDBETWEEN(IF(Worksheet!$D$14,-1,0),0),IF(I94=2,H94*10^RANDBETWEEN(RANDBETWEEN(0,2),2),CHOOSE(RANDBETWEEN(1,3),5,10,20))) -> 0.2 | G94: =IF(I94=1,D94,IF(I94=3,"%","mm")) -> m | H94: 2 | I94: =IF(AND(Worksheet!$D$12,RAND()<0.2),3,IF(RAND()<Worksheet!$D$10/100,1,2)) -> 1 | J94: 0.2 | K94: m | L94: 200 | M94: mm
A95: =IF(COUNTIF($B$1:B95,TRUE)=COUNTIF($B$1:B94,TRUE),"",COUNTIF($B$1:B95,TRUE)) -> 74 | B95: =Worksheet!$D$20 -> TRUE | C95: =RANDBETWEEN(5,RANDBETWEEN(5,Worksheet!$D$8)) -> 139 | D95: kg | E95: ± | F95: =IF(I95=1,H95*10^RANDBETWEEN(IF(Worksheet!$D$14,-1,0),0),IF(I95=2,H95*10^RANDBETWEEN(RANDBETWEEN(0,2),2),CHOOSE(RANDBETWEEN(1,3),5,10,20))) -> 300 | G95: =IF(I95=1,D95,IF(I95=3,"%","g")) -> g | H95: =RANDBETWEEN(1,MIN(9,C95)) -> 3 | I95: =IF(AND(Worksheet!$D$12,RAND()<0.2),3,IF(RAND()<Worksheet!$D$10/100,1,2)) -> 2 | J95: 0.3 | K95: =CONCATENATE(" ",D95) -> kg | L95: 300 | M95: g
A96: =IF(COUNTIF($B$1:B96,TRUE)=COUNTIF($B$1:B95,TRUE),"",COUNTIF($B$1:B96,TRUE)) -> 75 | B96: =Worksheet!$D$22 -> TRUE | C96: =RANDBETWEEN(5,RANDBETWEEN(5,Worksheet!$D$8)) -> 152 | D96: tonnes | E96: ± | F96: =IF(I96=1,H96*10^RANDBETWEEN(IF(Worksheet!$D$14,-1,0),0),IF(I96=2,H96*10^RANDBETWEEN(RANDBETWEEN(0,2),2),CHOOSE(RANDBETWEEN(1,3),5,10,20))) -> 8 | G96: =IF(I96=1,D96,IF(I96=3,"%","kg")) -> tonnes | H96: =RANDBETWEEN(1,MIN(9,C96)) -> 8 | I96: =IF(AND(Worksheet!$D$12,RAND()<0.2),3,IF(RAND()<Worksheet!$D$10/100,1,2)) -> 1 | J96: 8 | K96: =CONCATENATE(" ",D96) -> tonnes | L96: 8000 | M96: kg
A97: =IF(COUNTIF($B$1:B97,TRUE)=COUNTIF($B$1:B96,TRUE),"",COUNTIF($B$1:B97,TRUE)) -> 76 | B97: =Worksheet!$D$24 -> TRUE | C97: =RANDBETWEEN(5,RANDBETWEEN(5,Worksheet!$D$8)) -> 74 | D97: litres | E97: ± | F97: =IF(I97=1,H97*10^RANDBETWEEN(IF(Worksheet!$D$14,-1,0),0),IF(I97=2,H97*10^RANDBETWEEN(RANDBETWEEN(0,2),2),CHOOSE(RANDBETWEEN(1,3),5,10,20))) -> 0.6 | G97: =IF(I97=1,D97,IF(I97=3,"%","ml")) -> litres | H97: =RANDBETWEEN(1,MIN(9,C97)) -> 6 | I97: =IF(AND(Worksheet!$D$12,RAND()<0.2),3,IF(RAND()<Worksheet!$D$10/100,1,2)) -> 1 | J97: 0.6 | K97: =CONCATENATE(" ",D97) -> litres | L97: 600 | M97: ml
A98: =IF(COUNTIF($B$1:B98,TRUE)=COUNTIF($B$1:B97,TRUE),"",COUNTIF($B$1:B98,TRUE)) ->  | B98: =Worksheet!$D$26 -> FALSE | C98: =RANDBETWEEN(5,RANDBETWEEN(5,Worksheet!$D$8)) -> 28 | D98: litres | E98: ± | F98: =IF(I98=1,H98*10^RANDBETWEEN(IF(Worksheet!$D$14,-1,0),0),IF(I98=2,H98*10^RANDBETWEEN(RANDBETWEEN(0,2),2),CHOOSE(RANDBETWEEN(1,3),5,10,20))) -> 0.7 | G98: =IF(I98=1,D98,IF(I98=3,"%","cm³")) -> litres | H98: =RANDBETWEEN(1,MIN(9,C98)) -> 7 | I98: =IF(AND(Worksheet!$D$12,RAND()<0.2),3,IF(RAND()<Worksheet!$D$10/100,1,2)) -> 1 | J98: 0.7 | K98: =CONCATENATE(" ",D98) -> litres | L98: 700 | M98: cm³
A99: =IF(COUNTIF($B$1:B99,TRUE)=COUNTIF($B$1:B99,TRUE),"",COUNTIF($B$1:B99,TRUE)) ->  | B99: =Worksheet!$B$28 -> TRUE | C99: =RANDBETWEEN(5,20) -> 10 | D99: °C | E99: ± | F99: =IF(I99=1,H99*10^RANDBETWEEN(IF(Worksheet!$D$14,-1,0),0),IF(I99=2,H99,CHOOSE(RANDBETWEEN(1,3),5,10,20))) -> 6 | G99: =IF(I99=1,D99,IF(I99=3,"%","sec")) -> sec | H99: =RANDBETWEEN(1,MIN(9,C99)) -> 6 | I99: =IF(AND(Worksheet!$D$12,RAND()<0),3,IF(RAND()<Worksheet!$D$10/100,1,2)) -> 2 | J99: =IF(I99=1,F99,IF(I99=2,F99,IF(I99=3,F99/100*C99,""))) -> 6 | K99: =CONCATENATE(" ",D99) -> °C | L99: =IF(I99=1,F99,IF(I99=2,F99,IF(I99=3,F99/100*C99,""))) -> 6 | M99: °C
A100: =COUNTIF($B$1:B100,TRUE) -> 78 | B100: =Worksheet!$B$20 -> TRUE | C100: =RANDBETWEEN(5,RANDBETWEEN(5,Worksheet!$D$8)) -> 53 | D100: cm | E100: ± | F100: =IF(I100=1,H100*10^RANDBETWEEN(IF(Worksheet!$D$14,-1,0),0),IF(I100=2,H100,CHOOSE(RANDBETWEEN(1,3),5,10,20))) -> 5 | G100: =IF(I100=1,D100,IF(I100=3,"%","mm")) -> cm | H100: =RANDBETWEEN(1,MIN(9,C100)) -> 5 | I100: =IF(AND(Worksheet!$D$12,RAND()<0.2),3,IF(RAND()<Worksheet!$D$10/100,1,2)) -> 1 | J100: =IF(I100=1,F100,IF(I100=2,F100/10,IF(I100=3,F100/100*C100,""))) -> 5 | K100: =CONCATENATE(" ",D100) -> cm | L100: =IF(I100=1,F100*10,IF(I100=2,F100,IF(I100=3,F100/100*C100*10,""))) -> 50 | M100: mm
A101: =IF(COUNTIF($B$1:B101,TRUE)=COUNTIF($B$1:B100,TRUE),"",COUNTIF($B$1:B101,TRUE)) -> 79 | B101: =Worksheet!$B$22 -> TRUE | C101: =RANDBETWEEN(5,RANDBETWEEN(5,Worksheet!$D$8)) -> 38 | D101: m | E101: ± | F101: =IF(I101=1,H101*10^RANDBETWEEN(IF(Worksheet!$D$14,-1,0),0),IF(I101=2,H101*10^RANDBETWEEN(RANDBETWEEN(0,1),1),CHOOSE(RANDBETWEEN(1,3),5,10,20))) -> 20 | G101: =IF(I101=1,D101,IF(I101=3,"%","cm")) -> % | H101: =RANDBETWEEN(1,MIN(9,C101)) -> 7 | I101: =IF(AND(Worksheet!$D$12,RAND()<0.2),3,IF(RAND()<Worksheet!$D$10/100,1,2)) -> 3 | J101: =IF(I101=1,F101,IF(I101=2,F101/100,IF(I101=3,F101/100*C101,""))) -> 7.6 | K101: =CONCATENATE(" ",D101) -> m | L101: =IF(I101=1,F101*100,IF(I101=2,F101,IF(I101=3,F101/100*C101*100,""))) -> 760 | M101: cm
A102: =IF(COUNTIF($B$1:B102,TRUE)=COUNTIF($B$1:B101,TRUE),"",COUNTIF($B$1:B102,TRUE)) -> 80 | B102: =Worksheet!$B$24 -> TRUE | C102: =RANDBETWEEN(5,RANDBETWEEN(5,Worksheet!$D$8)) -> 56 | D102: km | E102: ± | F102: =IF(I102=1,H102*10^RANDBETWEEN(IF(Worksheet!$D$14,-1,0),0),IF(I102=2,H102*10^RANDBETWEEN(RANDBETWEEN(0,2),2),CHOOSE(RANDBETWEEN(1,3),5,10,20))) -> 10 | G102: =IF(I102=1,D102,IF(I102=3,"%","m")) -> % | H102: 3 | I102: =IF(AND(Worksheet!$D$12,RAND()<0.2),3,IF(RAND()<Worksheet!$D$10/100,1,2)) -> 3 | J102: =IF(I102=1,F102,IF(I102=2,F102/1000,IF(I102=3,F102/100*C102,""))) -> 5.6 | K102: km | L102: =IF(I102=1,F102*1000,IF(I102=2,F102,IF(I102=3,F102/100*C102*1000,""))) -> 5600 | M102: m
A103: =IF(COUNTIF($B$1:B103,TRUE)=COUNTIF($B$1:B102,TRUE),"",COUNTIF($B$1:B103,TRUE)) ->  | B103: =Worksheet!$B$26 -> FALSE | C103: =RANDBETWEEN(5,RANDBETWEEN(5,Worksheet!$D$8)) -> 19 | D103: m | E103: ± | F103: =IF(I103=1,H103*10^RANDBETWEEN(IF(Worksheet!$D$14,-1,0),0),IF(I103=2,H103*10^RANDBETWEEN(RANDBETWEEN(0,2),2),CHOOSE(RANDBETWEEN(1,3),5,10,20))) -> 800 | G103: =IF(I103=1,D103,IF(I103=3,"%","mm")) -> mm | H103: 8 | I103: =IF(AND(Worksheet!$D$12,RAND()<0.2),3,IF(RAND()<Worksheet!$D$10/100,1,2)) -> 2 | J103: 0.8 | K103: m | L103: 800 | M103: mm
A104: =IF(COUNTIF($B$1:B104,TRUE)=COUNTIF($B$1:B103,TRUE),"",COUNTIF($B$1:B104,TRUE)) -> 81 | B104: =Worksheet!$D$20 -> TRUE | C104: =RANDBETWEEN(5,RANDBETWEEN(5,Worksheet!$D$8)) -> 164 | D104: kg | E104: ± | F104: =IF(I104=1,H104*10^RANDBETWEEN(IF(Worksheet!$D$14,-1,0),0),IF(I104=2,H104*10^RANDBETWEEN(RANDBETWEEN(0,2),2),CHOOSE(RANDBETWEEN(1,3),5,10,20))) -> 0.3 | G104: =IF(I104=1,D104,IF(I104=3,"%","g")) -> kg | H104: =RANDBETWEEN(1,MIN(9,C104)) -> 3 | I104: =IF(AND(Worksheet!$D$12,RAND()<0.2),3,IF(RAND()<Worksheet!$D$10/100,1,2)) -> 1 | J104: 0.3 | K104: =CONCATENATE(" ",D104) -> kg | L104: 300 | M104: g
A105: =IF(COUNTIF($B$1:B105,TRUE)=COUNTIF($B$1:B104,TRUE),"",COUNTIF($B$1:B105,TRUE)) -> 82 | B105: =Worksheet!$D$22 -> TRUE | C105: =RANDBETWEEN(5,RANDBETWEEN(5,Worksheet!$D$8)) -> 37 | D105: tonnes | E105: ± | F105: =IF(I105=1,H105*10^RANDBETWEEN(IF(Worksheet!$D$14,-1,0),0),IF(I105=2,H105*10^RANDBETWEEN(RANDBETWEEN(0,2),2),CHOOSE(RANDBETWEEN(1,3),5,10,20))) -> 4 | G105: =IF(I105=1,D105,IF(I105=3,"%","kg")) -> tonnes | H105: =RANDBETWEEN(1,MIN(9,C105)) -> 4 | I105: =IF(AND(Worksheet!$D$12,RAND()<0.2),3,IF(RAND()<Worksheet!$D$10/100,1,2)) -> 1 | J105: 4 | K105: =CONCATENATE(" ",D105) -> tonnes | L105: 4000 | M105: kg
A106: =IF(COUNTIF($B$1:B106,TRUE)=COUNTIF($B$1:B105,TRUE),"",COUNTIF($B$1:B106,TRUE)) -> 83 | B106: =Worksheet!$D$24 -> TRUE | C106: =RANDBETWEEN(5,RANDBETWEEN(5,Worksheet!$D$8)) -> 106 | D106: litres | E106: ± | F106: =IF(I106=1,H106*10^RANDBETWEEN(IF(Worksheet!$D$14,-1,0),0),IF(I106=2,H106*10^RANDBETWEEN(RANDBETWEEN(0,2),2),CHOOSE(RANDBETWEEN(1,3),5,10,20))) -> 0.8 | G106: =IF(I106=1,D106,IF(I106=3,"%","ml")) -> litres | H106: =RANDBETWEEN(1,MIN(9,C106)) -> 8 | I106: =IF(AND(Worksheet!$D$12,RAND()<0.2),3,IF(RAND()<Worksheet!$D$10/100,1,2)) -> 1 | J106: 0.8 | K106: =CONCATENATE(" ",D106) -> litres | L106: 800 | M106: ml
A107: =IF(COUNTIF($B$1:B107,TRUE)=COUNTIF($B$1:B106,TRUE),"",COUNTIF($B$1:B107,TRUE)) ->  | B107: =Worksheet!$D$26 -> FALSE | C107: =RANDBETWEEN(5,RANDBETWEEN(5,Worksheet!$D$8)) -> 26 | D107: litres | E107: ± | F107: =IF(I107=1,H107*10^RANDBETWEEN(IF(Worksheet!$D$14,-1,0),0),IF(I107=2,H107*10^RANDBETWEEN(RANDBETWEEN(0,2),2),CHOOSE(RANDBETWEEN(1,3),5,10,20))) -> 0.5 | G107: =IF(I107=1,D107,IF(I107=3,"%","cm³")) -> litres | H107: =RANDBETWEEN(1,MIN(9,C107)) -> 5 | I107: =IF(AND(Worksheet!$D$12,RAND()<0.2),3,IF(RAND()<Worksheet!$D$10/100,1,2)) -> 1 | J107: 0.5 | K107: =CONCATENATE(" ",D107) -> litres | L107: 500 | M107: cm³
A108: =IF(COUNTIF($B$1:B108,TRUE)=COUNTIF($B$1:B108,TRUE),"",COUNTIF($B$1:B108,TRUE)) ->  | B108: =Worksheet!$B$28 -> TRUE | C108: =RANDBETWEEN(5,20) -> 18 | D108: °C | E108: ± | F108: =IF(I108=1,H108*10^RANDBETWEEN(IF(Worksheet!$D$14,-1,0),0),IF(I108=2,H108,CHOOSE(RANDBETWEEN(1,3),5,10,20))) -> 0.6 | G108: =IF(I108=1,D108,IF(I108=3,"%","sec")) -> °C | H108: =RANDBETWEEN(1,MIN(9,C108)) -> 6 | I108: =IF(AND(Worksheet!$D$12,RAND()<0),3,IF(RAND()<Worksheet!$D$10/100,1,2)) -> 1 | J108: =IF(I108=1,F108,IF(I108=2,F108,IF(I108=3,F108/100*C108,""))) -> 0.6 | K108: =CONCATENATE(" ",D108) -> °C | L108: =IF(I108=1,F108,IF(I108=2,F108,IF(I108=3,F108/100*C108,""))) -> 0.6 | M108: °C
A109: =COUNTIF($B$1:B109,TRUE) -> 85 | B109: =Worksheet!$B$20 -> TRUE | C109: =RANDBETWEEN(5,RANDBETWEEN(5,Worksheet!$D$8)) -> 13 | D109: cm | E109: ± | F109: =IF(I109=1,H109*10^RANDBETWEEN(IF(Worksheet!$D$14,-1,0),0),IF(I109=2,H109,CHOOSE(RANDBETWEEN(1,3),5,10,20))) -> 0.7 | G109: =IF(I109=1,D109,IF(I109=3,"%","mm")) -> cm | H109: =RANDBETWEEN(1,MIN(9,C109)) -> 7 | I109: =IF(AND(Worksheet!$D$12,RAND()<0.2),3,IF(RAND()<Worksheet!$D$10/100,1,2)) -> 1 | J109: =IF(I109=1,F109,IF(I109=2,F109/10,IF(I109=3,F109/100*C109,""))) -> 0.7 | K109: =CONCATENATE(" ",D109) -> cm | L109: =IF(I109=1,F109*10,IF(I109=2,F109,IF(I109=3,F109/100*C109*10,""))) -> 7 | M109: mm
A110: =IF(COUNTIF($B$1:B110,TRUE)=COUNTIF($B$1:B109,TRUE),"",COUNTIF($B$1:B110,TRUE)) -> 86 | B110: =Worksheet!$B$22 -> TRUE | C110: =RANDBETWEEN(5,RANDBETWEEN(5,Worksheet!$D$8)) -> 8 | D110: m | E110: ± | F110: =IF(I110=1,H110*10^RANDBETWEEN(IF(Worksheet!$D$14,-1,0),0),IF(I110=2,H110*10^RANDBETWEEN(RANDBETWEEN(0,1),1),CHOOSE(RANDBETWEEN(1,3),5,10,20))) -> 7 | G110: =IF(I110=1,D110,IF(I110=3,"%","cm")) -> m | H110: =RANDBETWEEN(1,MIN(9,C110)) -> 7 | I110: =IF(AND(Worksheet!$D$12,RAND()<0.2),3,IF(RAND()<Worksheet!$D$10/100,1,2)) -> 1 | J110: =IF(I110=1,F110,IF(I110=2,F110/100,IF(I110=3,F110/100*C110,""))) -> 7 | K110: =CONCATENATE(" ",D110) -> m | L110: =IF(I110=1,F110*100,IF(I110=2,F110,IF(I110=3,F110/100*C110*100,""))) -> 700 | M110: cm
A111: =IF(COUNTIF($B$1:B111,TRUE)=COUNTIF($B$1:B110,TRUE),"",COUNTIF($B$1:B111,TRUE)) -> 87 | B111: =Worksheet!$B$24 -> TRUE | C111: =RANDBETWEEN(5,RANDBETWEEN(5,Worksheet!$D$8)) -> 176 | D111: km | E111: ± | F111: =IF(I111=1,H111*10^RANDBETWEEN(IF(Worksheet!$D$14,-1,0),0),IF(I111=2,H111*10^RANDBETWEEN(RANDBETWEEN(0,2),2),CHOOSE(RANDBETWEEN(1,3),5,10,20))) -> 9 | G111: =IF(I111=1,D111,IF(I111=3,"%","m")) -> km | H111: 9 | I111: =IF(AND(Worksheet!$D$12,RAND()<0.2),3,IF(RAND()<Worksheet!$D$10/100,1,2)) -> 1 | J111: =IF(I111=1,F111,IF(I111=2,F111/1000,IF(I111=3,F111/100*C111,""))) -> 9 | K111: km | L111: =IF(I111=1,F111*1000,IF(I111=2,F111,IF(I111=3,F111/100*C111*1000,""))) -> 9000 | M111: m
A112: =IF(COUNTIF($B$1:B112,TRUE)=COUNTIF($B$1:B111,TRUE),"",COUNTIF($B$1:B112,TRUE)) ->  | B112: =Worksheet!$B$26 -> FALSE | C112: =RANDBETWEEN(5,RANDBETWEEN(5,Worksheet!$D$8)) -> 5 | D112: m | E112: ± | F112: =IF(I112=1,H112*10^RANDBETWEEN(IF(Worksheet!$D$14,-1,0),0),IF(I112=2,H112*10^RANDBETWEEN(RANDBETWEEN(0,2),2),CHOOSE(RANDBETWEEN(1,3),5,10,20))) -> 500 | G112: =IF(I112=1,D112,IF(I112=3,"%","mm")) -> mm | H112: 5 | I112: =IF(AND(Worksheet!$D$12,RAND()<0.2),3,IF(RAND()<Worksheet!$D$10/100,1,2)) -> 2 | J112: 0.5 | K112: m | L112: 500 | M112: mm
A113: =IF(COUNTIF($B$1:B113,TRUE)=COUNTIF($B$1:B112,TRUE),"",COUNTIF($B$1:B113,TRUE)) -> 88 | B113: =Worksheet!$D$20 -> TRUE | C113: =RANDBETWEEN(5,RANDBETWEEN(5,Worksheet!$D$8)) -> 35 | D113: kg | E113: ± | F113: =IF(I113=1,H113*10^RANDBETWEEN(IF(Worksheet!$D$14,-1,0),0),IF(I113=2,H113*10^RANDBETWEEN(RANDBETWEEN(0,2),2),CHOOSE(RANDBETWEEN(1,3),5,10,20))) -> 8 | G113: =IF(I113=1,D113,IF(I113=3,"%","g")) -> kg | H113: =RANDBETWEEN(1,MIN(9,C113)) -> 8 | I113: =IF(AND(Worksheet!$D$12,RAND()<0.2),3,IF(RAND()<Worksheet!$D$10/100,1,2)) -> 1 | J113: 8 | K113: =CONCATENATE(" ",D113) -> kg | L113: 8000 | M113: g
A114: =IF(COUNTIF($B$1:B114,TRUE)=COUNTIF($B$1:B113,TRUE),"",COUNTIF($B$1:B114,TRUE)) -> 89 | B114: =Worksheet!$D$22 -> TRUE | C114: =RANDBETWEEN(5,RANDBETWEEN(5,Worksheet!$D$8)) -> 86 | D114: tonnes | E114: ± | F114: =IF(I114=1,H114*10^RANDBETWEEN(IF(Worksheet!$D$14,-1,0),0),IF(I114=2,H114*10^RANDBETWEEN(RANDBETWEEN(0,2),2),CHOOSE(RANDBETWEEN(1,3),5,10,20))) -> 5 | G114: =IF(I114=1,D114,IF(I114=3,"%","kg")) -> % | H114: =RANDBETWEEN(1,MIN(9,C114)) -> 1 | I114: =IF(AND(Worksheet!$D$12,RAND()<0.2),3,IF(RAND()<Worksheet!$D$10/100,1,2)) -> 3 | J114: 4.3 | K114: =CONCATENATE(" ",D114) -> tonnes | L114: 4300 | M114: kg
A115: =IF(COUNTIF($B$1:B115,TRUE)=COUNTIF($B$1:B114,TRUE),"",COUNTIF($B$1:B115,TRUE)) -> 90 | B115: =Worksheet!$D$24 -> TRUE | C115: =RANDBETWEEN(5,RANDBETWEEN(5,Worksheet!$D$8)) -> 7 | D115: litres | E115: ± | F115: =IF(I115=1,H115*10^RANDBETWEEN(IF(Worksheet!$D$14,-1,0),0),IF(I115=2,H115*10^RANDBETWEEN(RANDBETWEEN(0,2),2),CHOOSE(RANDBETWEEN(1,3),5,10,20))) -> 4 | G115: =IF(I115=1,D115,IF(I115=3,"%","ml")) -> litres | H115: =RANDBETWEEN(1,MIN(9,C115)) -> 4 | I115: =IF(AND(Worksheet!$D$12,RAND()<0.2),3,IF(RAND()<Worksheet!$D$10/100,1,2)) -> 1 | J115: 4 | K115: =CONCATENATE(" ",D115) -> litres | L115: 4000 | M115: ml
A116: =IF(COUNTIF($B$1:B116,TRUE)=COUNTIF($B$1:B115,TRUE),"",COUNTIF($B$1:B116,TRUE)) ->  | B116: =Worksheet!$D$26 -> FALSE | C116: =RANDBETWEEN(5,RANDBETWEEN(5,Worksheet!$D$8)) -> 147 | D116: litres | E116: ± | F116: =IF(I116=1,H116*10^RANDBETWEEN(IF(Worksheet!$D$14,-1,0),0),IF(I116=2,H116*10^RANDBETWEEN(RANDBETWEEN(0,2),2),CHOOSE(RANDBETWEEN(1,3),5,10,20))) -> 0.8 | G116: =IF(I116=1,D116,IF(I116=3,"%","cm³")) -> litres | H116: =RANDBETWEEN(1,MIN(9,C116)) -> 8 | I116: =IF(AND(Worksheet!$D$12,RAND()<0.2),3,IF(RAND()<Worksheet!$D$10/100,1,2)) -> 1 | J116: 0.8 | K116: =CONCATENATE(" ",D116) -> litres | L116: 800 | M116: cm³
A117: =IF(COUNTIF($B$1:B117,TRUE)=COUNTIF($B$1:B117,TRUE),"",COUNTIF($B$1:B117,TRUE)) ->  | B117: =Worksheet!$B$28 -> TRUE | C117: =RANDBETWEEN(5,20) -> 6 | D117: °C | E117: ± | F117: =IF(I117=1,H117*10^RANDBETWEEN(IF(Worksheet!$D$14,-1,0),0),IF(I117=2,H117,CHOOSE(RANDBETWEEN(1,3),5,10,20))) -> 0.3 | G117: =IF(I117=1,D117,IF(I117=3,"%","sec")) -> °C | H117: =RANDBETWEEN(1,MIN(9,C117)) -> 3 | I117: =IF(AND(Worksheet!$D$12,RAND()<0),3,IF(RAND()<Worksheet!$D$10/100,1,2)) -> 1 | J117: =IF(I117=1,F117,IF(I117=2,F117,IF(I117=3,F117/100*C117,""))) -> 0.3 | K117: =CONCATENATE(" ",D117) -> °C | L117: =IF(I117=1,F117,IF(I117=2,F117,IF(I117=3,F117/100*C117,""))) -> 0.3 | M117: °C
A118: =COUNTIF($B$1:B118,TRUE) -> 92 | B118: =Worksheet!$B$20 -> TRUE | C118: =RANDBETWEEN(5,RANDBETWEEN(5,Worksheet!$D$8)) -> 19 | D118: cm | E118: ± | F118: =IF(I118=1,H118*10^RANDBETWEEN(IF(Worksheet!$D$14,-1,0),0),IF(I118=2,H118,CHOOSE(RANDBETWEEN(1,3),5,10,20))) -> 5 | G118: =IF(I118=1,D118,IF(I118=3,"%","mm")) -> % | H118: =RANDBETWEEN(1,MIN(9,C118)) -> 6 | I118: =IF(AND(Worksheet!$D$12,RAND()<0.2),3,IF(RAND()<Worksheet!$D$10/100,1,2)) -> 3 | J118: =IF(I118=1,F118,IF(I118=2,F118/10,IF(I118=3,F118/100*C118,""))) -> 0.95 | K118: =CONCATENATE(" ",D118) -> cm | L118: =IF(I118=1,F118*10,IF(I118=2,F118,IF(I118=3,F118/100*C118*10,""))) -> 9.5 | M118: mm
A119: =IF(COUNTIF($B$1:B119,TRUE)=COUNTIF($B$1:B118,TRUE),"",COUNTIF($B$1:B119,TRUE)) -> 93 | B119: =Worksheet!$B$22 -> TRUE | C119: =RANDBETWEEN(5,RANDBETWEEN(5,Worksheet!$D$8)) -> 25 | D119: m | E119: ± | F119: =IF(I119=1,H119*10^RANDBETWEEN(IF(Worksheet!$D$14,-1,0),0),IF(I119=2,H119*10^RANDBETWEEN(RANDBETWEEN(0,1),1),CHOOSE(RANDBETWEEN(1,3),5,10,20))) -> 9 | G119: =IF(I119=1,D119,IF(I119=3,"%","cm")) -> m | H119: =RANDBETWEEN(1,MIN(9,C119)) -> 9 | I119: =IF(AND(Worksheet!$D$12,RAND()<0.2),3,IF(RAND()<Worksheet!$D$10/100,1,2)) -> 1 | J119: =IF(I119=1,F119,IF(I119=2,F119/100,IF(I119=3,F119/100*C119,""))) -> 9 | K119: =CONCATENATE(" ",D119) -> m | L119: =IF(I119=1,F119*100,IF(I119=2,F119,IF(I119=3,F119/100*C119*100,""))) -> 900 | M119: cm
A120: =IF(COUNTIF($B$1:B120,TRUE)=COUNTIF($B$1:B119,TRUE),"",COUNTIF($B$1:B120,TRUE)) -> 94 | B120: =Worksheet!$B$24 -> TRUE | C120: =RANDBETWEEN(5,RANDBETWEEN(5,Worksheet!$D$8)) -> 30 | D120: km | E120: ± | F120: =IF(I120=1,H120*10^RANDBETWEEN(IF(Worksheet!$D$14,-1,0),0),IF(I120=2,H120*10^RANDBETWEEN(RANDBETWEEN(0,2),2),CHOOSE(RANDBETWEEN(1,3),5,10,20))) -> 600 | G120: =IF(I120=1,D120,IF(I120=3,"%","m")) -> m | H120: 6 | I120: =IF(AND(Worksheet!$D$12,RAND()<0.2),3,IF(RAND()<Worksheet!$D$10/100,1,2)) -> 2 | J120: =IF(I120=1,F120,IF(I120=2,F120/1000,IF(I120=3,F120/100*C120,""))) -> 0.6 | K120: km | L120: =IF(I120=1,F120*1000,IF(I120=2,F120,IF(I120=3,F120/100*C120*1000,""))) -> 600 | M120: m
A121: =IF(COUNTIF($B$1:B121,TRUE)=COUNTIF($B$1:B120,TRUE),"",COUNTIF($B$1:B121,TRUE)) ->  | B121: =Worksheet!$B$26 -> FALSE | C121: =RANDBETWEEN(5,RANDBETWEEN(5,Worksheet!$D$8)) -> 43 | D121: m | E121: ± | F121: =IF(I121=1,H121*10^RANDBETWEEN(IF(Worksheet!$D$14,-1,0),0),IF(I121=2,H121*10^RANDBETWEEN(RANDBETWEEN(0,2),2),CHOOSE(RANDBETWEEN(1,3),5,10,20))) -> 0.5 | G121: =IF(I121=1,D121,IF(I121=3,"%","mm")) -> m | H121: 5 | I121: =IF(AND(Worksheet!$D$12,RAND()<0.2),3,IF(RAND()<Worksheet!$D$10/100,1,2)) -> 1 | J121: 0.5 | K121: m | L121: 500 | M121: mm
A122: =IF(COUNTIF($B$1:B122,TRUE)=COUNTIF($B$1:B121,TRUE),"",COUNTIF($B$1:B122,TRUE)) -> 95 | B122: =Worksheet!$D$20 -> TRUE | C122: =RANDBETWEEN(5,RANDBETWEEN(5,Worksheet!$D$8)) -> 66 | D122: kg | E122: ± | F122: =IF(I122=1,H122*10^RANDBETWEEN(IF(Worksheet!$D$14,-1,0),0),IF(I122=2,H122*10^RANDBETWEEN(RANDBETWEEN(0,2),2),CHOOSE(RANDBETWEEN(1,3),5,10,20))) -> 400 | G122: =IF(I122=1,D122,IF(I122=3,"%","g")) -> g | H122: =RANDBETWEEN(1,MIN(9,C122)) -> 4 | I122: =IF(AND(Worksheet!$D$12,RAND()<0.2),3,IF(RAND()<Worksheet!$D$10/100,1,2)) -> 2 | J122: 0.4 | K122: =CONCATENATE(" ",D122) -> kg | L122: 400 | M122: g
A123: =IF(COUNTIF($B$1:B123,TRUE)=COUNTIF($B$1:B122,TRUE),"",COUNTIF($B$1:B123,TRUE)) -> 96 | B123: =Worksheet!$D$22 -> TRUE | C123: =RANDBETWEEN(5,RANDBETWEEN(5,Worksheet!$D$8)) -> 21 | D123: tonnes | E123: ± | F123: =IF(I123=1,H123*10^RANDBETWEEN(IF(Worksheet!$D$14,-1,0),0),IF(I123=2,H123*10^RANDBETWEEN(RANDBETWEEN(0,2),2),CHOOSE(RANDBETWEEN(1,3),5,10,20))) -> 20 | G123: =IF(I123=1,D123,IF(I123=3,"%","kg")) -> % | H123: =RANDBETWEEN(1,MIN(9,C123)) -> 9 | I123: =IF(AND(Worksheet!$D$12,RAND()<0.2),3,IF(RAND()<Worksheet!$D$10/100,1,2)) -> 3 | J123: 4.2 | K123: =CONCATENATE(" ",D123) -> tonnes | L123: 4200 | M123: kg
A124: =IF(COUNTIF($B$1:B124,TRUE)=COUNTIF($B$1:B123,TRUE),"",COUNTIF($B$1:B124,TRUE)) -> 97 | B124: =Worksheet!$D$24 -> TRUE | C124: =RANDBETWEEN(5,RANDBETWEEN(5,Worksheet!$D$8)) -> 8 | D124: litres | E124: ± | F124: =IF(I124=1,H124*10^RANDBETWEEN(IF(Worksheet!$D$14,-1,0),0),IF(I124=2,H124*10^RANDBETWEEN(RANDBETWEEN(0,2),2),CHOOSE(RANDBETWEEN(1,3),5,10,20))) -> 6 | G124: =IF(I124=1,D124,IF(I124=3,"%","ml")) -> litres | H124: =RANDBETWEEN(1,MIN(9,C124)) -> 6 | I124: =IF(AND(Worksheet!$D$12,RAND()<0.2),3,IF(RAND()<Worksheet!$D$10/100,1,2)) -> 1 | J124: 6 | K124: =CONCATENATE(" ",D124) -> litres | L124: 6000 | M124: ml
A125: =IF(COUNTIF($B$1:B125,TRUE)=COUNTIF($B$1:B124,TRUE),"",COUNTIF($B$1:B125,TRUE)) ->  | B125: =Worksheet!$D$26 -> FALSE | C125: =RANDBETWEEN(5,RANDBETWEEN(5,Worksheet!$D$8)) -> 50 | D125: litres | E125: ± | F125: =IF(I125=1,H125*10^RANDBETWEEN(IF(Worksheet!$D$14,-1,0),0),IF(I125=2,H125*10^RANDBETWEEN(RANDBETWEEN(0,2),2),CHOOSE(RANDBETWEEN(1,3),5,10,20))) -> 0.5 | G125: =IF(I125=1,D125,IF(I125=3,"%","cm³")) -> litres | H125: =RANDBETWEEN(1,MIN(9,C125)) -> 5 | I125: =IF(AND(Worksheet!$D$12,RAND()<0.2),3,IF(RAND()<Worksheet!$D$10/100,1,2)) -> 1 | J125: 0.5 | K125: =CONCATENATE(" ",D125) -> litres | L125: 500 | M125: cm³
A126: =IF(COUNTIF($B$1:B126,TRUE)=COUNTIF($B$1:B126,TRUE),"",COUNTIF($B$1:B126,TRUE)) ->  | B126: =Worksheet!$B$28 -> TRUE | C126: =RANDBETWEEN(5,20) -> 14 | D126: °C | E126: ± | F126: =IF(I126=1,H126*10^RANDBETWEEN(IF(Worksheet!$D$14,-1,0),0),IF(I126=2,H126,CHOOSE(RANDBETWEEN(1,3),5,10,20))) -> 8 | G126: =IF(I126=1,D126,IF(I126=3,"%","sec")) -> °C | H126: =RANDBETWEEN(1,MIN(9,C126)) -> 8 | I126: =IF(AND(Worksheet!$D$12,RAND()<0),3,IF(RAND()<Worksheet!$D$10/100,1,2)) -> 1 | J126: =IF(I126=1,F126,IF(I126=2,F126,IF(I126=3,F126/100*C126,""))) -> 8 | K126: =CONCATENATE(" ",D126) -> °C | L126: =IF(I126=1,F126,IF(I126=2,F126,IF(I126=3,F126/100*C126,""))) -> 8 | M126: °C
A127: =COUNTIF($B$1:B127,TRUE) -> 99 | B127: =Worksheet!$B$20 -> TRUE | C127: =RANDBETWEEN(5,RANDBETWEEN(5,Worksheet!$D$8)) -> 58 | D127: cm | E127: ± | F127: =IF(I127=1,H127*10^RANDBETWEEN(IF(Worksheet!$D$14,-1,0),0),IF(I127=2,H127,CHOOSE(RANDBETWEEN(1,3),5,10,20))) -> 20 | G127: =IF(I127=1,D127,IF(I127=3,"%","mm")) -> % | H127: =RANDBETWEEN(1,MIN(9,C127)) -> 8 | I127: =IF(AND(Worksheet!$D$12,RAND()<0.2),3,IF(RAND()<Worksheet!$D$10/100,1,2)) -> 3 | J127: =IF(I127=1,F127,IF(I127=2,F127/10,IF(I127=3,F127/100*C127,""))) -> 11.6 | K127: =CONCATENATE(" ",D127) -> cm | L127: =IF(I127=1,F127*10,IF(I127=2,F127,IF(I127=3,F127/100*C127*10,""))) -> 116 | M127: mm
A128: =IF(COUNTIF($B$1:B128,TRUE)=COUNTIF($B$1:B127,TRUE),"",COUNTIF($B$1:B128,TRUE)) -> 100 | B128: =Worksheet!$B$22 -> TRUE | C128: =RANDBETWEEN(5,RANDBETWEEN(5,Worksheet!$D$8)) -> 120 | D128: m | E128: ± | F128: =IF(I128=1,H128*10^RANDBETWEEN(IF(Worksheet!$D$14,-1,0),0),IF(I128=2,H128*10^RANDBETWEEN(RANDBETWEEN(0,1),1),CHOOSE(RANDBETWEEN(1,3),5,10,20))) -> 8 | G128: =IF(I128=1,D128,IF(I128=3,"%","cm")) -> m | H128: =RANDBETWEEN(1,MIN(9,C128)) -> 8 | I128: =IF(AND(Worksheet!$D$12,RAND()<0.2),3,IF(RAND()<Worksheet!$D$10/100,1,2)) -> 1 | J128: =IF(I128=1,F128,IF(I128=2,F128/100,IF(I128=3,F128/100*C128,""))) -> 8 | K128: =CONCATENATE(" ",D128) -> m | L128: =IF(I128=1,F128*100,IF(I128=2,F128,IF(I128=3,F128/100*C128*100,""))) -> 800 | M128: cm
A129: =IF(COUNTIF($B$1:B129,TRUE)=COUNTIF($B$1:B128,TRUE),"",COUNTIF($B$1:B129,TRUE)) -> 101 | B129: =Worksheet!$B$24 -> TRUE | C129: =RANDBETWEEN(5,RANDBETWEEN(5,Worksheet!$D$8)) -> 16 | D129: km | E129: ± | F129: =IF(I129=1,H129*10^RANDBETWEEN(IF(Worksheet!$D$14,-1,0),0),IF(I129=2,H129*10^RANDBETWEEN(RANDBETWEEN(0,2),2),CHOOSE(RANDBETWEEN(1,3),5,10,20))) -> 10 | G129: =IF(I129=1,D129,IF(I129=3,"%","m")) -> % | H129: 1 | I129: =IF(AND(Worksheet!$D$12,RAND()<0.2),3,IF(RAND()<Worksheet!$D$10/100,1,2)) -> 3 | J129: =IF(I129=1,F129,IF(I129=2,F129/1000,IF(I129=3,F129/100*C129,""))) -> 1.6 | K129: km | L129: =IF(I129=1,F129*1000,IF(I129=2,F129,IF(I129=3,F129/100*C129*1000,""))) -> 1600 | M129: m
A130: =IF(COUNTIF($B$1:B130,TRUE)=COUNTIF($B$1:B129,TRUE),"",COUNTIF($B$1:B130,TRUE)) ->  | B130: =Worksheet!$B$26 -> FALSE | C130: =RANDBETWEEN(5,RANDBETWEEN(5,Worksheet!$D$8)) -> 23 | D130: m | E130: ± | F130: =IF(I130=1,H130*10^RANDBETWEEN(IF(Worksheet!$D$14,-1,0),0),IF(I130=2,H130*10^RANDBETWEEN(RANDBETWEEN(0,2),2),CHOOSE(RANDBETWEEN(1,3),5,10,20))) -> 5 | G130: =IF(I130=1,D130,IF(I130=3,"%","mm")) -> m | H130: 5 | I130: =IF(AND(Worksheet!$D$12,RAND()<0.2),3,IF(RAND()<Worksheet!$D$10/100,1,2)) -> 1 | J130: 5 | K130: m | L130: 5000 | M130: mm
A131: =IF(COUNTIF($B$1:B131,TRUE)=COUNTIF($B$1:B130,TRUE),"",COUNTIF($B$1:B131,TRUE)) -> 102 | B131: =Worksheet!$D$20 -> TRUE | C131: =RANDBETWEEN(5,RANDBETWEEN(5,Worksheet!$D$8)) -> 91 | D131: kg | E131: ± | F131: =IF(I131=1,H131*10^RANDBETWEEN(IF(Worksheet!$D$14,-1,0),0),IF(I131=2,H131*10^RANDBETWEEN(RANDBETWEEN(0,2),2),CHOOSE(RANDBETWEEN(1,3),5,10,20))) -> 500 | G131: =IF(I131=1,D131,IF(I131=3,"%","g")) -> g | H131: =RANDBETWEEN(1,MIN(9,C131)) -> 5 | I131: =IF(AND(Worksheet!$D$12,RAND()<0.2),3,IF(RAND()<Worksheet!$D$10/100,1,2)) -> 2 | J131: 0.5 | K131: =CONCATENATE(" ",D131) -> kg | L131: 500 | M131: g
A132: =IF(COUNTIF($B$1:B132,TRUE)=COUNTIF($B$1:B131,TRUE),"",COUNTIF($B$1:B132,TRUE)) -> 103 | B132: =Worksheet!$D$22 -> TRUE | C132: =RANDBETWEEN(5,RANDBETWEEN(5,Worksheet!$D$8)) -> 88 | D132: tonnes | E132: ± | F132: =IF(I132=1,H132*10^RANDBETWEEN(IF(Worksheet!$D$14,-1,0),0),IF(I132=2,H132*10^RANDBETWEEN(RANDBETWEEN(0,2),2),CHOOSE(RANDBETWEEN(1,3),5,10,20))) -> 0.5 | G132: =IF(I132=1,D132,IF(I132=3,"%","kg")) -> tonnes | H132: =RANDBETWEEN(1,MIN(9,C132)) -> 5 | I132: =IF(AND(Worksheet!$D$12,RAND()<0.2),3,IF(RAND()<Worksheet!$D$10/100,1,2)) -> 1 | J132: 0.5 | K132: =CONCATENATE(" ",D132) -> tonnes | L132: 500 | M132: kg
A133: =IF(COUNTIF($B$1:B133,TRUE)=COUNTIF($B$1:B132,TRUE),"",COUNTIF($B$1:B133,TRUE)) -> 104 | B133: =Worksheet!$D$24 -> TRUE | C133: =RANDBETWEEN(5,RANDBETWEEN(5,Worksheet!$D$8)) -> 5 | D133: litres | E133: ± | F133: =IF(I133=1,H133*10^RANDBETWEEN(IF(Worksheet!$D$14,-1,0),0),IF(I133=2,H133*10^RANDBETWEEN(RANDBETWEEN(0,2),2),CHOOSE(RANDBETWEEN(1,3),5,10,20))) -> 0.4 | G133: =IF(I133=1,D133,IF(I133=3,"%","ml")) -> litres | H133: =RANDBETWEEN(1,MIN(9,C133)) -> 4 | I133: =IF(AND(Worksheet!$D$12,RAND()<0.2),3,IF(RAND()<Worksheet!$D$10/100,1,2)) -> 1 | J133: 0.4 | K133: =CONCATENATE(" ",D133) -> litres | L133: 400 | M133: ml
A134: =IF(COUNTIF($B$1:B134,TRUE)=COUNTIF($B$1:B133,TRUE),"",COUNTIF($B$1:B134,TRUE)) ->  | B134: =Worksheet!$D$26 -> FALSE | C134: =RANDBETWEEN(5,RANDBETWEEN(5,Worksheet!$D$8)) -> 82 | D134: litres | E134: ± | F134: =IF(I134=1,H134*10^RANDBETWEEN(IF(Worksheet!$D$14,-1,0),0),IF(I134=2,H134*10^RANDBETWEEN(RANDBETWEEN(0,2),2),CHOOSE(RANDBETWEEN(1,3),5,10,20))) -> 10 | G134: =IF(I134=1,D134,IF(I134=3,"%","cm³")) -> % | H134: =RANDBETWEEN(1,MIN(9,C134)) -> 3 | I134: =IF(AND(Worksheet!$D$12,RAND()<0.2),3,IF(RAND()<Worksheet!$D$10/100,1,2)) -> 3 | J134: 8.2 | K134: =CONCATENATE(" ",D134) -> litres | L134: 8200 | M134: cm³
A135: =IF(COUNTIF($B$1:B135,TRUE)=COUNTIF($B$1:B135,TRUE),"",COUNTIF($B$1:B135,TRUE)) ->  | B135: =Worksheet!$B$28 -> TRUE | C135: =RANDBETWEEN(5,20) -> 9 | D135: °C | E135: ± | F135: =IF(I135=1,H135*10^RANDBETWEEN(IF(Worksheet!$D$14,-1,0),0),IF(I135=2,H135,CHOOSE(RANDBETWEEN(1,3),5,10,20))) -> 0.1 | G135: =IF(I135=1,D135,IF(I135=3,"%","sec")) -> °C | H135: =RANDBETWEEN(1,MIN(9,C135)) -> 1 | I135: =IF(AND(Worksheet!$D$12,RAND()<0),3,IF(RAND()<Worksheet!$D$10/100,1,2)) -> 1 | J135: =IF(I135=1,F135,IF(I135=2,F135,IF(I135=3,F135/100*C135,""))) -> 0.1 | K135: =CONCATENATE(" ",D135) -> °C | L135: =IF(I135=1,F135,IF(I135=2,F135,IF(I135=3,F135/100*C135,""))) -> 0.1 | M135: °C
A136: =COUNTIF($B$1:B136,TRUE) -> 106 | B136: =Worksheet!$B$20 -> TRUE | C136: =RANDBETWEEN(5,RANDBETWEEN(5,Worksheet!$D$8)) -> 19 | D136: cm | E136: ± | F136: =IF(I136=1,H136*10^RANDBETWEEN(IF(Worksheet!$D$14,-1,0),0),IF(I136=2,H136,CHOOSE(RANDBETWEEN(1,3),5,10,20))) -> 0.1 | G136: =IF(I136=1,D136,IF(I136=3,"%","mm")) -> cm | H136: =RANDBETWEEN(1,MIN(9,C136)) -> 1 | I136: =IF(AND(Worksheet!$D$12,RAND()<0.2),3,IF(RAND()<Worksheet!$D$10/100,1,2)) -> 1 | J136: =IF(I136=1,F136,IF(I136=2,F136/10,IF(I136=3,F136/100*C136,""))) -> 0.1 | K136: =CONCATENATE(" ",D136) -> cm | L136: =IF(I136=1,F136*10,IF(I136=2,F136,IF(I136=3,F136/100*C136*10,""))) -> 1 | M136: mm
A137: =IF(COUNTIF($B$1:B137,TRUE)=COUNTIF($B$1:B136,TRUE),"",COUNTIF($B$1:B137,TRUE)) -> 107 | B137: =Worksheet!$B$22 -> TRUE | C137: =RANDBETWEEN(5,RANDBETWEEN(5,Worksheet!$D$8)) -> 142 | D137: m | E137: ± | F137: =IF(I137=1,H137*10^RANDBETWEEN(IF(Worksheet!$D$14,-1,0),0),IF(I137=2,H137*10^RANDBETWEEN(RANDBETWEEN(0,1),1),CHOOSE(RANDBETWEEN(1,3),5,10,20))) -> 5 | G137: =IF(I137=1,D137,IF(I137=3,"%","cm")) -> % | H137: =RANDBETWEEN(1,MIN(9,C137)) -> 5 | I137: =IF(AND(Worksheet!$D$12,RAND()<0.2),3,IF(RAND()<Worksheet!$D$10/100,1,2)) -> 3 | J137: =IF(I137=1,F137,IF(I137=2,F137/100,IF(I137=3,F137/100*C137,""))) -> 7.1 | K137: =CONCATENATE(" ",D137) -> m | L137: =IF(I137=1,F137*100,IF(I137=2,F137,IF(I137=3,F137/100*C137*100,""))) -> 710 | M137: cm
A138: =IF(COUNTIF($B$1:B138,TRUE)=COUNTIF($B$1:B137,TRUE),"",COUNTIF($B$1:B138,TRUE)) -> 108 | B138: =Worksheet!$B$24 -> TRUE | C138: =RANDBETWEEN(5,RANDBETWEEN(5,Worksheet!$D$8)) -> 21 | D138: km | E138: ± | F138: =IF(I138=1,H138*10^RANDBETWEEN(IF(Worksheet!$D$14,-1,0),0),IF(I138=2,H138*10^RANDBETWEEN(RANDBETWEEN(0,2),2),CHOOSE(RANDBETWEEN(1,3),5,10,20))) -> 2 | G138: =IF(I138=1,D138,IF(I138=3,"%","m")) -> km | H138: 2 | I138: =IF(AND(Worksheet!$D$12,RAND()<0.2),3,IF(RAND()<Worksheet!$D$10/100,1,2)) -> 1 | J138: =IF(I138=1,F138,IF(I138=2,F138/1000,IF(I138=3,F138/100*C138,""))) -> 2 | K138: km | L138: =IF(I138=1,F138*1000,IF(I138=2,F138,IF(I138=3,F138/100*C138*1000,""))) -> 2000 | M138: m
A139: =IF(COUNTIF($B$1:B139,TRUE)=COUNTIF($B$1:B138,TRUE),"",COUNTIF($B$1:B139,TRUE)) ->  | B139: =Worksheet!$B$26 -> FALSE | C139: =RANDBETWEEN(5,RANDBETWEEN(5,Worksheet!$D$8)) -> 79 | D139: m | E139: ± | F139: =IF(I139=1,H139*10^RANDBETWEEN(IF(Worksheet!$D$14,-1,0),0),IF(I139=2,H139*10^RANDBETWEEN(RANDBETWEEN(0,2),2),CHOOSE(RANDBETWEEN(1,3),5,10,20))) -> 0.4 | G139: =IF(I139=1,D139,IF(I139=3,"%","mm")) -> m | H139: 4 | I139: =IF(AND(Worksheet!$D$12,RAND()<0.2),3,IF(RAND()<Worksheet!$D$10/100,1,2)) -> 1 | J139: 0.4 | K139: m | L139: 400 | M139: mm
A140: =IF(COUNTIF($B$1:B140,TRUE)=COUNTIF($B$1:B139,TRUE),"",COUNTIF($B$1:B140,TRUE)) -> 109 | B140: =Worksheet!$D$20 -> TRUE | C140: =RANDBETWEEN(5,RANDBETWEEN(5,Worksheet!$D$8)) -> 18 | D140: kg | E140: ± | F140: =IF(I140=1,H140*10^RANDBETWEEN(IF(Worksheet!$D$14,-1,0),0),IF(I140=2,H140*10^RANDBETWEEN(RANDBETWEEN(0,2),2),CHOOSE(RANDBETWEEN(1,3),5,10,20))) -> 2 | G140: =IF(I140=1,D140,IF(I140=3,"%","g")) -> kg | H140: =RANDBETWEEN(1,MIN(9,C140)) -> 2 | I140: =IF(AND(Worksheet!$D$12,RAND()<0.2),3,IF(RAND()<Worksheet!$D$10/100,1,2)) -> 1 | J140: 2 | K140: =CONCATENATE(" ",D140) -> kg | L140: 2000 | M140: g
A141: =IF(COUNTIF($B$1:B141,TRUE)=COUNTIF($B$1:B140,TRUE),"",COUNTIF($B$1:B141,TRUE)) -> 110 | B141: =Worksheet!$D$22 -> TRUE | C141: =RANDBETWEEN(5,RANDBETWEEN(5,Worksheet!$D$8)) -> 5 | D141: tonnes | E141: ± | F141: =IF(I141=1,H141*10^RANDBETWEEN(IF(Worksheet!$D$14,-1,0),0),IF(I141=2,H141*10^RANDBETWEEN(RANDBETWEEN(0,2),2),CHOOSE(RANDBETWEEN(1,3),5,10,20))) -> 2 | G141: =IF(I141=1,D141,IF(I141=3,"%","kg")) -> tonnes | H141: =RANDBETWEEN(1,MIN(9,C141)) -> 2 | I141: =IF(AND(Worksheet!$D$12,RAND()<0.2),3,IF(RAND()<Worksheet!$D$10/100,1,2)) -> 1 | J141: 2 | K141: =CONCATENATE(" ",D141) -> tonnes | L141: 2000 | M141: kg
A142: =IF(COUNTIF($B$1:B142,TRUE)=COUNTIF($B$1:B141,TRUE),"",COUNTIF($B$1:B142,TRUE)) -> 111 | B142: =Worksheet!$D$24 -> TRUE | C142: =RANDBETWEEN(5,RANDBETWEEN(5,Worksheet!$D$8)) -> 21 | D142: litres | E142: ± | F142: =IF(I142=1,H142*10^RANDBETWEEN(IF(Worksheet!$D$14,-1,0),0),IF(I142=2,H142*10^RANDBETWEEN(RANDBETWEEN(0,2),2),CHOOSE(RANDBETWEEN(1,3),5,10,20))) -> 5 | G142: =IF(I142=1,D142,IF(I142=3,"%","ml")) -> % | H142: =RANDBETWEEN(1,MIN(9,C142)) -> 1 | I142: =IF(AND(Worksheet!$D$12,RAND()<0.2),3,IF(RAND()<Worksheet!$D$10/100,1,2)) -> 3 | J142: 1.05 | K142: =CONCATENATE(" ",D142) -> litres | L142: 1050 | M142: ml
A143: =IF(COUNTIF($B$1:B143,TRUE)=COUNTIF($B$1:B142,TRUE),"",COUNTIF($B$1:B143,TRUE)) ->  | B143: =Worksheet!$D$26 -> FALSE | C143: =RANDBETWEEN(5,RANDBETWEEN(5,Worksheet!$D$8)) -> 90 | D143: litres | E143: ± | F143: =IF(I143=1,H143*10^RANDBETWEEN(IF(Worksheet!$D$14,-1,0),0),IF(I143=2,H143*10^RANDBETWEEN(RANDBETWEEN(0,2),2),CHOOSE(RANDBETWEEN(1,3),5,10,20))) -> 0.2 | G143: =IF(I143=1,D143,IF(I143=3,"%","cm³")) -> litres | H143: =RANDBETWEEN(1,MIN(9,C143)) -> 2 | I143: =IF(AND(Worksheet!$D$12,RAND()<0.2),3,IF(RAND()<Worksheet!$D$10/100,1,2)) -> 1 | J143: 0.2 | K143: =CONCATENATE(" ",D143) -> litres | L143: 200 | M143: cm³
A144: =IF(COUNTIF($B$1:B144,TRUE)=COUNTIF($B$1:B144,TRUE),"",COUNTIF($B$1:B144,TRUE)) ->  | B144: =Worksheet!$B$28 -> TRUE | C144: =RANDBETWEEN(5,20) -> 19 | D144: °C | E144: ± | F144: =IF(I144=1,H144*10^RANDBETWEEN(IF(Worksheet!$D$14,-1,0),0),IF(I144=2,H144,CHOOSE(RANDBETWEEN(1,3),5,10,20))) -> 2 | G144: =IF(I144=1,D144,IF(I144=3,"%","sec")) -> sec | H144: =RANDBETWEEN(1,MIN(9,C144)) -> 2 | I144: =IF(AND(Worksheet!$D$12,RAND()<0),3,IF(RAND()<Worksheet!$D$10/100,1,2)) -> 2 | J144: =IF(I144=1,F144,IF(I144=2,F144,IF(I144=3,F144/100*C144,""))) -> 2 | K144: =CONCATENATE(" ",D144) -> °C | L144: =IF(I144=1,F144,IF(I144=2,F144,IF(I144=3,F144/100*C144,""))) -> 2 | M144: °C
A145: =COUNTIF($B$1:B145,TRUE) -> 113 | B145: =Worksheet!$B$20 -> TRUE | C145: =RANDBETWEEN(5,RANDBETWEEN(5,Worksheet!$D$8)) -> 91 | D145: cm | E145: ± | F145: =IF(I145=1,H145*10^RANDBETWEEN(IF(Worksheet!$D$14,-1,0),0),IF(I145=2,H145,CHOOSE(RANDBETWEEN(1,3),5,10,20))) -> 0.5 | G145: =IF(I145=1,D145,IF(I145=3,"%","mm")) -> cm | H145: =RANDBETWEEN(1,MIN(9,C145)) -> 5 | I145: =IF(AND(Worksheet!$D$12,RAND()<0.2),3,IF(RAND()<Worksheet!$D$10/100,1,2)) -> 1 | J145: =IF(I145=1,F145,IF(I145=2,F145/10,IF(I145=3,F145/100*C145,""))) -> 0.5 | K145: =CONCATENATE(" ",D145) -> cm | L145: =IF(I145=1,F145*10,IF(I145=2,F145,IF(I145=3,F145/100*C145*10,""))) -> 5 | M145: mm
A146: =IF(COUNTIF($B$1:B146,TRUE)=COUNTIF($B$1:B145,TRUE),"",COUNTIF($B$1:B146,TRUE)) -> 114 | B146: =Worksheet!$B$22 -> TRUE | C146: =RANDBETWEEN(5,RANDBETWEEN(5,Worksheet!$D$8)) -> 71 | D146: m | E146: ± | F146: =IF(I146=1,H146*10^RANDBETWEEN(IF(Worksheet!$D$14,-1,0),0),IF(I146=2,H146*10^RANDBETWEEN(RANDBETWEEN(0,1),1),CHOOSE(RANDBETWEEN(1,3),5,10,20))) -> 10 | G146: =IF(I146=1,D146,IF(I146=3,"%","cm")) -> cm | H146: =RANDBETWEEN(1,MIN(9,C146)) -> 1 | I146: =IF(AND(Worksheet!$D$12,RAND()<0.2),3,IF(RAND()<Worksheet!$D$10/100,1,2)) -> 2 | J146: =IF(I146=1,F146,IF(I146=2,F146/100,IF(I146=3,F146/100*C146,""))) -> 0.1 | K146: =CONCATENATE(" ",D146) -> m | L146: =IF(I146=1,F146*100,IF(I146=2,F146,IF(I146=3,F146/100*C146*100,""))) -> 10 | M146: cm
A147: =IF(COUNTIF($B$1:B147,TRUE)=COUNTIF($B$1:B146,TRUE),"",COUNTIF($B$1:B147,TRUE)) -> 115 | B147: =Worksheet!$B$24 -> TRUE | C147: =RANDBETWEEN(5,RANDBETWEEN(5,Worksheet!$D$8)) -> 12 | D147: km | E147: ± | F147: =IF(I147=1,H147*10^RANDBETWEEN(IF(Worksheet!$D$14,-1,0),0),IF(I147=2,H147*10^RANDBETWEEN(RANDBETWEEN(0,2),2),CHOOSE(RANDBETWEEN(1,3),5,10,20))) -> 0.1 | G147: =IF(I147=1,D147,IF(I147=3,"%","m")) -> km | H147: 1 | I147: =IF(AND(Worksheet!$D$12,RAND()<0.2),3,IF(RAND()<Worksheet!$D$10/100,1,2)) -> 1 | J147: =IF(I147=1,F147,IF(I147=2,F147/1000,IF(I147=3,F147/100*C147,""))) -> 0.1 | K147: km | L147: =IF(I147=1,F147*1000,IF(I147=2,F147,IF(I147=3,F147/100*C147*1000,""))) -> 100 | M147: m
A148: =IF(COUNTIF($B$1:B148,TRUE)=COUNTIF($B$1:B147,TRUE),"",COUNTIF($B$1:B148,TRUE)) ->  | B148: =Worksheet!$B$26 -> FALSE | C148: =RANDBETWEEN(5,RANDBETWEEN(5,Worksheet!$D$8)) -> 40 | D148: m | E148: ± | F148: =IF(I148=1,H148*10^RANDBETWEEN(IF(Worksheet!$D$14,-1,0),0),IF(I148=2,H148*10^RANDBETWEEN(RANDBETWEEN(0,2),2),CHOOSE(RANDBETWEEN(1,3),5,10,20))) -> 9 | G148: =IF(I148=1,D148,IF(I148=3,"%","mm")) -> m | H148: 9 | I148: =IF(AND(Worksheet!$D$12,RAND()<0.2),3,IF(RAND()<Worksheet!$D$10/100,1,2)) -> 1 | J148: 9 | K148: m | L148: 9000 | M148: mm
A149: =IF(COUNTIF($B$1:B149,TRUE)=COUNTIF($B$1:B148,TRUE),"",COUNTIF($B$1:B149,TRUE)) -> 116 | B149: =Worksheet!$D$20 -> TRUE | C149: =RANDBETWEEN(5,RANDBETWEEN(5,Worksheet!$D$8)) -> 5 | D149: kg | E149: ± | F149: =IF(I149=1,H149*10^RANDBETWEEN(IF(Worksheet!$D$14,-1,0),0),IF(I149=2,H149*10^RANDBETWEEN(RANDBETWEEN(0,2),2),CHOOSE(RANDBETWEEN(1,3),5,10,20))) -> 20 | G149: =IF(I149=1,D149,IF(I149=3,"%","g")) -> % | H149: =RANDBETWEEN(1,MIN(9,C149)) -> 4 | I149: =IF(AND(Worksheet!$D$12,RAND()<0.2),3,IF(RAND()<Worksheet!$D$10/100,1,2)) -> 3 | J149: 1 | K149: =CONCATENATE(" ",D149) -> kg | L149: 1000 | M149: g
A150: =IF(COUNTIF($B$1:B150,TRUE)=COUNTIF($B$1:B149,TRUE),"",COUNTIF($B$1:B150,TRUE)) -> 117 | B150: =Worksheet!$D$22 -> TRUE | C150: =RANDBETWEEN(5,RANDBETWEEN(5,Worksheet!$D$8)) -> 148 | D150: tonnes | E150: ± | F150: =IF(I150=1,H150*10^RANDBETWEEN(IF(Worksheet!$D$14,-1,0),0),IF(I150=2,H150*10^RANDBETWEEN(RANDBETWEEN(0,2),2),CHOOSE(RANDBETWEEN(1,3),5,10,20))) -> 9 | G150: =IF(I150=1,D150,IF(I150=3,"%","kg")) -> tonnes | H150: =RANDBETWEEN(1,MIN(9,C150)) -> 9 | I150: =IF(AND(Worksheet!$D$12,RAND()<0.2),3,IF(RAND()<Worksheet!$D$10/100,1,2)) -> 1 | J150: 9 | K150: =CONCATENATE(" ",D150) -> tonnes | L150: 9000 | M150: kg
A151: =IF(COUNTIF($B$1:B151,TRUE)=COUNTIF($B$1:B150,TRUE),"",COUNTIF($B$1:B151,TRUE)) -> 118 | B151: =Worksheet!$D$24 -> TRUE | C151: =RANDBETWEEN(5,RANDBETWEEN(5,Worksheet!$D$8)) -> 117 | D151: litres | E151: ± | F151: =IF(I151=1,H151*10^RANDBETWEEN(IF(Worksheet!$D$14,-1,0),0),IF(I151=2,H151*10^RANDBETWEEN(RANDBETWEEN(0,2),2),CHOOSE(RANDBETWEEN(1,3),5,10,20))) -> 500 | G151: =IF(I151=1,D151,IF(I151=3,"%","ml")) -> ml | H151: =RANDBETWEEN(1,MIN(9,C151)) -> 5 | I151: =IF(AND(Worksheet!$D$12,RAND()<0.2),3,IF(RAND()<Worksheet!$D$10/100,1,2)) -> 2 | J151: 0.5 | K151: =CONCATENATE(" ",D151) -> litres | L151: 500 | M151: ml
A152: =IF(COUNTIF($B$1:B152,TRUE)=COUNTIF($B$1:B151,TRUE),"",COUNTIF($B$1:B152,TRUE)) ->  | B152: =Worksheet!$D$26 -> FALSE | C152: =RANDBETWEEN(5,RANDBETWEEN(5,Worksheet!$D$8)) -> 72 | D152: litres | E152: ± | F152: =IF(I152=1,H152*10^RANDBETWEEN(IF(Worksheet!$D$14,-1,0),0),IF(I152=2,H152*10^RANDBETWEEN(RANDBETWEEN(0,2),2),CHOOSE(RANDBETWEEN(1,3),5,10,20))) -> 5 | G152: =IF(I152=1,D152,IF(I152=3,"%","cm³")) -> % | H152: =RANDBETWEEN(1,MIN(9,C152)) -> 1 | I152: =IF(AND(Worksheet!$D$12,RAND()<0.2),3,IF(RAND()<Worksheet!$D$10/100,1,2)) -> 3 | J152: 3.6 | K152: =CONCATENATE(" ",D152) -> litres | L152: 3600 | M152: cm³
A153: =IF(COUNTIF($B$1:B153,TRUE)=COUNTIF($B$1:B153,TRUE),"",COUNTIF($B$1:B153,TRUE)) ->  | B153: =Worksheet!$B$28 -> TRUE | C153: =RANDBETWEEN(5,20) -> 16 | D153: °C | E153: ± | F153: =IF(I153=1,H153*10^RANDBETWEEN(IF(Worksheet!$D$14,-1,0),0),IF(I153=2,H153,CHOOSE(RANDBETWEEN(1,3),5,10,20))) -> 6 | G153: =IF(I153=1,D153,IF(I153=3,"%","sec")) -> °C | H153: =RANDBETWEEN(1,MIN(9,C153)) -> 6 | I153: =IF(AND(Worksheet!$D$12,RAND()<0),3,IF(RAND()<Worksheet!$D$10/100,1,2)) -> 1 | J153: =IF(I153=1,F153,IF(I153=2,F153,IF(I153=3,F153/100*C153,""))) -> 6 | K153: =CONCATENATE(" ",D153) -> °C | L153: =IF(I153=1,F153,IF(I153=2,F153,IF(I153=3,F153/100*C153,""))) -> 6 | M153: °C
A154: =COUNTIF($B$1:B154,TRUE) -> 120 | B154: =Worksheet!$B$20 -> TRUE | C154: =RANDBETWEEN(5,RANDBETWEEN(5,Worksheet!$D$8)) -> 16 | D154: cm | E154: ± | F154: =IF(I154=1,H154*10^RANDBETWEEN(IF(Worksheet!$D$14,-1,0),0),IF(I154=2,H154,CHOOSE(RANDBETWEEN(1,3),5,10,20))) -> 2 | G154: =IF(I154=1,D154,IF(I154=3,"%","mm")) -> cm | H154: =RANDBETWEEN(1,MIN(9,C154)) -> 2 | I154: =IF(AND(Worksheet!$D$12,RAND()<0.2),3,IF(RAND()<Worksheet!$D$10/100,1,2)) -> 1 | J154: =IF(I154=1,F154,IF(I154=2,F154/10,IF(I154=3,F154/100*C154,""))) -> 2 | K154: =CONCATENATE(" ",D154) -> cm | L154: =IF(I154=1,F154*10,IF(I154=2,F154,IF(I154=3,F154/100*C154*10,""))) -> 20 | M154: mm
A155: =IF(COUNTIF($B$1:B155,TRUE)=COUNTIF($B$1:B154,TRUE),"",COUNTIF($B$1:B155,TRUE)) -> 121 | B155: =Worksheet!$B$22 -> TRUE | C155: =RANDBETWEEN(5,RANDBETWEEN(5,Worksheet!$D$8)) -> 113 | D155: m | E155: ± | F155: =IF(I155=1,H155*10^RANDBETWEEN(IF(Worksheet!$D$14,-1,0),0),IF(I155=2,H155*10^RANDBETWEEN(RANDBETWEEN(0,1),1),CHOOSE(RANDBETWEEN(1,3),5,10,20))) -> 0.9 | G155: =IF(I155=1,D155,IF(I155=3,"%","cm")) -> m | H155: =RANDBETWEEN(1,MIN(9,C155)) -> 9 | I155: =IF(AND(Worksheet!$D$12,RAND()<0.2),3,IF(RAND()<Worksheet!$D$10/100,1,2)) -> 1 | J155: =IF(I155=1,F155,IF(I155=2,F155/100,IF(I155=3,F155/100*C155,""))) -> 0.9 | K155: =CONCATENATE(" ",D155) -> m | L155: =IF(I155=1,F155*100,IF(I155=2,F155,IF(I155=3,F155/100*C155*100,""))) -> 90 | M155: cm
A156: =IF(COUNTIF($B$1:B156,TRUE)=COUNTIF($B$1:B155,TRUE),"",COUNTIF($B$1:B156,TRUE)) -> 122 | B156: =Worksheet!$B$24 -> TRUE | C156: =RANDBETWEEN(5,RANDBETWEEN(5,Worksheet!$D$8)) -> 8 | D156: km | E156: ± | F156: =IF(I156=1,H156*10^RANDBETWEEN(IF(Worksheet!$D$14,-1,0),0),IF(I156=2,H156*10^RANDBETWEEN(RANDBETWEEN(0,2),2),CHOOSE(RANDBETWEEN(1,3),5,10,20))) -> 0.5 | G156: =IF(I156=1,D156,IF(I156=3,"%","m")) -> km | H156: 5 | I156: =IF(AND(Worksheet!$D$12,RAND()<0.2),3,IF(RAND()<Worksheet!$D$10/100,1,2)) -> 1 | J156: =IF(I156=1,F156,IF(I156=2,F156/1000,IF(I156=3,F156/100*C156,""))) -> 0.5 | K156: km | L156: =IF(I156=1,F156*1000,IF(I156=2,F156,IF(I156=3,F156/100*C156*1000,""))) -> 500 | M156: m
A157: =IF(COUNTIF($B$1:B157,TRUE)=COUNTIF($B$1:B156,TRUE),"",COUNTIF($B$1:B157,TRUE)) ->  | B157: =Worksheet!$B$26 -> FALSE | C157: =RANDBETWEEN(5,RANDBETWEEN(5,Worksheet!$D$8)) -> 28 | D157: m | E157: ± | F157: =IF(I157=1,H157*10^RANDBETWEEN(IF(Worksheet!$D$14,-1,0),0),IF(I157=2,H157*10^RANDBETWEEN(RANDBETWEEN(0,2),2),CHOOSE(RANDBETWEEN(1,3),5,10,20))) -> 3 | G157: =IF(I157=1,D157,IF(I157=3,"%","mm")) -> m | H157: 3 | I157: =IF(AND(Worksheet!$D$12,RAND()<0.2),3,IF(RAND()<Worksheet!$D$10/100,1,2)) -> 1 | J157: 3 | K157: m | L157: 3000 | M157: mm
A158: =IF(COUNTIF($B$1:B158,TRUE)=COUNTIF($B$1:B157,TRUE),"",COUNTIF($B$1:B158,TRUE)) -> 123 | B158: =Worksheet!$D$20 -> TRUE | C158: =RANDBETWEEN(5,RANDBETWEEN(5,Worksheet!$D$8)) -> 31 | D158: kg | E158: ± | F158: =IF(I158=1,H158*10^RANDBETWEEN(IF(Worksheet!$D$14,-1,0),0),IF(I158=2,H158*10^RANDBETWEEN(RANDBETWEEN(0,2),2),CHOOSE(RANDBETWEEN(1,3),5,10,20))) -> 1 | G158: =IF(I158=1,D158,IF(I158=3,"%","g")) -> kg | H158: =RANDBETWEEN(1,MIN(9,C158)) -> 1 | I158: =IF(AND(Worksheet!$D$12,RAND()<0.2),3,IF(RAND()<Worksheet!$D$10/100,1,2)) -> 1 | J158: 1 | K158: =CONCATENATE(" ",D158) -> kg | L158: 1000 | M158: g
A159: =IF(COUNTIF($B$1:B159,TRUE)=COUNTIF($B$1:B158,TRUE),"",COUNTIF($B$1:B159,TRUE)) -> 124 | B159: =Worksheet!$D$22 -> TRUE | C159: =RANDBETWEEN(5,RANDBETWEEN(5,Worksheet!$D$8)) -> 53 | D159: tonnes | E159: ± | F159: =IF(I159=1,H159*10^RANDBETWEEN(IF(Worksheet!$D$14,-1,0),0),IF(I159=2,H159*10^RANDBETWEEN(RANDBETWEEN(0,2),2),CHOOSE(RANDBETWEEN(1,3),5,10,20))) -> 80 | G159: =IF(I159=1,D159,IF(I159=3,"%","kg")) -> kg | H159: =RANDBETWEEN(1,MIN(9,C159)) -> 8 | I159: =IF(AND(Worksheet!$D$12,RAND()<0.2),3,IF(RAND()<Worksheet!$D$10/100,1,2)) -> 2 | J159: 0.08 | K159: =CONCATENATE(" ",D159) -> tonnes | L159: 80 | M159: kg
A160: =IF(COUNTIF($B$1:B160,TRUE)=COUNTIF($B$1:B159,TRUE),"",COUNTIF($B$1:B160,TRUE)) -> 125 | B160: =Worksheet!$D$24 -> TRUE | C160: =RANDBETWEEN(5,RANDBETWEEN(5,Worksheet!$D$8)) -> 119 | D160: litres | E160: ± | F160: =IF(I160=1,H160*10^RANDBETWEEN(IF(Worksheet!$D$14,-1,0),0),IF(I160=2,H160*10^RANDBETWEEN(RANDBETWEEN(0,2),2),CHOOSE(RANDBETWEEN(1,3),5,10,20))) -> 0.4 | G160: =IF(I160=1,D160,IF(I160=3,"%","ml")) -> litres | H160: =RANDBETWEEN(1,MIN(9,C160)) -> 4 | I160: =IF(AND(Worksheet!$D$12,RAND()<0.2),3,IF(RAND()<Worksheet!$D$10/100,1,2)) -> 1 | J160: 0.4 | K160: =CONCATENATE(" ",D160) -> litres | L160: 400 | M160: ml
A161: =IF(COUNTIF($B$1:B161,TRUE)=COUNTIF($B$1:B160,TRUE),"",COUNTIF($B$1:B161,TRUE)) ->  | B161: =Worksheet!$D$26 -> FALSE | C161: =RANDBETWEEN(5,RANDBETWEEN(5,Worksheet!$D$8)) -> 61 | D161: litres | E161: ± | F161: =IF(I161=1,H161*10^RANDBETWEEN(IF(Worksheet!$D$14,-1,0),0),IF(I161=2,H161*10^RANDBETWEEN(RANDBETWEEN(0,2),2),CHOOSE(RANDBETWEEN(1,3),5,10,20))) -> 100 | G161: =IF(I161=1,D161,IF(I161=3,"%","cm³")) -> cm³ | H161: =RANDBETWEEN(1,MIN(9,C161)) -> 1 | I161: =IF(AND(Worksheet!$D$12,RAND()<0.2),3,IF(RAND()<Worksheet!$D$10/100,1,2)) -> 2 | J161: 0.1 | K161: =CONCATENATE(" ",D161) -> litres | L161: 100 | M161: cm³
A162: =IF(COUNTIF($B$1:B162,TRUE)=COUNTIF($B$1:B162,TRUE),"",COUNTIF($B$1:B162,TRUE)) ->  | B162: =Worksheet!$B$28 -> TRUE | C162: =RANDBETWEEN(5,20) -> 9 | D162: °C | E162: ± | F162: =IF(I162=1,H162*10^RANDBETWEEN(IF(Worksheet!$D$14,-1,0),0),IF(I162=2,H162,CHOOSE(RANDBETWEEN(1,3),5,10,20))) -> 1 | G162: =IF(I162=1,D162,IF(I162=3,"%","sec")) -> °C | H162: =RANDBETWEEN(1,MIN(9,C162)) -> 1 | I162: =IF(AND(Worksheet!$D$12,RAND()<0),3,IF(RAND()<Worksheet!$D$10/100,1,2)) -> 1 | J162: =IF(I162=1,F162,IF(I162=2,F162,IF(I162=3,F162/100*C162,""))) -> 1 | K162: =CONCATENATE(" ",D162) -> °C | L162: =IF(I162=1,F162,IF(I162=2,F162,IF(I162=3,F162/100*C162,""))) -> 1 | M162: °C
A163: =COUNTIF($B$1:B163,TRUE) -> 127 | B163: =Worksheet!$B$20 -> TRUE | C163: =RANDBETWEEN(5,RANDBETWEEN(5,Worksheet!$D$8)) -> 22 | D163: cm | E163: ± | F163: =IF(I163=1,H163*10^RANDBETWEEN(IF(Worksheet!$D$14,-1,0),0),IF(I163=2,H163,CHOOSE(RANDBETWEEN(1,3),5,10,20))) -> 0.9 | G163: =IF(I163=1,D163,IF(I163=3,"%","mm")) -> cm | H163: =RANDBETWEEN(1,MIN(9,C163)) -> 9 | I163: =IF(AND(Worksheet!$D$12,RAND()<0.2),3,IF(RAND()<Worksheet!$D$10/100,1,2)) -> 1 | J163: =IF(I163=1,F163,IF(I163=2,F163/10,IF(I163=3,F163/100*C163,""))) -> 0.9 | K163: =CONCATENATE(" ",D163) -> cm | L163: =IF(I163=1,F163*10,IF(I163=2,F163,IF(I163=3,F163/100*C163*10,""))) -> 9 | M163: mm
A164: =IF(COUNTIF($B$1:B164,TRUE)=COUNTIF($B$1:B163,TRUE),"",COUNTIF($B$1:B164,TRUE)) -> 128 | B164: =Worksheet!$B$22 -> TRUE | C164: =RANDBETWEEN(5,RANDBETWEEN(5,Worksheet!$D$8)) -> 69 | D164: m | E164: ± | F164: =IF(I164=1,H164*10^RANDBETWEEN(IF(Worksheet!$D$14,-1,0),0),IF(I164=2,H164*10^RANDBETWEEN(RANDBETWEEN(0,1),1),CHOOSE(RANDBETWEEN(1,3),5,10,20))) -> 0.4 | G164: =IF(I164=1,D164,IF(I164=3,"%","cm")) -> m | H164: =RANDBETWEEN(1,MIN(9,C164)) -> 4 | I164: =IF(AND(Worksheet!$D$12,RAND()<0.2),3,IF(RAND()<Worksheet!$D$10/100,1,2)) -> 1 | J164: =IF(I164=1,F164,IF(I164=2,F164/100,IF(I164=3,F164/100*C164,""))) -> 0.4 | K164: =CONCATENATE(" ",D164) -> m | L164: =IF(I164=1,F164*100,IF(I164=2,F164,IF(I164=3,F164/100*C164*100,""))) -> 40 | M164: cm
A165: =IF(COUNTIF($B$1:B165,TRUE)=COUNTIF($B$1:B164,TRUE),"",COUNTIF($B$1:B165,TRUE)) -> 129 | B165: =Worksheet!$B$24 -> TRUE | C165: =RANDBETWEEN(5,RANDBETWEEN(5,Worksheet!$D$8)) -> 5 | D165: km | E165: ± | F165: =IF(I165=1,H165*10^RANDBETWEEN(IF(Worksheet!$D$14,-1,0),0),IF(I165=2,H165*10^RANDBETWEEN(RANDBETWEEN(0,2),2),CHOOSE(RANDBETWEEN(1,3),5,10,20))) -> 4 | G165: =IF(I165=1,D165,IF(I165=3,"%","m")) -> km | H165: 4 | I165: =IF(AND(Worksheet!$D$12,RAND()<0.2),3,IF(RAND()<Worksheet!$D$10/100,1,2)) -> 1 | J165: =IF(I165=1,F165,IF(I165=2,F165/1000,IF(I165=3,F165/100*C165,""))) -> 4 | K165: km | L165: =IF(I165=1,F165*1000,IF(I165=2,F165,IF(I165=3,F165/100*C165*1000,""))) -> 4000 | M165: m
A166: =IF(COUNTIF($B$1:B166,TRUE)=COUNTIF($B$1:B165,TRUE),"",COUNTIF($B$1:B166,TRUE)) ->  | B166: =Worksheet!$B$26 -> FALSE | C166: =RANDBETWEEN(5,RANDBETWEEN(5,Worksheet!$D$8)) -> 66 | D166: m | E166: ± | F166: =IF(I166=1,H166*10^RANDBETWEEN(IF(Worksheet!$D$14,-1,0),0),IF(I166=2,H166*10^RANDBETWEEN(RANDBETWEEN(0,2),2),CHOOSE(RANDBETWEEN(1,3),5,10,20))) -> 5 | G166: =IF(I166=1,D166,IF(I166=3,"%","mm")) -> % | H166: 3 | I166: =IF(AND(Worksheet!$D$12,RAND()<0.2),3,IF(RAND()<Worksheet!$D$10/100,1,2)) -> 3 | J166: 3.3 | K166: m | L166: 3300 | M166: mm
A167: =IF(COUNTIF($B$1:B167,TRUE)=COUNTIF($B$1:B166,TRUE),"",COUNTIF($B$1:B167,TRUE)) -> 130 | B167: =Worksheet!$D$20 -> TRUE | C167: =RANDBETWEEN(5,RANDBETWEEN(5,Worksheet!$D$8)) -> 41 | D167: kg | E167: ± | F167: =IF(I167=1,H167*10^RANDBETWEEN(IF(Worksheet!$D$14,-1,0),0),IF(I167=2,H167*10^RANDBETWEEN(RANDBETWEEN(0,2),2),CHOOSE(RANDBETWEEN(1,3),5,10,20))) -> 600 | G167: =IF(I167=1,D167,IF(I167=3,"%","g")) -> g | H167: =RANDBETWEEN(1,MIN(9,C167)) -> 6 | I167: =IF(AND(Worksheet!$D$12,RAND()<0.2),3,IF(RAND()<Worksheet!$D$10/100,1,2)) -> 2 | J167: 0.6 | K167: =CONCATENATE(" ",D167) -> kg | L167: 600 | M167: g
A168: =IF(COUNTIF($B$1:B168,TRUE)=COUNTIF($B$1:B167,TRUE),"",COUNTIF($B$1:B168,TRUE)) -> 131 | B168: =Worksheet!$D$22 -> TRUE | C168: =RANDBETWEEN(5,RANDBETWEEN(5,Worksheet!$D$8)) -> 48 | D168: tonnes | E168: ± | F168: =IF(I168=1,H168*10^RANDBETWEEN(IF(Worksheet!$D$14,-1,0),0),IF(I168=2,H168*10^RANDBETWEEN(RANDBETWEEN(0,2),2),CHOOSE(RANDBETWEEN(1,3),5,10,20))) -> 10 | G168: =IF(I168=1,D168,IF(I168=3,"%","kg")) -> % | H168: =RANDBETWEEN(1,MIN(9,C168)) -> 5 | I168: =IF(AND(Worksheet!$D$12,RAND()<0.2),3,IF(RAND()<Worksheet!$D$10/100,1,2)) -> 3 | J168: 4.8 | K168: =CONCATENATE(" ",D168) -> tonnes | L168: 4800 | M168: kg
A169: =IF(COUNTIF($B$1:B169,TRUE)=COUNTIF($B$1:B168,TRUE),"",COUNTIF($B$1:B169,TRUE)) -> 132 | B169: =Worksheet!$D$24 -> TRUE | C169: =RANDBETWEEN(5,RANDBETWEEN(5,Worksheet!$D$8)) -> 189 | D169: litres | E169: ± | F169: =IF(I169=1,H169*10^RANDBETWEEN(IF(Worksheet!$D$14,-1,0),0),IF(I169=2,H169*10^RANDBETWEEN(RANDBETWEEN(0,2),2),CHOOSE(RANDBETWEEN(1,3),5,10,20))) -> 10 | G169: =IF(I169=1,D169,IF(I169=3,"%","ml")) -> % | H169: =RANDBETWEEN(1,MIN(9,C169)) -> 1 | I169: =IF(AND(Worksheet!$D$12,RAND()<0.2),3,IF(RAND()<Worksheet!$D$10/100,1,2)) -> 3 | J169: 18.9 | K169: =CONCATENATE(" ",D169) -> litres | L169: 18900 | M169: ml
A170: =IF(COUNTIF($B$1:B170,TRUE)=COUNTIF($B$1:B169,TRUE),"",COUNTIF($B$1:B170,TRUE)) ->  | B170: =Worksheet!$D$26 -> FALSE | C170: =RANDBETWEEN(5,RANDBETWEEN(5,Worksheet!$D$8)) -> 21 | D170: litres | E170: ± | F170: =IF(I170=1,H170*10^RANDBETWEEN(IF(Worksheet!$D$14,-1,0),0),IF(I170=2,H170*10^RANDBETWEEN(RANDBETWEEN(0,2),2),CHOOSE(RANDBETWEEN(1,3),5,10,20))) -> 0.3 | G170: =IF(I170=1,D170,IF(I170=3,"%","cm³")) -> litres | H170: =RANDBETWEEN(1,MIN(9,C170)) -> 3 | I170: =IF(AND(Worksheet!$D$12,RAND()<0.2),3,IF(RAND()<Worksheet!$D$10/100,1,2)) -> 1 | J170: 0.3 | K170: =CONCATENATE(" ",D170) -> litres | L170: 300 | M170: cm³
A171: =IF(COUNTIF($B$1:B171,TRUE)=COUNTIF($B$1:B171,TRUE),"",COUNTIF($B$1:B171,TRUE)) ->  | B171: =Worksheet!$B$28 -> TRUE | C171: =RANDBETWEEN(5,20) -> 12 | D171: °C | E171: ± | F171: =IF(I171=1,H171*10^RANDBETWEEN(IF(Worksheet!$D$14,-1,0),0),IF(I171=2,H171,CHOOSE(RANDBETWEEN(1,3),5,10,20))) -> 6 | G171: =IF(I171=1,D171,IF(I171=3,"%","sec")) -> sec | H171: =RANDBETWEEN(1,MIN(9,C171)) -> 6 | I171: =IF(AND(Worksheet!$D$12,RAND()<0),3,IF(RAND()<Worksheet!$D$10/100,1,2)) -> 2 | J171: =IF(I171=1,F171,IF(I171=2,F171,IF(I171=3,F171/100*C171,""))) -> 6 | K171: =CONCATENATE(" ",D171) -> °C | L171: =IF(I171=1,F171,IF(I171=2,F171,IF(I171=3,F171/100*C171,""))) -> 6 | M171: °C
A172: =COUNTIF($B$1:B172,TRUE) -> 134 | B172: =Worksheet!$B$20 -> TRUE | C172: =RANDBETWEEN(5,RANDBETWEEN(5,Worksheet!$D$8)) -> 145 | D172: cm | E172: ± | F172: =IF(I172=1,H172*10^RANDBETWEEN(IF(Worksheet!$D$14,-1,0),0),IF(I172=2,H172,CHOOSE(RANDBETWEEN(1,3),5,10,20))) -> 0.9 | G172: =IF(I172=1,D172,IF(I172=3,"%","mm")) -> cm | H172: =RANDBETWEEN(1,MIN(9,C172)) -> 9 | I172: =IF(AND(Worksheet!$D$12,RAND()<0.2),3,IF(RAND()<Worksheet!$D$10/100,1,2)) -> 1 | J172: =IF(I172=1,F172,IF(I172=2,F172/10,IF(I172=3,F172/100*C172,""))) -> 0.9 | K172: =CONCATENATE(" ",D172) -> cm | L172: =IF(I172=1,F172*10,IF(I172=2,F172,IF(I172=3,F172/100*C172*10,""))) -> 9 | M172: mm
A173: =IF(COUNTIF($B$1:B173,TRUE)=COUNTIF($B$1:B172,TRUE),"",COUNTIF($B$1:B173,TRUE)) -> 135 | B173: =Worksheet!$B$22 -> TRUE | C173: =RANDBETWEEN(5,RANDBETWEEN(5,Worksheet!$D$8)) -> 20 | D173: m | E173: ± | F173: =IF(I173=1,H173*10^RANDBETWEEN(IF(Worksheet!$D$14,-1,0),0),IF(I173=2,H173*10^RANDBETWEEN(RANDBETWEEN(0,1),1),CHOOSE(RANDBETWEEN(1,3),5,10,20))) -> 10 | G173: =IF(I173=1,D173,IF(I173=3,"%","cm")) -> % | H173: =RANDBETWEEN(1,MIN(9,C173)) -> 7 | I173: =IF(AND(Worksheet!$D$12,RAND()<0.2),3,IF(RAND()<Worksheet!$D$10/100,1,2)) -> 3 | J173: =IF(I173=1,F173,IF(I173=2,F173/100,IF(I173=3,F173/100*C173,""))) -> 2 | K173: =CONCATENATE(" ",D173) -> m | L173: =IF(I173=1,F173*100,IF(I173=2,F173,IF(I173=3,F173/100*C173*100,""))) -> 200 | M173: cm
A174: =IF(COUNTIF($B$1:B174,TRUE)=COUNTIF($B$1:B173,TRUE),"",COUNTIF($B$1:B174,TRUE)) -> 136 | B174: =Worksheet!$B$24 -> TRUE | C174: =RANDBETWEEN(5,RANDBETWEEN(5,Worksheet!$D$8)) -> 84 | D174: km | E174: ± | F174: =IF(I174=1,H174*10^RANDBETWEEN(IF(Worksheet!$D$14,-1,0),0),IF(I174=2,H174*10^RANDBETWEEN(RANDBETWEEN(0,2),2),CHOOSE(RANDBETWEEN(1,3),5,10,20))) -> 70 | G174: =IF(I174=1,D174,IF(I174=3,"%","m")) -> m | H174: 7 | I174: =IF(AND(Worksheet!$D$12,RAND()<0.2),3,IF(RAND()<Worksheet!$D$10/100,1,2)) -> 2 | J174: =IF(I174=1,F174,IF(I174=2,F174/1000,IF(I174=3,F174/100*C174,""))) -> 0.07 | K174: km | L174: =IF(I174=1,F174*1000,IF(I174=2,F174,IF(I174=3,F174/100*C174*1000,""))) -> 70 | M174: m
A175: =IF(COUNTIF($B$1:B175,TRUE)=COUNTIF($B$1:B174,TRUE),"",COUNTIF($B$1:B175,TRUE)) ->  | B175: =Worksheet!$B$26 -> FALSE | C175: =RANDBETWEEN(5,RANDBETWEEN(5,Worksheet!$D$8)) -> 37 | D175: m | E175: ± | F175: =IF(I175=1,H175*10^RANDBETWEEN(IF(Worksheet!$D$14,-1,0),0),IF(I175=2,H175*10^RANDBETWEEN(RANDBETWEEN(0,2),2),CHOOSE(RANDBETWEEN(1,3),5,10,20))) -> 0.5 | G175: =IF(I175=1,D175,IF(I175=3,"%","mm")) -> m | H175: 5 | I175: =IF(AND(Worksheet!$D$12,RAND()<0.2),3,IF(RAND()<Worksheet!$D$10/100,1,2)) -> 1 | J175: 0.5 | K175: m | L175: 500 | M175: mm
A176: =IF(COUNTIF($B$1:B176,TRUE)=COUNTIF($B$1:B175,TRUE),"",COUNTIF($B$1:B176,TRUE)) -> 137 | B176: =Worksheet!$D$20 -> TRUE | C176: =RANDBETWEEN(5,RANDBETWEEN(5,Worksheet!$D$8)) -> 18 | D176: kg | E176: ± | F176: =IF(I176=1,H176*10^RANDBETWEEN(IF(Worksheet!$D$14,-1,0),0),IF(I176=2,H176*10^RANDBETWEEN(RANDBETWEEN(0,2),2),CHOOSE(RANDBETWEEN(1,3),5,10,20))) -> 20 | G176: =IF(I176=1,D176,IF(I176=3,"%","g")) -> g | H176: =RANDBETWEEN(1,MIN(9,C176)) -> 2 | I176: =IF(AND(Worksheet!$D$12,RAND()<0.2),3,IF(RAND()<Worksheet!$D$10/100,1,2)) -> 2 | J176: 0.02 | K176: =CONCATENATE(" ",D176) -> kg | L176: 20 | M176: g
A177: =IF(COUNTIF($B$1:B177,TRUE)=COUNTIF($B$1:B176,TRUE),"",COUNTIF($B$1:B177,TRUE)) -> 138 | B177: =Worksheet!$D$22 -> TRUE | C177: =RANDBETWEEN(5,RANDBETWEEN(5,Worksheet!$D$8)) -> 40 | D177: tonnes | E177: ± | F177: =IF(I177=1,H177*10^RANDBETWEEN(IF(Worksheet!$D$14,-1,0),0),IF(I177=2,H177*10^RANDBETWEEN(RANDBETWEEN(0,2),2),CHOOSE(RANDBETWEEN(1,3),5,10,20))) -> 5 | G177: =IF(I177=1,D177,IF(I177=3,"%","kg")) -> % | H177: =RANDBETWEEN(1,MIN(9,C177)) -> 3 | I177: =IF(AND(Worksheet!$D$12,RAND()<0.2),3,IF(RAND()<Worksheet!$D$10/100,1,2)) -> 3 | J177: 2 | K177: =CONCATENATE(" ",D177) -> tonnes | L177: 2000 | M177: kg
A178: =IF(COUNTIF($B$1:B178,TRUE)=COUNTIF($B$1:B177,TRUE),"",COUNTIF($B$1:B178,TRUE)) -> 139 | B178: =Worksheet!$D$24 -> TRUE | C178: =RANDBETWEEN(5,RANDBETWEEN(5,Worksheet!$D$8)) -> 54 | D178: litres | E178: ± | F178: =IF(I178=1,H178*10^RANDBETWEEN(IF(Worksheet!$D$14,-1,0),0),IF(I178=2,H178*10^RANDBETWEEN(RANDBETWEEN(0,2),2),CHOOSE(RANDBETWEEN(1,3),5,10,20))) -> 600 | G178: =IF(I178=1,D178,IF(I178=3,"%","ml")) -> ml | H178: =RANDBETWEEN(1,MIN(9,C178)) -> 6 | I178: =IF(AND(Worksheet!$D$12,RAND()<0.2),3,IF(RAND()<Worksheet!$D$10/100,1,2)) -> 2 | J178: 0.6 | K178: =CONCATENATE(" ",D178) -> litres | L178: 600 | M178: ml
A179: =IF(COUNTIF($B$1:B179,TRUE)=COUNTIF($B$1:B178,TRUE),"",COUNTIF($B$1:B179,TRUE)) ->  | B179: =Worksheet!$D$26 -> FALSE | C179: =RANDBETWEEN(5,RANDBETWEEN(5,Worksheet!$D$8)) -> 32 | D179: litres | E179: ± | F179: =IF(I179=1,H179*10^RANDBETWEEN(IF(Worksheet!$D$14,-1,0),0),IF(I179=2,H179*10^RANDBETWEEN(RANDBETWEEN(0,2),2),CHOOSE(RANDBETWEEN(1,3),5,10,20))) -> 20 | G179: =IF(I179=1,D179,IF(I179=3,"%","cm³")) -> % | H179: =RANDBETWEEN(1,MIN(9,C179)) -> 5 | I179: =IF(AND(Worksheet!$D$12,RAND()<0.2),3,IF(RAND()<Worksheet!$D$10/100,1,2)) -> 3 | J179: 6.4 | K179: =CONCATENATE(" ",D179) -> litres | L179: 6400 | M179: cm³
A180: =IF(COUNTIF($B$1:B180,TRUE)=COUNTIF($B$1:B180,TRUE),"",COUNTIF($B$1:B180,TRUE)) ->  | B180: =Worksheet!$B$28 -> TRUE | C180: =RANDBETWEEN(5,20) -> 9 | D180: °C | E180: ± | F180: =IF(I180=1,H180*10^RANDBETWEEN(IF(Worksheet!$D$14,-1,0),0),IF(I180=2,H180,CHOOSE(RANDBETWEEN(1,3),5,10,20))) -> 0.7 | G180: =IF(I180=1,D180,IF(I180=3,"%","sec")) -> °C | H180: =RANDBETWEEN(1,MIN(9,C180)) -> 7 | I180: =IF(AND(Worksheet!$D$12,RAND()<0),3,IF(RAND()<Worksheet!$D$10/100,1,2)) -> 1 | J180: =IF(I180=1,F180,IF(I180=2,F180,IF(I180=3,F180/100*C180,""))) -> 0.7 | K180: =CONCATENATE(" ",D180) -> °C | L180: =IF(I180=1,F180,IF(I180=2,F180,IF(I180=3,F180/100*C180,""))) -> 0.7 | M180: °C
A181: =COUNTIF($B$1:B181,TRUE) -> 141 | B181: =Worksheet!$B$20 -> TRUE | C181: =RANDBETWEEN(5,RANDBETWEEN(5,Worksheet!$D$8)) -> 113 | D181: cm | E181: ± | F181: =IF(I181=1,H181*10^RANDBETWEEN(IF(Worksheet!$D$14,-1,0),0),IF(I181=2,H181,CHOOSE(RANDBETWEEN(1,3),5,10,20))) -> 7 | G181: =IF(I181=1,D181,IF(I181=3,"%","mm")) -> mm | H181: =RANDBETWEEN(1,MIN(9,C181)) -> 7 | I181: =IF(AND(Worksheet!$D$12,RAND()<0.2),3,IF(RAND()<Worksheet!$D$10/100,1,2)) -> 2 | J181: =IF(I181=1,F181,IF(I181=2,F181/10,IF(I181=3,F181/100*C181,""))) -> 0.7 | K181: =CONCATENATE(" ",D181) -> cm | L181: =IF(I181=1,F181*10,IF(I181=2,F181,IF(I181=3,F181/100*C181*10,""))) -> 7 | M181: mm
A182: =IF(COUNTIF($B$1:B182,TRUE)=COUNTIF($B$1:B181,TRUE),"",COUNTIF($B$1:B182,TRUE)) -> 142 | B182: =Worksheet!$B$22 -> TRUE | C182: =RANDBETWEEN(5,RANDBETWEEN(5,Worksheet!$D$8)) -> 11 | D182: m | E182: ± | F182: =IF(I182=1,H182*10^RANDBETWEEN(IF(Worksheet!$D$14,-1,0),0),IF(I182=2,H182*10^RANDBETWEEN(RANDBETWEEN(0,1),1),CHOOSE(RANDBETWEEN(1,3),5,10,20))) -> 0.1 | G182: =IF(I182=1,D182,IF(I182=3,"%","cm")) -> m | H182: =RANDBETWEEN(1,MIN(9,C182)) -> 1 | I182: =IF(AND(Worksheet!$D$12,RAND()<0.2),3,IF(RAND()<Worksheet!$D$10/100,1,2)) -> 1 | J182: =IF(I182=1,F182,IF(I182=2,F182/100,IF(I182=3,F182/100*C182,""))) -> 0.1 | K182: =CONCATENATE(" ",D182) -> m | L182: =IF(I182=1,F182*100,IF(I182=2,F182,IF(I182=3,F182/100*C182*100,""))) -> 10 | M182: cm
A183: =IF(COUNTIF($B$1:B183,TRUE)=COUNTIF($B$1:B182,TRUE),"",COUNTIF($B$1:B183,TRUE)) -> 143 | B183: =Worksheet!$B$24 -> TRUE | C183: =RANDBETWEEN(5,RANDBETWEEN(5,Worksheet!$D$8)) -> 26 | D183: km | E183: ± | F183: =IF(I183=1,H183*10^RANDBETWEEN(IF(Worksheet!$D$14,-1,0),0),IF(I183=2,H183*10^RANDBETWEEN(RANDBETWEEN(0,2),2),CHOOSE(RANDBETWEEN(1,3),5,10,20))) -> 5 | G183: =IF(I183=1,D183,IF(I183=3,"%","m")) -> % | H183: 2 | I183: =IF(AND(Worksheet!$D$12,RAND()<0.2),3,IF(RAND()<Worksheet!$D$10/100,1,2)) -> 3 | J183: =IF(I183=1,F183,IF(I183=2,F183/1000,IF(I183=3,F183/100*C183,""))) -> 1.3 | K183: km | L183: =IF(I183=1,F183*1000,IF(I183=2,F183,IF(I183=3,F183/100*C183*1000,""))) -> 1300 | M183: m
A184: =IF(COUNTIF($B$1:B184,TRUE)=COUNTIF($B$1:B183,TRUE),"",COUNTIF($B$1:B184,TRUE)) ->  | B184: =Worksheet!$B$26 -> FALSE | C184: =RANDBETWEEN(5,RANDBETWEEN(5,Worksheet!$D$8)) -> 44 | D184: m | E184: ± | F184: =IF(I184=1,H184*10^RANDBETWEEN(IF(Worksheet!$D$14,-1,0),0),IF(I184=2,H184*10^RANDBETWEEN(RANDBETWEEN(0,2),2),CHOOSE(RANDBETWEEN(1,3),5,10,20))) -> 100 | G184: =IF(I184=1,D184,IF(I184=3,"%","mm")) -> mm | H184: 1 | I184: =IF(AND(Worksheet!$D$12,RAND()<0.2),3,IF(RAND()<Worksheet!$D$10/100,1,2)) -> 2 | J184: 0.1 | K184: m | L184: 100 | M184: mm
A185: =IF(COUNTIF($B$1:B185,TRUE)=COUNTIF($B$1:B184,TRUE),"",COUNTIF($B$1:B185,TRUE)) -> 144 | B185: =Worksheet!$D$20 -> TRUE | C185: =RANDBETWEEN(5,RANDBETWEEN(5,Worksheet!$D$8)) -> 48 | D185: kg | E185: ± | F185: =IF(I185=1,H185*10^RANDBETWEEN(IF(Worksheet!$D$14,-1,0),0),IF(I185=2,H185*10^RANDBETWEEN(RANDBETWEEN(0,2),2),CHOOSE(RANDBETWEEN(1,3),5,10,20))) -> 0.5 | G185: =IF(I185=1,D185,IF(I185=3,"%","g")) -> kg | H185: =RANDBETWEEN(1,MIN(9,C185)) -> 5 | I185: =IF(AND(Worksheet!$D$12,RAND()<0.2),3,IF(RAND()<Worksheet!$D$10/100,1,2)) -> 1 | J185: 0.5 | K185: =CONCATENATE(" ",D185) -> kg | L185: 500 | M185: g
A186: =IF(COUNTIF($B$1:B186,TRUE)=COUNTIF($B$1:B185,TRUE),"",COUNTIF($B$1:B186,TRUE)) -> 145 | B186: =Worksheet!$D$22 -> TRUE | C186: =RANDBETWEEN(5,RANDBETWEEN(5,Worksheet!$D$8)) -> 126 | D186: tonnes | E186: ± | F186: =IF(I186=1,H186*10^RANDBETWEEN(IF(Worksheet!$D$14,-1,0),0),IF(I186=2,H186*10^RANDBETWEEN(RANDBETWEEN(0,2),2),CHOOSE(RANDBETWEEN(1,3),5,10,20))) -> 90 | G186: =IF(I186=1,D186,IF(I186=3,"%","kg")) -> kg | H186: =RANDBETWEEN(1,MIN(9,C186)) -> 9 | I186: =IF(AND(Worksheet!$D$12,RAND()<0.2),3,IF(RAND()<Worksheet!$D$10/100,1,2)) -> 2 | J186: 0.09 | K186: =CONCATENATE(" ",D186) -> tonnes | L186: 90 | M186: kg
A187: =IF(COUNTIF($B$1:B187,TRUE)=COUNTIF($B$1:B186,TRUE),"",COUNTIF($B$1:B187,TRUE)) -> 146 | B187: =Worksheet!$D$24 -> TRUE | C187: =RANDBETWEEN(5,RANDBETWEEN(5,Worksheet!$D$8)) -> 55 | D187: litres | E187: ± | F187: =IF(I187=1,H187*10^RANDBETWEEN(IF(Worksheet!$D$14,-1,0),0),IF(I187=2,H187*10^RANDBETWEEN(RANDBETWEEN(0,2),2),CHOOSE(RANDBETWEEN(1,3),5,10,20))) -> 7 | G187: =IF(I187=1,D187,IF(I187=3,"%","ml")) -> litres | H187: =RANDBETWEEN(1,MIN(9,C187)) -> 7 | I187: =IF(AND(Worksheet!$D$12,RAND()<0.2),3,IF(RAND()<Worksheet!$D$10/100,1,2)) -> 1 | J187: 7 | K187: =CONCATENATE(" ",D187) -> litres | L187: 7000 | M187: ml
A188: =IF(COUNTIF($B$1:B188,TRUE)=COUNTIF($B$1:B187,TRUE),"",COUNTIF($B$1:B188,TRUE)) ->  | B188: =Worksheet!$D$26 -> FALSE | C188: =RANDBETWEEN(5,RANDBETWEEN(5,Worksheet!$D$8)) -> 40 | D188: litres | E188: ± | F188: =IF(I188=1,H188*10^RANDBETWEEN(IF(Worksheet!$D$14,-1,0),0),IF(I188=2,H188*10^RANDBETWEEN(RANDBETWEEN(0,2),2),CHOOSE(RANDBETWEEN(1,3),5,10,20))) -> 0.8 | G188: =IF(I188=1,D188,IF(I188=3,"%","cm³")) -> litres | H188: =RANDBETWEEN(1,MIN(9,C188)) -> 8 | I188: =IF(AND(Worksheet!$D$12,RAND()<0.2),3,IF(RAND()<Worksheet!$D$10/100,1,2)) -> 1 | J188: 0.8 | K188: =CONCATENATE(" ",D188) -> litres | L188: 800 | M188: cm³
A189: =IF(COUNTIF($B$1:B189,TRUE)=COUNTIF($B$1:B189,TRUE),"",COUNTIF($B$1:B189,TRUE)) ->  | B189: =Worksheet!$B$28 -> TRUE | C189: =RANDBETWEEN(5,20) -> 5 | D189: °C | E189: ± | F189: =IF(I189=1,H189*10^RANDBETWEEN(IF(Worksheet!$D$14,-1,0),0),IF(I189=2,H189,CHOOSE(RANDBETWEEN(1,3),5,10,20))) -> 0.1 | G189: =IF(I189=1,D189,IF(I189=3,"%","sec")) -> °C | H189: =RANDBETWEEN(1,MIN(9,C189)) -> 1 | I189: =IF(AND(Worksheet!$D$12,RAND()<0),3,IF(RAND()<Worksheet!$D$10/100,1,2)) -> 1 | J189: =IF(I189=1,F189,IF(I189=2,F189,IF(I189=3,F189/100*C189,""))) -> 0.1 | K189: =CONCATENATE(" ",D189) -> °C | L189: =IF(I189=1,F189,IF(I189=2,F189,IF(I189=3,F189/100*C189,""))) -> 0.1 | M189: °C
A190: =COUNTIF($B$1:B190,TRUE) -> 148 | B190: =Worksheet!$B$20 -> TRUE | C190: =RANDBETWEEN(5,RANDBETWEEN(5,Worksheet!$D$8)) -> 55 | D190: cm | E190: ± | F190: =IF(I190=1,H190*10^RANDBETWEEN(IF(Worksheet!$D$14,-1,0),0),IF(I190=2,H190,CHOOSE(RANDBETWEEN(1,3),5,10,20))) -> 3 | G190: =IF(I190=1,D190,IF(I190=3,"%","mm")) -> cm | H190: =RANDBETWEEN(1,MIN(9,C190)) -> 3 | I190: =IF(AND(Worksheet!$D$12,RAND()<0.2),3,IF(RAND()<Worksheet!$D$10/100,1,2)) -> 1 | J190: =IF(I190=1,F190,IF(I190=2,F190/10,IF(I190=3,F190/100*C190,""))) -> 3 | K190: =CONCATENATE(" ",D190) -> cm | L190: =IF(I190=1,F190*10,IF(I190=2,F190,IF(I190=3,F190/100*C190*10,""))) -> 30 | M190: mm
A191: =IF(COUNTIF($B$1:B191,TRUE)=COUNTIF($B$1:B190,TRUE),"",COUNTIF($B$1:B191,TRUE)) -> 149 | B191: =Worksheet!$B$22 -> TRUE | C191: =RANDBETWEEN(5,RANDBETWEEN(5,Worksheet!$D$8)) -> 58 | D191: m | E191: ± | F191: =IF(I191=1,H191*10^RANDBETWEEN(IF(Worksheet!$D$14,-1,0),0),IF(I191=2,H191*10^RANDBETWEEN(RANDBETWEEN(0,1),1),CHOOSE(RANDBETWEEN(1,3),5,10,20))) -> 2 | G191: =IF(I191=1,D191,IF(I191=3,"%","cm")) -> m | H191: =RANDBETWEEN(1,MIN(9,C191)) -> 2 | I191: =IF(AND(Worksheet!$D$12,RAND()<0.2),3,IF(RAND()<Worksheet!$D$10/100,1,2)) -> 1 | J191: =IF(I191=1,F191,IF(I191=2,F191/100,IF(I191=3,F191/100*C191,""))) -> 2 | K191: =CONCATENATE(" ",D191) -> m | L191: =IF(I191=1,F191*100,IF(I191=2,F191,IF(I191=3,F191/100*C191*100,""))) -> 200 | M191: cm
A192: =IF(COUNTIF($B$1:B192,TRUE)=COUNTIF($B$1:B191,TRUE),"",COUNTIF($B$1:B192,TRUE)) -> 150 | B192: =Worksheet!$B$24 -> TRUE | C192: =RANDBETWEEN(5,RANDBETWEEN(5,Worksheet!$D$8)) -> 21 | D192: km | E192: ± | F192: =IF(I192=1,H192*10^RANDBETWEEN(IF(Worksheet!$D$14,-1,0),0),IF(I192=2,H192*10^RANDBETWEEN(RANDBETWEEN(0,2),2),CHOOSE(RANDBETWEEN(1,3),5,10,20))) -> 0.9 | G192: =IF(I192=1,D192,IF(I192=3,"%","m")) -> km | H192: 9 | I192: =IF(AND(Worksheet!$D$12,RAND()<0.2),3,IF(RAND()<Worksheet!$D$10/100,1,2)) -> 1 | J192: =IF(I192=1,F192,IF(I192=2,F192/1000,IF(I192=3,F192/100*C192,""))) -> 0.9 | K192: km | L192: =IF(I192=1,F192*1000,IF(I192=2,F192,IF(I192=3,F192/100*C192*1000,""))) -> 900 | M192: m
A193: =IF(COUNTIF($B$1:B193,TRUE)=COUNTIF($B$1:B192,TRUE),"",COUNTIF($B$1:B193,TRUE)) ->  | B193: =Worksheet!$B$26 -> FALSE | C193: =RANDBETWEEN(5,RANDBETWEEN(5,Worksheet!$D$8)) -> 7 | D193: m | E193: ± | F193: =IF(I193=1,H193*10^RANDBETWEEN(IF(Worksheet!$D$14,-1,0),0),IF(I193=2,H193*10^RANDBETWEEN(RANDBETWEEN(0,2),2),CHOOSE(RANDBETWEEN(1,3),5,10,20))) -> 20 | G193: =IF(I193=1,D193,IF(I193=3,"%","mm")) -> % | H193: 1 | I193: =IF(AND(Worksheet!$D$12,RAND()<0.2),3,IF(RAND()<Worksheet!$D$10/100,1,2)) -> 3 | J193: 1.4 | K193: m | L193: 1400 | M193: mm
A194: =IF(COUNTIF($B$1:B194,TRUE)=COUNTIF($B$1:B193,TRUE),"",COUNTIF($B$1:B194,TRUE)) -> 151 | B194: =Worksheet!$D$20 -> TRUE | C194: =RANDBETWEEN(5,RANDBETWEEN(5,Worksheet!$D$8)) -> 6 | D194: kg | E194: ± | F194: =IF(I194=1,H194*10^RANDBETWEEN(IF(Worksheet!$D$14,-1,0),0),IF(I194=2,H194*10^RANDBETWEEN(RANDBETWEEN(0,2),2),CHOOSE(RANDBETWEEN(1,3),5,10,20))) -> 5 | G194: =IF(I194=1,D194,IF(I194=3,"%","g")) -> % | H194: =RANDBETWEEN(1,MIN(9,C194)) -> 2 | I194: =IF(AND(Worksheet!$D$12,RAND()<0.2),3,IF(RAND()<Worksheet!$D$10/100,1,2)) -> 3 | J194: 0.3 | K194: =CONCATENATE(" ",D194) -> kg | L194: 300 | M194: g
A195: =IF(COUNTIF($B$1:B195,TRUE)=COUNTIF($B$1:B194,TRUE),"",COUNTIF($B$1:B195,TRUE)) -> 152 | B195: =Worksheet!$D$22 -> TRUE | C195: =RANDBETWEEN(5,RANDBETWEEN(5,Worksheet!$D$8)) -> 60 | D195: tonnes | E195: ± | F195: =IF(I195=1,H195*10^RANDBETWEEN(IF(Worksheet!$D$14,-1,0),0),IF(I195=2,H195*10^RANDBETWEEN(RANDBETWEEN(0,2),2),CHOOSE(RANDBETWEEN(1,3),5,10,20))) -> 0.8 | G195: =IF(I195=1,D195,IF(I195=3,"%","kg")) -> tonnes | H195: =RANDBETWEEN(1,MIN(9,C195)) -> 8 | I195: =IF(AND(Worksheet!$D$12,RAND()<0.2),3,IF(RAND()<Worksheet!$D$10/100,1,2)) -> 1 | J195: 0.8 | K195: =CONCATENATE(" ",D195) -> tonnes | L195: 800 | M195: kg
A196: =IF(COUNTIF($B$1:B196,TRUE)=COUNTIF($B$1:B195,TRUE),"",COUNTIF($B$1:B196,TRUE)) -> 153 | B196: =Worksheet!$D$24 -> TRUE | C196: =RANDBETWEEN(5,RANDBETWEEN(5,Worksheet!$D$8)) -> 160 | D196: litres | E196: ± | F196: =IF(I196=1,H196*10^RANDBETWEEN(IF(Worksheet!$D$14,-1,0),0),IF(I196=2,H196*10^RANDBETWEEN(RANDBETWEEN(0,2),2),CHOOSE(RANDBETWEEN(1,3),5,10,20))) -> 10 | G196: =IF(I196=1,D196,IF(I196=3,"%","ml")) -> ml | H196: =RANDBETWEEN(1,MIN(9,C196)) -> 1 | I196: =IF(AND(Worksheet!$D$12,RAND()<0.2),3,IF(RAND()<Worksheet!$D$10/100,1,2)) -> 2 | J196: 0.01 | K196: =CONCATENATE(" ",D196) -> litres | L196: 10 | M196: ml
A197: =IF(COUNTIF($B$1:B197,TRUE)=COUNTIF($B$1:B196,TRUE),"",COUNTIF($B$1:B197,TRUE)) ->  | B197: =Worksheet!$D$26 -> FALSE | C197: =RANDBETWEEN(5,RANDBETWEEN(5,Worksheet!$D$8)) -> 16 | D197: litres | E197: ± | F197: =IF(I197=1,H197*10^RANDBETWEEN(IF(Worksheet!$D$14,-1,0),0),IF(I197=2,H197*10^RANDBETWEEN(RANDBETWEEN(0,2),2),CHOOSE(RANDBETWEEN(1,3),5,10,20))) -> 800 | G197: =IF(I197=1,D197,IF(I197=3,"%","cm³")) -> cm³ | H197: =RANDBETWEEN(1,MIN(9,C197)) -> 8 | I197: =IF(AND(Worksheet!$D$12,RAND()<0.2),3,IF(RAND()<Worksheet!$D$10/100,1,2)) -> 2 | J197: 0.8 | K197: =CONCATENATE(" ",D197) -> litres | L197: 800 | M197: cm³
A198: =IF(COUNTIF($B$1:B198,TRUE)=COUNTIF($B$1:B198,TRUE),"",COUNTIF($B$1:B198,TRUE)) ->  | B198: =Worksheet!$B$28 -> TRUE | C198: =RANDBETWEEN(5,20) -> 18 | D198: °C | E198: ± | F198: =IF(I198=1,H198*10^RANDBETWEEN(IF(Worksheet!$D$14,-1,0),0),IF(I198=2,H198,CHOOSE(RANDBETWEEN(1,3),5,10,20))) -> 4 | G198: =IF(I198=1,D198,IF(I198=3,"%","sec")) -> °C | H198: =RANDBETWEEN(1,MIN(9,C198)) -> 4 | I198: =IF(AND(Worksheet!$D$12,RAND()<0),3,IF(RAND()<Worksheet!$D$10/100,1,2)) -> 1 | J198: =IF(I198=1,F198,IF(I198=2,F198,IF(I198=3,F198/100*C198,""))) -> 4 | K198: =CONCATENATE(" ",D198) -> °C | L198: =IF(I198=1,F198,IF(I198=2,F198,IF(I198=3,F198/100*C198,""))) -> 4 | M198: °C
A199: =COUNTIF($B$1:B199,TRUE) -> 155 | B199: =Worksheet!$B$20 -> TRUE | C199: =RANDBETWEEN(5,RANDBETWEEN(5,Worksheet!$D$8)) -> 95 | D199: cm | E199: ± | F199: =IF(I199=1,H199*10^RANDBETWEEN(IF(Worksheet!$D$14,-1,0),0),IF(I199=2,H199,CHOOSE(RANDBETWEEN(1,3),5,10,20))) -> 10 | G199: =IF(I199=1,D199,IF(I199=3,"%","mm")) -> % | H199: =RANDBETWEEN(1,MIN(9,C199)) -> 8 | I199: =IF(AND(Worksheet!$D$12,RAND()<0.2),3,IF(RAND()<Worksheet!$D$10/100,1,2)) -> 3 | J199: =IF(I199=1,F199,IF(I199=2,F199/10,IF(I199=3,F199/100*C199,""))) -> 9.5 | K199: =CONCATENATE(" ",D199) -> cm | L199: =IF(I199=1,F199*10,IF(I199=2,F199,IF(I199=3,F199/100*C199*10,""))) -> 95 | M199: mm
A200: =IF(COUNTIF($B$1:B200,TRUE)=COUNTIF($B$1:B199,TRUE),"",COUNTIF($B$1:B200,TRUE)) -> 156 | B200: =Worksheet!$B$22 -> TRUE | C200: =RANDBETWEEN(5,RANDBETWEEN(5,Worksheet!$D$8)) -> 139 | D200: m | E200: ± | F200: =IF(I200=1,H200*10^RANDBETWEEN(IF(Worksheet!$D$14,-1,0),0),IF(I200=2,H200*10^RANDBETWEEN(RANDBETWEEN(0,1),1),CHOOSE(RANDBETWEEN(1,3),5,10,20))) -> 0.3 | G200: =IF(I200=1,D200,IF(I200=3,"%","cm")) -> m | H200: =RANDBETWEEN(1,MIN(9,C200)) -> 3 | I200: =IF(AND(Worksheet!$D$12,RAND()<0.2),3,IF(RAND()<Worksheet!$D$10/100,1,2)) -> 1 | J200: =IF(I200=1,F200,IF(I200=2,F200/100,IF(I200=3,F200/100*C200,""))) -> 0.3 | K200: =CONCATENATE(" ",D200) -> m | L200: =IF(I200=1,F200*100,IF(I200=2,F200,IF(I200=3,F200/100*C200*100,""))) -> 30 | M200: cm
... 1537 more rows
